Workbook

Sheet Control
C30: Numerical value
C31: Suggested formula
C32: Probabilistic parameters
C33: Data specified elsewhere
C34: Suggested formula edited

Sheet P4 (hidden)
A1: SOURCE CONCENTRATIONS: P4
A3: Source Data Options | B3: Source Type
A11: Target Standard
A13: Select which Quality Standard (defined on the Contaminants sheet) to apply
A14: Not Specified
A17: Source Geometry
A19: P4_Source_length | B19: 320 | C19: m
A20: P4_Source_width | B20: 295 | C20: m
A21: P4_Source_area | B21: 72311 | C21: m2
A22: P4_Source_thickness | B22: 9 | C22: m
A23: P4_Source_volume | B23: =P4_Source_area * P4_Source_thickness -> 650799 | C23: m3
A26: General Source Properties
A28: P4_Source_field_capacity | B28: [-] | C28: 0.25
A29: Distribution | C29: constant
A30: P4_Source_field_capacity_param1
A31: P4_Source_field_capacity_param2
A32: P4_Source_field_capacity_param3
A35: P4_Source_porosity_total | B35: [-]
A36: Distribution | C36: constant
A37: P4_Source_porosity_total_param1
A38: P4_Source_porosity_total_param2
A39: P4_Source_porosity_total_param3
A42: P4_Source_porosity_water_filled | B42: [-]
A43: Distribution | C43: constant
A44: P4_Source_porosity_water_filled_param1
A45: P4_Source_porosity_water_filled_param2
A46: P4_Source_porosity_water_filled_param3
A49: P4_Source_porosity_air_filled | B49: [-] | C49: =P4_Source_porosity_total - P4_Source_porosity_water_filled -> 0
A50: Distribution | C50: constant
A51: P4_Source_porosity_air_filled_param1
A52: P4_Source_porosity_air_filled_param2
A53: P4_Source_porosity_air_filled_param3
A56: P4_Source_dry_bulk_density | B56: kg/m3
A57: Distribution | C57: constant
A58: P4_Source_dry_bulk_density_param1
A59: P4_Source_dry_bulk_density_param2
A60: P4_Source_dry_bulk_density_param3
A63: P4_Source_fraction_organic_carbon | B63: [-]
A64: Distribution | C64: constant
A65: P4_Source_fraction_organic_carbon_param1
A66: P4_Source_fraction_organic_carbon_param2
A67: P4_Source_fraction_organic_carbon_param3
A71: Source Contaminant Information
A73: Source determinand names | C73: =IF( ISTEXT( (Contaminants_Source_determinand_names Contaminants_Species1)), (Contaminants_Source_determinand_names Contaminants_Species1), "Undefined" ) -> Arsenic | D73: =IF( ISTEXT( (Contaminants_Source_determinand_names Contaminants_Species2)), (Contaminants_Source_determinand_names Contaminants_Species2), "Undefined" ) -> Nickel | E73: =IF( ISTEXT( (Contaminants_Source_determinand_names Contaminants_Species3)), (Contaminants_Source_determinand_names Contaminants_Species3), "Undefined" ) -> Sulphate | F73: =IF( ISTEXT( (Contaminants_Source_determinand_names Contaminants_Species4)), (Contaminants_Source_determinand_names Contaminants_Species4), "Undefined" ) -> Benzene | G73: =IF( ISTEXT( (Contaminants_Source_determinand_names Contaminants_Species5)), (Contaminants_Source_determinand_names Contaminants_Species5), "Undefined" ) -> BaP | H73: =IF( ISTEXT( (Contaminants_Source_determinand_names Contaminants_Species6)), (Contaminants_Source_determinand_names Contaminants_Species6), "Undefined" ) -> Undefined | I73: =IF( ISTEXT( (Contaminants_Source_determinand_names Contaminants_Species7)), (Contaminants_Source_determinand_names Contaminants_Species7), "Undefined" ) -> Undefined | J73: =IF( ISTEXT( (Contaminants_Source_determinand_names Contaminants_Species8)), (Contaminants_Source_determinand_names Contaminants_Species8), "Undefined" ) -> Undefined
A75: P4_Pore_water_concentration | B75: mg/L | C75: 0.05 | D75: 0.04 | E75: 100 | F75: 0.6 | G75: 10
A76: Distribution | C76: constant | D76: constant | E76: constant | F76: constant | G76: constant | H76: constant | I76: constant | J76: constant
A77: P4_Pore_water_concentration_param1
A78: P4_Pore_water_concentration_param2
A79: P4_Pore_water_concentration_param3
A82: P4_Leaching_test_concentration | B82: mg/L
A83: Distribution | C83: constant | D83: constant | E83: constant | F83: constant | G83: constant | H83: constant | I83: constant | J83: constant
A84: P4_Leaching_test_concentration_param1
A85: P4_Leaching_test_concentration_param2
A86: P4_Leaching_test_concentration_param3
A89: P4_Soil_contaminant_concentration | B89: mg/kg
A90: Distribution | C90: constant | D90: constant | E90: constant | F90: constant | G90: constant | H90: constant | I90: constant | J90: constant
A91: P4_Soil_contaminant_concentration_param1
A92: P4_Soil_contaminant_concentration_param2
A93: P4_Soil_contaminant_concentration_param3
A96: P4_Source_solid_water_partitioning_coefficient_Kd | B96: L/kg | C96: =(Contaminants_Organic_Carbon_Water_Partition_Coefficient_Koc Contaminants_Species1) * ( P4_Source_fraction_organic_carbon) -> 0 | D96: =(Contaminants_Organic_Carbon_Water_Partition_Coefficient_Koc Contaminants_Species2) * ( P4_Source_fraction_organic_carbon) -> 0 | E96: =(Contaminants_Organic_Carbon_Water_Partition_Coefficient_Koc Contaminants_Species3) * ( P4_Source_fraction_organic_carbon) -> 0 | F96: =(Contaminants_Organic_Carbon_Water_Partition_Coefficient_Koc Contaminants_Species4) * ( P4_Source_fraction_organic_carbon) -> 0 | G96: =(Contaminants_Organic_Carbon_Water_Partition_Coefficient_Koc Contaminants_Species5) * ( P4_Source_fraction_organic_carbon) -> 0 | H96: =(Contaminants_Organic_Carbon_Water_Partition_Coefficient_Koc Contaminants_Species6) * ( P4_Source_fraction_organic_carbon) -> 0 | I96: =(Contaminants_Organic_Carbon_Water_Partition_Coefficient_Koc Contaminants_Species7) * ( P4_Source_fraction_organic_carbon) -> 0 | J96: =(Contaminants_Organic_Carbon_Water_Partition_Coefficient_Koc Contaminants_Species8) * ( P4_Source_fraction_organic_carbon) -> 0
A97: Distribution | C97: constant | D97: constant | E97: constant | F97: constant | G97: constant | H97: constant | I97: constant | J97: constant
A98: P4_Source_solid_water_partitioning_coefficient_Kd_param1
A99: P4_Source_solid_water_partitioning_coefficient_Kd_param2
A100: P4_Source_solid_water_partitioning_coefficient_Kd_param3
A103: P4_Initial_inventory | B103: kg | C103: =0.001 * (P4_Pore_water_concentration) * (P4_Source_field_capacity) * (P4_Source_volume) -> 8.1349875 | D103: 6.50799 | E103: 16269.975 | F103: 97.61985 | G103: 1626.9975 | H103: 0 | I103: 0 | J103: 0
A104: Distribution | C104: constant | D104: constant | E104: constant | F104: constant | G104: constant | H104: constant | I104: constant | J104: constant
A105: P4_Initial_inventory_param1
A106: P4_Initial_inventory_param2
A107: P4_Initial_inventory_param3
A110: P4_Kappa_slope_value_m | B110: kg/L
A111: Distribution | C111: constant | D111: constant | E111: constant | F111: constant | G111: constant | H111: constant | I111: constant | J111: constant
A112: P4_Kappa_slope_value_m_param1
A113: P4_Kappa_slope_value_m_param2
A114: P4_Kappa_slope_value_m_param3
A117: P4_Kappa_intercept_value_c | B117: kg/L
A118: Distribution | C118: constant | D118: constant | E118: constant | F118: constant | G118: constant | H118: constant | I118: constant | J118: constant
A119: P4_Kappa_intercept_value_c_param1
A120: P4_Kappa_intercept_value_c_param2
A121: P4_Kappa_intercept_value_c_param3
A124: P4_Kappa_Value | B124: kg/L | C124: =IF(AND(ISNUMBER(P4_Kappa_slope_value_m),ISNUMBER(P4_Kappa_intercept_value_c),ISNUMBER(P4_Input_concentration)), IF(P4_Input_concentration>0,MAX(0,P4_Kappa_slope_value_m * LN(1000 * P4_Input_concentration) + P4_Kappa_intercept_value_c),""),"Not-used") -> Not-used | D124: Not-used | E124: Not-used | F124: Not-used | G124: Not-used | H124: Not-used | I124: Not-used | J124: Not-used
A125: Distribution | C125: constant | D125: constant | E125: constant | F125: constant | G125: constant | H125: constant | I125: constant | J125: constant
A126: P4_Kappa_Value_param1
A127: P4_Kappa_Value_param2
A128: P4_Kappa_Value_param3
A131: P4_Input_concentration | B131: mg/L | C131: =(P4_Pore_water_concentration) -> 0.05 | D131: 0.04 | E131: 100 | F131: 0.6 | G131: 10 | H131: 0 | I131: 0 | J131: 0

Sheet P1 2 3 (hidden)
A1: SOURCE CONCENTRATIONS: P1 2 3
A3: Source Data Options | B3: Source Type
A11: Target Standard
A13: Select which Quality Standard (defined on the Contaminants sheet) to apply
A14: Not Specified
A17: Source Geometry
A19: P1_2_3_Source_length | B19: 445 | C19: m
A20: P1_2_3_Source_width | B20: 619 | C20: m
A21: P1_2_3_Source_area | B21: 292443 | C21: m2
A22: P1_2_3_Source_thickness | B22: 9 | C22: m
A23: P1_2_3_Source_volume | B23: =P1_2_3_Source_area * P1_2_3_Source_thickness -> 2631987 | C23: m3
A26: General Source Properties
A28: P1_2_3_Source_field_capacity | B28: [-] | C28: 0.25
A29: Distribution | C29: constant
A30: P1_2_3_Source_field_capacity_param1
A31: P1_2_3_Source_field_capacity_param2
A32: P1_2_3_Source_field_capacity_param3
A35: P1_2_3_Source_porosity_total | B35: [-]
A36: Distribution | C36: constant
A37: P1_2_3_Source_porosity_total_param1
A38: P1_2_3_Source_porosity_total_param2
A39: P1_2_3_Source_porosity_total_param3
A42: P1_2_3_Source_porosity_water_filled | B42: [-]
A43: Distribution | C43: constant
A44: P1_2_3_Source_porosity_water_filled_param1
A45: P1_2_3_Source_porosity_water_filled_param2
A46: P1_2_3_Source_porosity_water_filled_param3
A49: P1_2_3_Source_porosity_air_filled | B49: [-] | C49: =P1_2_3_Source_porosity_total - P1_2_3_Source_porosity_water_filled -> 0
A50: Distribution | C50: constant
A51: P1_2_3_Source_porosity_air_filled_param1
A52: P1_2_3_Source_porosity_air_filled_param2
A53: P1_2_3_Source_porosity_air_filled_param3
A56: P1_2_3_Source_dry_bulk_density | B56: kg/m3
A57: Distribution | C57: constant
A58: P1_2_3_Source_dry_bulk_density_param1
A59: P1_2_3_Source_dry_bulk_density_param2
A60: P1_2_3_Source_dry_bulk_density_param3
A63: P1_2_3_Source_fraction_organic_carbon | B63: [-]
A64: Distribution | C64: constant
A65: P1_2_3_Source_fraction_organic_carbon_param1
A66: P1_2_3_Source_fraction_organic_carbon_param2
A67: P1_2_3_Source_fraction_organic_carbon_param3
A71: Source Contaminant Information
A73: Source determinand names | C73: =IF( ISTEXT( (Contaminants_Source_determinand_names Contaminants_Species1)), (Contaminants_Source_determinand_names Contaminants_Species1), "Undefined" ) -> Arsenic | D73: =IF( ISTEXT( (Contaminants_Source_determinand_names Contaminants_Species2)), (Contaminants_Source_determinand_names Contaminants_Species2), "Undefined" ) -> Nickel | E73: =IF( ISTEXT( (Contaminants_Source_determinand_names Contaminants_Species3)), (Contaminants_Source_determinand_names Contaminants_Species3), "Undefined" ) -> Sulphate | F73: =IF( ISTEXT( (Contaminants_Source_determinand_names Contaminants_Species4)), (Contaminants_Source_determinand_names Contaminants_Species4), "Undefined" ) -> Benzene | G73: =IF( ISTEXT( (Contaminants_Source_determinand_names Contaminants_Species5)), (Contaminants_Source_determinand_names Contaminants_Species5), "Undefined" ) -> BaP | H73: =IF( ISTEXT( (Contaminants_Source_determinand_names Contaminants_Species6)), (Contaminants_Source_determinand_names Contaminants_Species6), "Undefined" ) -> Undefined | I73: =IF( ISTEXT( (Contaminants_Source_determinand_names Contaminants_Species7)), (Contaminants_Source_determinand_names Contaminants_Species7), "Undefined" ) -> Undefined | J73: =IF( ISTEXT( (Contaminants_Source_determinand_names Contaminants_Species8)), (Contaminants_Source_determinand_names Contaminants_Species8), "Undefined" ) -> Undefined
A75: P1_2_3_Pore_water_concentration | B75: mg/L | C75: 0.05 | D75: 0.04 | E75: 100 | F75: 0.6 | G75: 10
A76: Distribution | C76: constant | D76: constant | E76: constant | F76: constant | G76: constant | H76: constant | I76: constant | J76: constant
A77: P1_2_3_Pore_water_concentration_param1
A78: P1_2_3_Pore_water_concentration_param2
A79: P1_2_3_Pore_water_concentration_param3
A82: P1_2_3_Leaching_test_concentration | B82: mg/L
A83: Distribution | C83: constant | D83: constant | E83: constant | F83: constant | G83: constant | H83: constant | I83: constant | J83: constant
A84: P1_2_3_Leaching_test_concentration_param1
A85: P1_2_3_Leaching_test_concentration_param2
A86: P1_2_3_Leaching_test_concentration_param3
A89: P1_2_3_Soil_contaminant_concentration | B89: mg/kg
A90: Distribution | C90: constant | D90: constant | E90: constant | F90: constant | G90: constant | H90: constant | I90: constant | J90: constant
A91: P1_2_3_Soil_contaminant_concentration_param1
A92: P1_2_3_Soil_contaminant_concentration_param2
A93: P1_2_3_Soil_contaminant_concentration_param3
A96: P1_2_3_Source_solid_water_partitioning_coefficient_Kd | B96: L/kg | C96: =(Contaminants_Organic_Carbon_Water_Partition_Coefficient_Koc Contaminants_Species1) * ( P1_2_3_Source_fraction_organic_carbon) -> 0 | D96: =(Contaminants_Organic_Carbon_Water_Partition_Coefficient_Koc Contaminants_Species2) * ( P1_2_3_Source_fraction_organic_carbon) -> 0 | E96: =(Contaminants_Organic_Carbon_Water_Partition_Coefficient_Koc Contaminants_Species3) * ( P1_2_3_Source_fraction_organic_carbon) -> 0 | F96: =(Contaminants_Organic_Carbon_Water_Partition_Coefficient_Koc Contaminants_Species4) * ( P1_2_3_Source_fraction_organic_carbon) -> 0 | G96: =(Contaminants_Organic_Carbon_Water_Partition_Coefficient_Koc Contaminants_Species5) * ( P1_2_3_Source_fraction_organic_carbon) -> 0 | H96: =(Contaminants_Organic_Carbon_Water_Partition_Coefficient_Koc Contaminants_Species6) * ( P1_2_3_Source_fraction_organic_carbon) -> 0 | I96: =(Contaminants_Organic_Carbon_Water_Partition_Coefficient_Koc Contaminants_Species7) * ( P1_2_3_Source_fraction_organic_carbon) -> 0 | J96: =(Contaminants_Organic_Carbon_Water_Partition_Coefficient_Koc Contaminants_Species8) * ( P1_2_3_Source_fraction_organic_carbon) -> 0
A97: Distribution | C97: constant | D97: constant | E97: constant | F97: constant | G97: constant | H97: constant | I97: constant | J97: constant
A98: P1_2_3_Source_solid_water_partitioning_coefficient_Kd_param1
A99: P1_2_3_Source_solid_water_partitioning_coefficient_Kd_param2
A100: P1_2_3_Source_solid_water_partitioning_coefficient_Kd_param3
A103: P1_2_3_Initial_inventory | B103: kg | C103: =0.001 * (P1_2_3_Pore_water_concentration) * (P1_2_3_Source_field_capacity) * (P1_2_3_Source_volume) -> 32.8998375 | D103: 26.31987 | E103: 65799.675 | F103: 394.79805 | G103: 6579.9675 | H103: 0 | I103: 0 | J103: 0
A104: Distribution | C104: constant | D104: constant | E104: constant | F104: constant | G104: constant | H104: constant | I104: constant | J104: constant
A105: P1_2_3_Initial_inventory_param1
A106: P1_2_3_Initial_inventory_param2
A107: P1_2_3_Initial_inventory_param3
A110: P1_2_3_Kappa_slope_value_m | B110: kg/L
A111: Distribution | C111: constant | D111: constant | E111: constant | F111: constant | G111: constant | H111: constant | I111: constant | J111: constant
A112: P1_2_3_Kappa_slope_value_m_param1
A113: P1_2_3_Kappa_slope_value_m_param2
A114: P1_2_3_Kappa_slope_value_m_param3
A117: P1_2_3_Kappa_intercept_value_c | B117: kg/L
A118: Distribution | C118: constant | D118: constant | E118: constant | F118: constant | G118: constant | H118: constant | I118: constant | J118: constant
A119: P1_2_3_Kappa_intercept_value_c_param1
A120: P1_2_3_Kappa_intercept_value_c_param2
A121: P1_2_3_Kappa_intercept_value_c_param3
A124: P1_2_3_Kappa_Value | B124: kg/L | C124: =IF(AND(ISNUMBER(P1_2_3_Kappa_slope_value_m),ISNUMBER(P1_2_3_Kappa_intercept_value_c),ISNUMBER(P1_2_3_Input_concentration)), IF(P1_2_3_Input_concentration>0,MAX(0,P1_2_3_Kappa_slope_value_m * LN(1000 * P1_2_3_Input_concentration) + P1_2_3_Kappa_intercept_value_c),""),"Not-used") -> Not-used | D124: Not-used | E124: Not-used | F124: Not-used | G124: Not-used | H124: Not-used | I124: Not-used | J124: Not-used
A125: Distribution | C125: constant | D125: constant | E125: constant | F125: constant | G125: constant | H125: constant | I125: constant | J125: constant
A126: P1_2_3_Kappa_Value_param1
A127: P1_2_3_Kappa_Value_param2
A128: P1_2_3_Kappa_Value_param3
A131: P1_2_3_Input_concentration | B131: mg/L | C131: =(P1_2_3_Pore_water_concentration) -> 0.05 | D131: 0.04 | E131: 100 | F131: 0.6 | G131: 10 | H131: 0 | I131: 0 | J131: 0

Sheet AGB (hidden)
A1: SOURCE CONCENTRATIONS: AGB
A3: Source Data Options | B3: Source Type
A11: Target Standard
A13: Select which Quality Standard (defined on the Contaminants sheet) to apply
A14: Not Specified
A17: Source Geometry
A19: AGB_Source_length | C19: m
A20: AGB_Source_width | C20: m
A21: AGB_Source_area | B21: =AGB_Source_length * AGB_Source_width -> 0 | C21: m2
A22: AGB_Source_thickness | C22: m
A23: AGB_Source_volume | B23: 333249 | C23: m3
A26: General Source Properties
A28: AGB_Source_field_capacity | B28: [-] | C28: 0.25
A29: Distribution | C29: constant
A30: AGB_Source_field_capacity_param1
A31: AGB_Source_field_capacity_param2
A32: AGB_Source_field_capacity_param3
A35: AGB_Source_porosity_total | B35: [-]
A36: Distribution | C36: constant
A37: AGB_Source_porosity_total_param1
A38: AGB_Source_porosity_total_param2
A39: AGB_Source_porosity_total_param3
A42: AGB_Source_porosity_water_filled | B42: [-]
A43: Distribution | C43: constant
A44: AGB_Source_porosity_water_filled_param1
A45: AGB_Source_porosity_water_filled_param2
A46: AGB_Source_porosity_water_filled_param3
A49: AGB_Source_porosity_air_filled | B49: [-] | C49: =AGB_Source_porosity_total - AGB_Source_porosity_water_filled -> 0
A50: Distribution | C50: constant
A51: AGB_Source_porosity_air_filled_param1
A52: AGB_Source_porosity_air_filled_param2
A53: AGB_Source_porosity_air_filled_param3
A56: AGB_Source_dry_bulk_density | B56: kg/m3
A57: Distribution | C57: constant
A58: AGB_Source_dry_bulk_density_param1
A59: AGB_Source_dry_bulk_density_param2
A60: AGB_Source_dry_bulk_density_param3
A63: AGB_Source_fraction_organic_carbon | B63: [-]
A64: Distribution | C64: constant
A65: AGB_Source_fraction_organic_carbon_param1
A66: AGB_Source_fraction_organic_carbon_param2
A67: AGB_Source_fraction_organic_carbon_param3
A71: Source Contaminant Information
A73: Source determinand names | C73: =IF( ISTEXT( (Contaminants_Source_determinand_names Contaminants_Species1)), (Contaminants_Source_determinand_names Contaminants_Species1), "Undefined" ) -> Arsenic | D73: =IF( ISTEXT( (Contaminants_Source_determinand_names Contaminants_Species2)), (Contaminants_Source_determinand_names Contaminants_Species2), "Undefined" ) -> Nickel | E73: =IF( ISTEXT( (Contaminants_Source_determinand_names Contaminants_Species3)), (Contaminants_Source_determinand_names Contaminants_Species3), "Undefined" ) -> Sulphate | F73: =IF( ISTEXT( (Contaminants_Source_determinand_names Contaminants_Species4)), (Contaminants_Source_determinand_names Contaminants_Species4), "Undefined" ) -> Benzene | G73: =IF( ISTEXT( (Contaminants_Source_determinand_names Contaminants_Species5)), (Contaminants_Source_determinand_names Contaminants_Species5), "Undefined" ) -> BaP | H73: =IF( ISTEXT( (Contaminants_Source_determinand_names Contaminants_Species6)), (Contaminants_Source_determinand_names Contaminants_Species6), "Undefined" ) -> Undefined | I73: =IF( ISTEXT( (Contaminants_Source_determinand_names Contaminants_Species7)), (Contaminants_Source_determinand_names Contaminants_Species7), "Undefined" ) -> Undefined | J73: =IF( ISTEXT( (Contaminants_Source_determinand_names Contaminants_Species8)), (Contaminants_Source_determinand_names Contaminants_Species8), "Undefined" ) -> Undefined
A75: AGB_Pore_water_concentration | B75: mg/L | C75: 0.05 | D75: 0.04 | E75: 100 | F75: 0.6 | G75: 10
A76: Distribution | C76: constant | D76: constant | E76: constant | F76: constant | G76: constant | H76: constant | I76: constant | J76: constant
A77: AGB_Pore_water_concentration_param1
A78: AGB_Pore_water_concentration_param2
A79: AGB_Pore_water_concentration_param3
A82: AGB_Leaching_test_concentration | B82: mg/L
A83: Distribution | C83: constant | D83: constant | E83: constant | F83: constant | G83: constant | H83: constant | I83: constant | J83: constant
A84: AGB_Leaching_test_concentration_param1
A85: AGB_Leaching_test_concentration_param2
A86: AGB_Leaching_test_concentration_param3
A89: AGB_Soil_contaminant_concentration | B89: mg/kg
A90: Distribution | C90: constant | D90: constant | E90: constant | F90: constant | G90: constant | H90: constant | I90: constant | J90: constant
A91: AGB_Soil_contaminant_concentration_param1
A92: AGB_Soil_contaminant_concentration_param2
A93: AGB_Soil_contaminant_concentration_param3
A96: AGB_Source_solid_water_partitioning_coefficient_Kd | B96: L/kg | C96: =(Contaminants_Organic_Carbon_Water_Partition_Coefficient_Koc Contaminants_Species1) * ( AGB_Source_fraction_organic_carbon) -> 0 | D96: =(Contaminants_Organic_Carbon_Water_Partition_Coefficient_Koc Contaminants_Species2) * ( AGB_Source_fraction_organic_carbon) -> 0 | E96: =(Contaminants_Organic_Carbon_Water_Partition_Coefficient_Koc Contaminants_Species3) * ( AGB_Source_fraction_organic_carbon) -> 0 | F96: =(Contaminants_Organic_Carbon_Water_Partition_Coefficient_Koc Contaminants_Species4) * ( AGB_Source_fraction_organic_carbon) -> 0 | G96: =(Contaminants_Organic_Carbon_Water_Partition_Coefficient_Koc Contaminants_Species5) * ( AGB_Source_fraction_organic_carbon) -> 0 | H96: =(Contaminants_Organic_Carbon_Water_Partition_Coefficient_Koc Contaminants_Species6) * ( AGB_Source_fraction_organic_carbon) -> 0 | I96: =(Contaminants_Organic_Carbon_Water_Partition_Coefficient_Koc Contaminants_Species7) * ( AGB_Source_fraction_organic_carbon) -> 0 | J96: =(Contaminants_Organic_Carbon_Water_Partition_Coefficient_Koc Contaminants_Species8) * ( AGB_Source_fraction_organic_carbon) -> 0
A97: Distribution | C97: constant | D97: constant | E97: constant | F97: constant | G97: constant | H97: constant | I97: constant | J97: constant
A98: AGB_Source_solid_water_partitioning_coefficient_Kd_param1
A99: AGB_Source_solid_water_partitioning_coefficient_Kd_param2
A100: AGB_Source_solid_water_partitioning_coefficient_Kd_param3
A103: AGB_Initial_inventory | B103: kg | C103: =0.001 * (AGB_Pore_water_concentration) * (AGB_Source_field_capacity) * (AGB_Source_volume) -> 4.1656125 | D103: 3.33249 | E103: 8331.225 | F103: 49.98735 | G103: 833.1225 | H103: 0 | I103: 0 | J103: 0
A104: Distribution | C104: constant | D104: constant | E104: constant | F104: constant | G104: constant | H104: constant | I104: constant | J104: constant
A105: AGB_Initial_inventory_param1
A106: AGB_Initial_inventory_param2
A107: AGB_Initial_inventory_param3
A110: AGB_Kappa_slope_value_m | B110: kg/L
A111: Distribution | C111: constant | D111: constant | E111: constant | F111: constant | G111: constant | H111: constant | I111: constant | J111: constant
A112: AGB_Kappa_slope_value_m_param1
A113: AGB_Kappa_slope_value_m_param2
A114: AGB_Kappa_slope_value_m_param3
A117: AGB_Kappa_intercept_value_c | B117: kg/L
A118: Distribution | C118: constant | D118: constant | E118: constant | F118: constant | G118: constant | H118: constant | I118: constant | J118: constant
A119: AGB_Kappa_intercept_value_c_param1
A120: AGB_Kappa_intercept_value_c_param2
A121: AGB_Kappa_intercept_value_c_param3
A124: AGB_Kappa_Value | B124: kg/L | C124: =IF(AND(ISNUMBER(AGB_Kappa_slope_value_m),ISNUMBER(AGB_Kappa_intercept_value_c),ISNUMBER(AGB_Input_concentration)), IF(AGB_Input_concentration>0,MAX(0,AGB_Kappa_slope_value_m * LN(1000 * AGB_Input_concentration) + AGB_Kappa_intercept_value_c),""),"Not-used") -> Not-used | D124: Not-used | E124: Not-used | F124: Not-used | G124: Not-used | H124: Not-used | I124: Not-used | J124: Not-used
A125: Distribution | C125: constant | D125: constant | E125: constant | F125: constant | G125: constant | H125: constant | I125: constant | J125: constant
A126: AGB_Kappa_Value_param1
A127: AGB_Kappa_Value_param2
A128: AGB_Kappa_Value_param3
A131: AGB_Input_concentration | B131: mg/L | C131: =(AGB_Pore_water_concentration) -> 0.05 | D131: 0.04 | E131: 100 | F131: 0.6 | G131: 10 | H131: 0 | I131: 0 | J131: 0

Sheet Contaminants
A1: CONTAMINANT INFORMATION
D3: Species1 | E3: Species2 | F3: Species3 | G3: Species4 | H3: Species5 | I3: Species6 | J3: Species7 | K3: Species8
A4: Source determinand names | C4: 5 | D4: Arsenic | E4: Nickel | F4: Sulphate | G4: Benzene | H4: BaP
A7: Receptor Target Concentrations
B8: Name | D8: Values in mg/L
A9: Quality Standard 1 | B9: P1 2 3 | D9: 0.005 | E9: 0.004 | F9: 74 | G9: 0.001 | H9: 5e-08
A10: Quality Standard 2 | B10: P4 | D10: 0.005 | E10: 0.0185 | F10: 74 | G10: 0.001 | H10: 5e-08
A11: Quality Standard 3
A12: Quality Standard 4
B13: Not Specified
A15: Generic Contaminant Properties
A17: Contaminants_Solubility | B17: mg/L
A18: Distribution | D18: constant | E18: constant | F18: constant | G18: constant | H18: constant | I18: constant | J18: constant | K18: constant
A19: Contaminants_Solubility_param1
A20: Contaminants_Solubility_param2
A21: Contaminants_Solubility_param3
A24: Contaminants_Henrys_Law_Constant | B24: [-]
A25: Distribution | D25: constant | E25: constant | F25: constant | G25: constant | H25: constant | I25: constant | J25: constant | K25: constant
A26: Contaminants_Henrys_Law_Constant_param1
A27: Contaminants_Henrys_Law_Constant_param2
A28: Contaminants_Henrys_Law_Constant_param3
A31: Contaminants_Organic_Carbon_Water_Partition_Coefficient_Koc | B31: L/kg | G31: 67.6 | H31: 1170000
A32: Distribution | D32: constant | E32: constant | F32: constant | G32: constant | H32: constant | I32: constant | J32: constant | K32: constant
A33: Contaminants_Organic_Carbon_Water_Partition_Coefficient_Koc_param1
A34: Contaminants_Organic_Carbon_Water_Partition_Coefficient_Koc_param2
A35: Contaminants_Organic_Carbon_Water_Partition_Coefficient_Koc_param3
A38: Contaminants_Free_Water_Diffusion_Coefficient | B38: m2/s | D38: 9.05e-10 | E38: 1e-09 | F38: 2.8e-11 | G38: 6.9e-10 | H38: 3.67e-10
A39: Distribution | D39: constant | E39: constant | F39: constant | G39: constant | H39: constant | I39: constant | J39: constant | K39: constant
A40: Contaminants_Free_Water_Diffusion_Coefficient_param1
A41: Contaminants_Free_Water_Diffusion_Coefficient_param2
A42: Contaminants_Free_Water_Diffusion_Coefficient_param3

Sheet Hydrogeology
A1: HYDROGEOLOGICAL UNITS
A3: Hydrogeological Units | C3: AGB | D3: Unsat SG | E3: Sat SG | F3: Un Sat SG 2
A5: Hydrogeology_Unit_Thickness | B5: m | C5: 1 | D5: 0.5 | E5: 11 | F5: 11
A6: Distribution | C6: constant | D6: constant | E6: constant | F6: constant | G6: constant | H6: constant | I6: constant | J6: constant | K6: constant | L6: constant | M6: constant | N6: constant | O6: constant | P6: constant | Q6: constant | R6: constant
A7: Hydrogeology_Unit_Thickness_param1
A8: Hydrogeology_Unit_Thickness_param2
A9: Hydrogeology_Unit_Thickness_param3
A12: Hydrogeology_Log_Hydraulic_Conductivity | B12: log(m/s)
A13: Distribution | C13: constant | D13: constant | E13: constant | F13: constant | G13: constant | H13: constant | I13: constant | J13: constant | K13: constant | L13: constant | M13: constant | N13: constant | O13: constant | P13: constant | Q13: constant | R13: constant
A14: Hydrogeology_Log_Hydraulic_Conductivity_param1
A15: Hydrogeology_Log_Hydraulic_Conductivity_param2
A16: Hydrogeology_Log_Hydraulic_Conductivity_param3
A19: Hydrogeology_Hydraulic_Conductivity | B19: m/s | C19: 1e-08 | D19: 0.00012 | E19: 0.00045 | F19: 0.00045 | G19: =POWER(10, (Hydrogeology_Log_Hydraulic_Conductivity)) -> 1 | H19: 1 | I19: 1 | J19: 1 | K19: 1 | L19: 1 | M19: 1 | N19: 1 | O19: 1 | P19: 1 | Q19: 1 | R19: 1
A20: Distribution | C20: constant | D20: constant | E20: constant | F20: constant | G20: constant | H20: constant | I20: constant | J20: constant | K20: constant | L20: constant | M20: constant | N20: constant | O20: constant | P20: constant | Q20: constant | R20: constant
A21: Hydrogeology_Hydraulic_Conductivity_param1
A22: Hydrogeology_Hydraulic_Conductivity_param2
A23: Hydrogeology_Hydraulic_Conductivity_param3
A26: Hydrogeology_Head | B26: m
A27: Distribution | C27: constant | D27: constant | E27: constant | F27: constant | G27: constant | H27: constant | I27: constant | J27: constant | K27: constant | L27: constant | M27: constant | N27: constant | O27: constant | P27: constant | Q27: constant | R27: constant
A28: Hydrogeology_Head_param1
A29: Hydrogeology_Head_param2
A30: Hydrogeology_Head_param3
A33: Hydrogeology_Hydraulic_Gradient | B33: [-] | C33: 1 | D33: 1 | E33: 0.0027 | F33: 0.0027
A34: Distribution | C34: constant | D34: constant | E34: constant | F34: constant | G34: constant | H34: constant | I34: constant | J34: constant | K34: constant | L34: constant | M34: constant | N34: constant | O34: constant | P34: constant | Q34: constant | R34: constant
A35: Hydrogeology_Hydraulic_Gradient_param1
A36: Hydrogeology_Hydraulic_Gradient_param2
A37: Hydrogeology_Hydraulic_Gradient_param3
A40: Hydrogeology_Porosity | B40: [-] | C40: 0.4 | D40: 0.2 | E40: 0.2 | F40: 0.2
A41: Distribution | C41: constant | D41: constant | E41: constant | F41: constant | G41: constant | H41: constant | I41: constant | J41: constant | K41: constant | L41: constant | M41: constant | N41: constant | O41: constant | P41: constant | Q41: constant | R41: constant
A42: Hydrogeology_Porosity_param1
A43: Hydrogeology_Porosity_param2
A44: Hydrogeology_Porosity_param3
A47: Hydrogeology_Velocity | B47: m/s | C47: =(Hydrogeology_Hydraulic_Conductivity) * (Hydrogeology_Hydraulic_Gradient) / (Hydrogeology_Porosity) -> 2.5e-08 | D47: 0.0006 | E47: 6.075e-06 | F47: 6.075e-06
A48: Distribution | C48: constant | D48: constant | E48: constant | F48: constant | G48: constant | H48: constant | I48: constant | J48: constant | K48: constant | L48: constant | M48: constant | N48: constant | O48: constant | P48: constant | Q48: constant | R48: constant
A49: Hydrogeology_Velocity_param1
A50: Hydrogeology_Velocity_param2
A51: Hydrogeology_Velocity_param3
A54: Hydrogeology_Tortuosity | B54: [-] | C54: 5 | D54: 5 | E54: 5 | F54: 5
A55: Distribution | C55: constant | D55: constant | E55: constant | F55: constant | G55: constant | H55: constant | I55: constant | J55: constant | K55: constant | L55: constant | M55: constant | N55: constant | O55: constant | P55: constant | Q55: constant | R55: constant
A56: Hydrogeology_Tortuosity_param1
A57: Hydrogeology_Tortuosity_param2
A58: Hydrogeology_Tortuosity_param3

Sheet Attenuation
A1: ATTENUATION PARAMETERS
A3: Hydrogeological Units | C3: AGB | D3: Unsat SG | E3: Sat SG | F3: Un Sat SG 2
A5: General properties
A7: Attenuation_Dry_bulk_density | B7: kg/m3 | C7: 1600 | D7: 1800 | E7: 1800 | F7: 1800
A8: Distribution | C8: constant | D8: constant | E8: constant | F8: constant | G8: constant | H8: constant | I8: constant | J8: constant | K8: constant | L8: constant | M8: constant | N8: constant | O8: constant | P8: constant | Q8: constant | R8: constant
A9: Attenuation_Dry_bulk_density_param1
A10: Attenuation_Dry_bulk_density_param2
A11: Attenuation_Dry_bulk_density_param3
A14: Attenuation_Fraction_organic_carbon | B14: [-] | C14: 0.05 | D14: 0.002 | E14: 0.002 | F14: 0.002
A15: Distribution | C15: constant | D15: constant | E15: constant | F15: constant | G15: constant | H15: constant | I15: constant | J15: constant | K15: constant | L15: constant | M15: constant | N15: constant | O15: constant | P15: constant | Q15: constant | R15: constant
A16: Attenuation_Fraction_organic_carbon_param1
A17: Attenuation_Fraction_organic_carbon_param2
A18: Attenuation_Fraction_organic_carbon_param3
A22: Contaminant specific parameters
A24: =IF((Contaminants_Source_determinand_names Contaminants_Species1)=0,"Undefined",(Contaminants_Source_determinand_names Contaminants_Species1)) -> Arsenic
A26: Attenuation_Partition_Coefficient_Kd_Species_1 | B26: L/kg | C26: 2222 | D26: 2222 | E26: 2222 | F26: 2222 | G26: =(Attenuation_Fraction_organic_carbon) * (Contaminants_Organic_Carbon_Water_Partition_Coefficient_Koc Contaminants_Species1) -> 0 | H26: =(Attenuation_Fraction_organic_carbon) * (Contaminants_Organic_Carbon_Water_Partition_Coefficient_Koc Contaminants_Species1) -> 0 | I26: =(Attenuation_Fraction_organic_carbon) * (Contaminants_Organic_Carbon_Water_Partition_Coefficient_Koc Contaminants_Species1) -> 0 | J26: =(Attenuation_Fraction_organic_carbon) * (Contaminants_Organic_Carbon_Water_Partition_Coefficient_Koc Contaminants_Species1) -> 0 | K26: =(Attenuation_Fraction_organic_carbon) * (Contaminants_Organic_Carbon_Water_Partition_Coefficient_Koc Contaminants_Species1) -> 0 | L26: =(Attenuation_Fraction_organic_carbon) * (Contaminants_Organic_Carbon_Water_Partition_Coefficient_Koc Contaminants_Species1) -> 0 | M26: =(Attenuation_Fraction_organic_carbon) * (Contaminants_Organic_Carbon_Water_Partition_Coefficient_Koc Contaminants_Species1) -> 0 | N26: =(Attenuation_Fraction_organic_carbon) * (Contaminants_Organic_Carbon_Water_Partition_Coefficient_Koc Contaminants_Species1) -> 0 | O26: =(Attenuation_Fraction_organic_carbon) * (Contaminants_Organic_Carbon_Water_Partition_Coefficient_Koc Contaminants_Species1) -> 0 | P26: =(Attenuation_Fraction_organic_carbon) * (Contaminants_Organic_Carbon_Water_Partition_Coefficient_Koc Contaminants_Species1) -> 0 | Q26: =(Attenuation_Fraction_organic_carbon) * (Contaminants_Organic_Carbon_Water_Partition_Coefficient_Koc Contaminants_Species1) -> 0 | R26: =(Attenuation_Fraction_organic_carbon) * (Contaminants_Organic_Carbon_Water_Partition_Coefficient_Koc Contaminants_Species1) -> 0
A27: Distribution | C27: constant | D27: constant | E27: constant | F27: constant | G27: constant | H27: constant | I27: constant | J27: constant | K27: constant | L27: constant | M27: constant | N27: constant | O27: constant | P27: constant | Q27: constant | R27: constant
A28: Attenuation_Partition_Coefficient_Kd_Species_1_param1
A29: Attenuation_Partition_Coefficient_Kd_Species_1_param2
A30: Attenuation_Partition_Coefficient_Kd_Species_1_param3
A33: Attenuation_Retardation_Species_1 | B33: [-] | C33: =1 + 0.001 * (Attenuation_Partition_Coefficient_Kd_Species_1) * (Attenuation_Dry_bulk_density) / (Hydrogeology_Porosity Hydrogeology!$C:$C) -> 8889 | D33: =1 + 0.001 * (Attenuation_Partition_Coefficient_Kd_Species_1) * (Attenuation_Dry_bulk_density) / (Hydrogeology_Porosity Hydrogeology!$D:$D) -> 19999 | E33: =1 + 0.001 * (Attenuation_Partition_Coefficient_Kd_Species_1) * (Attenuation_Dry_bulk_density) / (Hydrogeology_Porosity Hydrogeology!$E:$E) -> 19999 | F33: =1 + 0.001 * (Attenuation_Partition_Coefficient_Kd_Species_1) * (Attenuation_Dry_bulk_density) / (Hydrogeology_Porosity Hydrogeology!$F:$F) -> 19999 | G33: =1 + 0.001 * (Attenuation_Partition_Coefficient_Kd_Species_1) * (Attenuation_Dry_bulk_density) / (Hydrogeology_Porosity Hydrogeology!$G:$G) ->  | H33: =1 + 0.001 * (Attenuation_Partition_Coefficient_Kd_Species_1) * (Attenuation_Dry_bulk_density) / (Hydrogeology_Porosity Hydrogeology!$H:$H) ->  | I33: =1 + 0.001 * (Attenuation_Partition_Coefficient_Kd_Species_1) * (Attenuation_Dry_bulk_density) / (Hydrogeology_Porosity Hydrogeology!$I:$I) ->  | J33: =1 + 0.001 * (Attenuation_Partition_Coefficient_Kd_Species_1) * (Attenuation_Dry_bulk_density) / (Hydrogeology_Porosity Hydrogeology!$J:$J) ->  | K33: =1 + 0.001 * (Attenuation_Partition_Coefficient_Kd_Species_1) * (Attenuation_Dry_bulk_density) / (Hydrogeology_Porosity Hydrogeology!$K:$K) ->  | L33: =1 + 0.001 * (Attenuation_Partition_Coefficient_Kd_Species_1) * (Attenuation_Dry_bulk_density) / (Hydrogeology_Porosity Hydrogeology!$L:$L) ->  | M33: =1 + 0.001 * (Attenuation_Partition_Coefficient_Kd_Species_1) * (Attenuation_Dry_bulk_density) / (Hydrogeology_Porosity Hydrogeology!$M:$M) ->  | N33: =1 + 0.001 * (Attenuation_Partition_Coefficient_Kd_Species_1) * (Attenuation_Dry_bulk_density) / (Hydrogeology_Porosity Hydrogeology!$N:$N) ->  | O33: =1 + 0.001 * (Attenuation_Partition_Coefficient_Kd_Species_1) * (Attenuation_Dry_bulk_density) / (Hydrogeology_Porosity Hydrogeology!$O:$O) ->  | P33: =1 + 0.001 * (Attenuation_Partition_Coefficient_Kd_Species_1) * (Attenuation_Dry_bulk_density) / (Hydrogeology_Porosity Hydrogeology!$P:$P) ->  | Q33: =1 + 0.001 * (Attenuation_Partition_Coefficient_Kd_Species_1) * (Attenuation_Dry_bulk_density) / (Hydrogeology_Porosity Hydrogeology!$Q:$Q) ->  | R33: =1 + 0.001 * (Attenuation_Partition_Coefficient_Kd_Species_1) * (Attenuation_Dry_bulk_density) / (Hydrogeology_Porosity Hydrogeology!$R:$R) -> 
A34: Distribution | C34: constant | D34: constant | E34: constant | F34: constant | G34: constant | H34: constant | I34: constant | J34: constant | K34: constant | L34: constant | M34: constant | N34: constant | O34: constant | P34: constant | Q34: constant | R34: constant
A35: Attenuation_Retardation_Species_1_param1
A36: Attenuation_Retardation_Species_1_param2
A37: Attenuation_Retardation_Species_1_param3
A40: Attenuation_Half_Life_Species_1 | B40: days | C40: No Decay | D40: No Decay | E40: No Decay | F40: No Decay | G40: No Decay | H40: No Decay | I40: No Decay | J40: No Decay | K40: No Decay | L40: No Decay | M40: No Decay | N40: No Decay | O40: No Decay | P40: No Decay | Q40: No Decay | R40: No Decay
A41: Distribution | C41: constant | D41: constant | E41: constant | F41: constant | G41: constant | H41: constant | I41: constant | J41: constant | K41: constant | L41: constant | M41: constant | N41: constant | O41: constant | P41: constant | Q41: constant | R41: constant
A42: Attenuation_Half_Life_Species_1_param1
A43: Attenuation_Half_Life_Species_1_param2
A44: Attenuation_Half_Life_Species_1_param3
A47: Attenuation_Decay_Coefficient_Species_1 | B47: 1/s | C47: =IF((_xlfn.SINGLE(Attenuation_Half_Life_Species_1))<>"No Decay", LN(2) / ((_xlfn.SINGLE(Attenuation_Half_Life_Species_1)) *_xlfn.SINGLE( s_per_day)),0) -> 0 | D47: 0 | E47: 0 | F47: 0 | G47: 0 | H47: 0 | I47: 0 | J47: 0 | K47: 0 | L47: 0 | M47: 0 | N47: 0 | O47: 0 | P47: 0 | Q47: 0 | R47: 0
A48: Distribution | C48: constant | D48: constant | E48: constant | F48: constant | G48: constant | H48: constant | I48: constant | J48: constant | K48: constant | L48: constant | M48: constant | N48: constant | O48: constant | P48: constant | Q48: constant | R48: constant
A49: Attenuation_Decay_Coefficient_Species_1_param1
A50: Attenuation_Decay_Coefficient_Species_1_param2
A51: Attenuation_Decay_Coefficient_Species_1_param3
A54: =IF((Contaminants_Source_determinand_names Contaminants_Species2)=0,"Undefined",(Contaminants_Source_determinand_names Contaminants_Species2)) -> Nickel
A56: Attenuation_Partition_Coefficient_Kd_Species_2 | B56: L/kg | C56: 270 | D56: 270 | E56: 270 | F56: 270 | G56: =(Attenuation_Fraction_organic_carbon) * (Contaminants_Organic_Carbon_Water_Partition_Coefficient_Koc Contaminants_Species2) -> 0 | H56: =(Attenuation_Fraction_organic_carbon) * (Contaminants_Organic_Carbon_Water_Partition_Coefficient_Koc Contaminants_Species2) -> 0 | I56: =(Attenuation_Fraction_organic_carbon) * (Contaminants_Organic_Carbon_Water_Partition_Coefficient_Koc Contaminants_Species2) -> 0 | J56: =(Attenuation_Fraction_organic_carbon) * (Contaminants_Organic_Carbon_Water_Partition_Coefficient_Koc Contaminants_Species2) -> 0 | K56: =(Attenuation_Fraction_organic_carbon) * (Contaminants_Organic_Carbon_Water_Partition_Coefficient_Koc Contaminants_Species2) -> 0 | L56: =(Attenuation_Fraction_organic_carbon) * (Contaminants_Organic_Carbon_Water_Partition_Coefficient_Koc Contaminants_Species2) -> 0 | M56: =(Attenuation_Fraction_organic_carbon) * (Contaminants_Organic_Carbon_Water_Partition_Coefficient_Koc Contaminants_Species2) -> 0 | N56: =(Attenuation_Fraction_organic_carbon) * (Contaminants_Organic_Carbon_Water_Partition_Coefficient_Koc Contaminants_Species2) -> 0 | O56: =(Attenuation_Fraction_organic_carbon) * (Contaminants_Organic_Carbon_Water_Partition_Coefficient_Koc Contaminants_Species2) -> 0 | P56: =(Attenuation_Fraction_organic_carbon) * (Contaminants_Organic_Carbon_Water_Partition_Coefficient_Koc Contaminants_Species2) -> 0 | Q56: =(Attenuation_Fraction_organic_carbon) * (Contaminants_Organic_Carbon_Water_Partition_Coefficient_Koc Contaminants_Species2) -> 0 | R56: =(Attenuation_Fraction_organic_carbon) * (Contaminants_Organic_Carbon_Water_Partition_Coefficient_Koc Contaminants_Species2) -> 0
A57: Distribution | C57: constant | D57: constant | E57: constant | F57: constant | G57: constant | H57: constant | I57: constant | J57: constant | K57: constant | L57: constant | M57: constant | N57: constant | O57: constant | P57: constant | Q57: constant | R57: constant
A58: Attenuation_Partition_Coefficient_Kd_Species_2_param1
A59: Attenuation_Partition_Coefficient_Kd_Species_2_param2
A60: Attenuation_Partition_Coefficient_Kd_Species_2_param3
A63: Attenuation_Retardation_Species_2 | B63: [-] | C63: =1 + 0.001 * (Attenuation_Partition_Coefficient_Kd_Species_2) * (Attenuation_Dry_bulk_density) / (Hydrogeology_Porosity Hydrogeology!$C:$C) -> 1081 | D63: =1 + 0.001 * (Attenuation_Partition_Coefficient_Kd_Species_2) * (Attenuation_Dry_bulk_density) / (Hydrogeology_Porosity Hydrogeology!$D:$D) -> 2431 | E63: =1 + 0.001 * (Attenuation_Partition_Coefficient_Kd_Species_2) * (Attenuation_Dry_bulk_density) / (Hydrogeology_Porosity Hydrogeology!$E:$E) -> 2431 | F63: =1 + 0.001 * (Attenuation_Partition_Coefficient_Kd_Species_2) * (Attenuation_Dry_bulk_density) / (Hydrogeology_Porosity Hydrogeology!$F:$F) -> 2431 | G63: =1 + 0.001 * (Attenuation_Partition_Coefficient_Kd_Species_2) * (Attenuation_Dry_bulk_density) / (Hydrogeology_Porosity Hydrogeology!$G:$G) ->  | H63: =1 + 0.001 * (Attenuation_Partition_Coefficient_Kd_Species_2) * (Attenuation_Dry_bulk_density) / (Hydrogeology_Porosity Hydrogeology!$H:$H) ->  | I63: =1 + 0.001 * (Attenuation_Partition_Coefficient_Kd_Species_2) * (Attenuation_Dry_bulk_density) / (Hydrogeology_Porosity Hydrogeology!$I:$I) ->  | J63: =1 + 0.001 * (Attenuation_Partition_Coefficient_Kd_Species_2) * (Attenuation_Dry_bulk_density) / (Hydrogeology_Porosity Hydrogeology!$J:$J) ->  | K63: =1 + 0.001 * (Attenuation_Partition_Coefficient_Kd_Species_2) * (Attenuation_Dry_bulk_density) / (Hydrogeology_Porosity Hydrogeology!$K:$K) ->  | L63: =1 + 0.001 * (Attenuation_Partition_Coefficient_Kd_Species_2) * (Attenuation_Dry_bulk_density) / (Hydrogeology_Porosity Hydrogeology!$L:$L) ->  | M63: =1 + 0.001 * (Attenuation_Partition_Coefficient_Kd_Species_2) * (Attenuation_Dry_bulk_density) / (Hydrogeology_Porosity Hydrogeology!$M:$M) ->  | N63: =1 + 0.001 * (Attenuation_Partition_Coefficient_Kd_Species_2) * (Attenuation_Dry_bulk_density) / (Hydrogeology_Porosity Hydrogeology!$N:$N) ->  | O63: =1 + 0.001 * (Attenuation_Partition_Coefficient_Kd_Species_2) * (Attenuation_Dry_bulk_density) / (Hydrogeology_Porosity Hydrogeology!$O:$O) ->  | P63: =1 + 0.001 * (Attenuation_Partition_Coefficient_Kd_Species_2) * (Attenuation_Dry_bulk_density) / (Hydrogeology_Porosity Hydrogeology!$P:$P) ->  | Q63: =1 + 0.001 * (Attenuation_Partition_Coefficient_Kd_Species_2) * (Attenuation_Dry_bulk_density) / (Hydrogeology_Porosity Hydrogeology!$Q:$Q) ->  | R63: =1 + 0.001 * (Attenuation_Partition_Coefficient_Kd_Species_2) * (Attenuation_Dry_bulk_density) / (Hydrogeology_Porosity Hydrogeology!$R:$R) -> 
A64: Distribution | C64: constant | D64: constant | E64: constant | F64: constant | G64: constant | H64: constant | I64: constant | J64: constant | K64: constant | L64: constant | M64: constant | N64: constant | O64: constant | P64: constant | Q64: constant | R64: constant
A65: Attenuation_Retardation_Species_2_param1
A66: Attenuation_Retardation_Species_2_param2
A67: Attenuation_Retardation_Species_2_param3
A70: Attenuation_Half_Life_Species_2 | B70: days | C70: No Decay | D70: No Decay | E70: No Decay | F70: No Decay | G70: No Decay | H70: No Decay | I70: No Decay | J70: No Decay | K70: No Decay | L70: No Decay | M70: No Decay | N70: No Decay | O70: No Decay | P70: No Decay | Q70: No Decay | R70: No Decay
A71: Distribution | C71: constant | D71: constant | E71: constant | F71: constant | G71: constant | H71: constant | I71: constant | J71: constant | K71: constant | L71: constant | M71: constant | N71: constant | O71: constant | P71: constant | Q71: constant | R71: constant
A72: Attenuation_Half_Life_Species_2_param1
A73: Attenuation_Half_Life_Species_2_param2
A74: Attenuation_Half_Life_Species_2_param3
A77: Attenuation_Decay_Coefficient_Species_2 | B77: 1/s | C77: =IF((_xlfn.SINGLE(Attenuation_Half_Life_Species_2))<>"No Decay", LN(2) / ((_xlfn.SINGLE(Attenuation_Half_Life_Species_2)) *_xlfn.SINGLE( s_per_day)),0) -> 0 | D77: 0 | E77: 0 | F77: 0 | G77: 0 | H77: 0 | I77: 0 | J77: 0 | K77: 0 | L77: 0 | M77: 0 | N77: 0 | O77: 0 | P77: 0 | Q77: 0 | R77: 0
A78: Distribution | C78: constant | D78: constant | E78: constant | F78: constant | G78: constant | H78: constant | I78: constant | J78: constant | K78: constant | L78: constant | M78: constant | N78: constant | O78: constant | P78: constant | Q78: constant | R78: constant
A79: Attenuation_Decay_Coefficient_Species_2_param1
A80: Attenuation_Decay_Coefficient_Species_2_param2
A81: Attenuation_Decay_Coefficient_Species_2_param3
A84: =IF((Contaminants_Source_determinand_names Contaminants_Species3)=0,"Undefined",(Contaminants_Source_determinand_names Contaminants_Species3)) -> Sulphate
A86: Attenuation_Partition_Coefficient_Kd_Species_3 | B86: L/kg | C86: =(Attenuation_Fraction_organic_carbon) * (Contaminants_Organic_Carbon_Water_Partition_Coefficient_Koc Contaminants_Species3) -> 0 | D86: =(Attenuation_Fraction_organic_carbon) * (Contaminants_Organic_Carbon_Water_Partition_Coefficient_Koc Contaminants_Species3) -> 0 | E86: =(Attenuation_Fraction_organic_carbon) * (Contaminants_Organic_Carbon_Water_Partition_Coefficient_Koc Contaminants_Species3) -> 0 | F86: =(Attenuation_Fraction_organic_carbon) * (Contaminants_Organic_Carbon_Water_Partition_Coefficient_Koc Contaminants_Species3) -> 0 | G86: =(Attenuation_Fraction_organic_carbon) * (Contaminants_Organic_Carbon_Water_Partition_Coefficient_Koc Contaminants_Species3) -> 0 | H86: =(Attenuation_Fraction_organic_carbon) * (Contaminants_Organic_Carbon_Water_Partition_Coefficient_Koc Contaminants_Species3) -> 0 | I86: =(Attenuation_Fraction_organic_carbon) * (Contaminants_Organic_Carbon_Water_Partition_Coefficient_Koc Contaminants_Species3) -> 0 | J86: =(Attenuation_Fraction_organic_carbon) * (Contaminants_Organic_Carbon_Water_Partition_Coefficient_Koc Contaminants_Species3) -> 0 | K86: =(Attenuation_Fraction_organic_carbon) * (Contaminants_Organic_Carbon_Water_Partition_Coefficient_Koc Contaminants_Species3) -> 0 | L86: =(Attenuation_Fraction_organic_carbon) * (Contaminants_Organic_Carbon_Water_Partition_Coefficient_Koc Contaminants_Species3) -> 0 | M86: =(Attenuation_Fraction_organic_carbon) * (Contaminants_Organic_Carbon_Water_Partition_Coefficient_Koc Contaminants_Species3) -> 0 | N86: =(Attenuation_Fraction_organic_carbon) * (Contaminants_Organic_Carbon_Water_Partition_Coefficient_Koc Contaminants_Species3) -> 0 | O86: =(Attenuation_Fraction_organic_carbon) * (Contaminants_Organic_Carbon_Water_Partition_Coefficient_Koc Contaminants_Species3) -> 0 | P86: =(Attenuation_Fraction_organic_carbon) * (Contaminants_Organic_Carbon_Water_Partition_Coefficient_Koc Contaminants_Species3) -> 0 | Q86: =(Attenuation_Fraction_organic_carbon) * (Contaminants_Organic_Carbon_Water_Partition_Coefficient_Koc Contaminants_Species3) -> 0 | R86: =(Attenuation_Fraction_organic_carbon) * (Contaminants_Organic_Carbon_Water_Partition_Coefficient_Koc Contaminants_Species3) -> 0
A87: Distribution | C87: constant | D87: constant | E87: constant | F87: constant | G87: constant | H87: constant | I87: constant | J87: constant | K87: constant | L87: constant | M87: constant | N87: constant | O87: constant | P87: constant | Q87: constant | R87: constant
A88: Attenuation_Partition_Coefficient_Kd_Species_3_param1
A89: Attenuation_Partition_Coefficient_Kd_Species_3_param2
A90: Attenuation_Partition_Coefficient_Kd_Species_3_param3
A93: Attenuation_Retardation_Species_3 | B93: [-] | C93: =1 + 0.001 * (Attenuation_Partition_Coefficient_Kd_Species_3) * (Attenuation_Dry_bulk_density) / (Hydrogeology_Porosity Hydrogeology!$C:$C) -> 1 | D93: =1 + 0.001 * (Attenuation_Partition_Coefficient_Kd_Species_3) * (Attenuation_Dry_bulk_density) / (Hydrogeology_Porosity Hydrogeology!$D:$D) -> 1 | E93: =1 + 0.001 * (Attenuation_Partition_Coefficient_Kd_Species_3) * (Attenuation_Dry_bulk_density) / (Hydrogeology_Porosity Hydrogeology!$E:$E) -> 1 | F93: =1 + 0.001 * (Attenuation_Partition_Coefficient_Kd_Species_3) * (Attenuation_Dry_bulk_density) / (Hydrogeology_Porosity Hydrogeology!$F:$F) -> 1 | G93: =1 + 0.001 * (Attenuation_Partition_Coefficient_Kd_Species_3) * (Attenuation_Dry_bulk_density) / (Hydrogeology_Porosity Hydrogeology!$G:$G) ->  | H93: =1 + 0.001 * (Attenuation_Partition_Coefficient_Kd_Species_3) * (Attenuation_Dry_bulk_density) / (Hydrogeology_Porosity Hydrogeology!$H:$H) ->  | I93: =1 + 0.001 * (Attenuation_Partition_Coefficient_Kd_Species_3) * (Attenuation_Dry_bulk_density) / (Hydrogeology_Porosity Hydrogeology!$I:$I) ->  | J93: =1 + 0.001 * (Attenuation_Partition_Coefficient_Kd_Species_3) * (Attenuation_Dry_bulk_density) / (Hydrogeology_Porosity Hydrogeology!$J:$J) ->  | K93: =1 + 0.001 * (Attenuation_Partition_Coefficient_Kd_Species_3) * (Attenuation_Dry_bulk_density) / (Hydrogeology_Porosity Hydrogeology!$K:$K) ->  | L93: =1 + 0.001 * (Attenuation_Partition_Coefficient_Kd_Species_3) * (Attenuation_Dry_bulk_density) / (Hydrogeology_Porosity Hydrogeology!$L:$L) ->  | M93: =1 + 0.001 * (Attenuation_Partition_Coefficient_Kd_Species_3) * (Attenuation_Dry_bulk_density) / (Hydrogeology_Porosity Hydrogeology!$M:$M) ->  | N93: =1 + 0.001 * (Attenuation_Partition_Coefficient_Kd_Species_3) * (Attenuation_Dry_bulk_density) / (Hydrogeology_Porosity Hydrogeology!$N:$N) ->  | O93: =1 + 0.001 * (Attenuation_Partition_Coefficient_Kd_Species_3) * (Attenuation_Dry_bulk_density) / (Hydrogeology_Porosity Hydrogeology!$O:$O) ->  | P93: =1 + 0.001 * (Attenuation_Partition_Coefficient_Kd_Species_3) * (Attenuation_Dry_bulk_density) / (Hydrogeology_Porosity Hydrogeology!$P:$P) ->  | Q93: =1 + 0.001 * (Attenuation_Partition_Coefficient_Kd_Species_3) * (Attenuation_Dry_bulk_density) / (Hydrogeology_Porosity Hydrogeology!$Q:$Q) ->  | R93: =1 + 0.001 * (Attenuation_Partition_Coefficient_Kd_Species_3) * (Attenuation_Dry_bulk_density) / (Hydrogeology_Porosity Hydrogeology!$R:$R) -> 
A94: Distribution | C94: constant | D94: constant | E94: constant | F94: constant | G94: constant | H94: constant | I94: constant | J94: constant | K94: constant | L94: constant | M94: constant | N94: constant | O94: constant | P94: constant | Q94: constant | R94: constant
A95: Attenuation_Retardation_Species_3_param1
A96: Attenuation_Retardation_Species_3_param2
A97: Attenuation_Retardation_Species_3_param3
A100: Attenuation_Half_Life_Species_3 | B100: days | C100: No Decay | D100: No Decay | E100: No Decay | F100: No Decay | G100: No Decay | H100: No Decay | I100: No Decay | J100: No Decay | K100: No Decay | L100: No Decay | M100: No Decay | N100: No Decay | O100: No Decay | P100: No Decay | Q100: No Decay | R100: No Decay
A101: Distribution | C101: constant | D101: constant | E101: constant | F101: constant | G101: constant | H101: constant | I101: constant | J101: constant | K101: constant | L101: constant | M101: constant | N101: constant | O101: constant | P101: constant | Q101: constant | R101: constant
A102: Attenuation_Half_Life_Species_3_param1
A103: Attenuation_Half_Life_Species_3_param2
A104: Attenuation_Half_Life_Species_3_param3
A107: Attenuation_Decay_Coefficient_Species_3 | B107: 1/s | C107: =IF((_xlfn.SINGLE(Attenuation_Half_Life_Species_3))<>"No Decay", LN(2) / ((_xlfn.SINGLE(Attenuation_Half_Life_Species_3)) *_xlfn.SINGLE( s_per_day)),0) -> 0 | D107: 0 | E107: 0 | F107: 0 | G107: 0 | H107: 0 | I107: 0 | J107: 0 | K107: 0 | L107: 0 | M107: 0 | N107: 0 | O107: 0 | P107: 0 | Q107: 0 | R107: 0
A108: Distribution | C108: constant | D108: constant | E108: constant | F108: constant | G108: constant | H108: constant | I108: constant | J108: constant | K108: constant | L108: constant | M108: constant | N108: constant | O108: constant | P108: constant | Q108: constant | R108: constant
A109: Attenuation_Decay_Coefficient_Species_3_param1
A110: Attenuation_Decay_Coefficient_Species_3_param2
A111: Attenuation_Decay_Coefficient_Species_3_param3
A114: =IF((Contaminants_Source_determinand_names Contaminants_Species4)=0,"Undefined",(Contaminants_Source_determinand_names Contaminants_Species4)) -> Benzene
A116: Attenuation_Partition_Coefficient_Kd_Species_4 | B116: L/kg | C116: =(Attenuation_Fraction_organic_carbon) * (Contaminants_Organic_Carbon_Water_Partition_Coefficient_Koc Contaminants_Species4) -> 3.38 | D116: =(Attenuation_Fraction_organic_carbon) * (Contaminants_Organic_Carbon_Water_Partition_Coefficient_Koc Contaminants_Species4) -> 0.1352 | E116: =(Attenuation_Fraction_organic_carbon) * (Contaminants_Organic_Carbon_Water_Partition_Coefficient_Koc Contaminants_Species4) -> 0.1352 | F116: =(Attenuation_Fraction_organic_carbon) * (Contaminants_Organic_Carbon_Water_Partition_Coefficient_Koc Contaminants_Species4) -> 0.1352 | G116: =(Attenuation_Fraction_organic_carbon) * (Contaminants_Organic_Carbon_Water_Partition_Coefficient_Koc Contaminants_Species4) -> 0 | H116: =(Attenuation_Fraction_organic_carbon) * (Contaminants_Organic_Carbon_Water_Partition_Coefficient_Koc Contaminants_Species4) -> 0 | I116: =(Attenuation_Fraction_organic_carbon) * (Contaminants_Organic_Carbon_Water_Partition_Coefficient_Koc Contaminants_Species4) -> 0 | J116: =(Attenuation_Fraction_organic_carbon) * (Contaminants_Organic_Carbon_Water_Partition_Coefficient_Koc Contaminants_Species4) -> 0 | K116: =(Attenuation_Fraction_organic_carbon) * (Contaminants_Organic_Carbon_Water_Partition_Coefficient_Koc Contaminants_Species4) -> 0 | L116: =(Attenuation_Fraction_organic_carbon) * (Contaminants_Organic_Carbon_Water_Partition_Coefficient_Koc Contaminants_Species4) -> 0 | M116: =(Attenuation_Fraction_organic_carbon) * (Contaminants_Organic_Carbon_Water_Partition_Coefficient_Koc Contaminants_Species4) -> 0 | N116: =(Attenuation_Fraction_organic_carbon) * (Contaminants_Organic_Carbon_Water_Partition_Coefficient_Koc Contaminants_Species4) -> 0 | O116: =(Attenuation_Fraction_organic_carbon) * (Contaminants_Organic_Carbon_Water_Partition_Coefficient_Koc Contaminants_Species4) -> 0 | P116: =(Attenuation_Fraction_organic_carbon) * (Contaminants_Organic_Carbon_Water_Partition_Coefficient_Koc Contaminants_Species4) -> 0 | Q116: =(Attenuation_Fraction_organic_carbon) * (Contaminants_Organic_Carbon_Water_Partition_Coefficient_Koc Contaminants_Species4) -> 0 | R116: =(Attenuation_Fraction_organic_carbon) * (Contaminants_Organic_Carbon_Water_Partition_Coefficient_Koc Contaminants_Species4) -> 0
A117: Distribution | C117: constant | D117: constant | E117: constant | F117: constant | G117: constant | H117: constant | I117: constant | J117: constant | K117: constant | L117: constant | M117: constant | N117: constant | O117: constant | P117: constant | Q117: constant | R117: constant
A118: Attenuation_Partition_Coefficient_Kd_Species_4_param1
A119: Attenuation_Partition_Coefficient_Kd_Species_4_param2
A120: Attenuation_Partition_Coefficient_Kd_Species_4_param3
A123: Attenuation_Retardation_Species_4 | B123: [-] | C123: =1 + 0.001 * (Attenuation_Partition_Coefficient_Kd_Species_4) * (Attenuation_Dry_bulk_density) / (Hydrogeology_Porosity Hydrogeology!$C:$C) -> 14.52 | D123: =1 + 0.001 * (Attenuation_Partition_Coefficient_Kd_Species_4) * (Attenuation_Dry_bulk_density) / (Hydrogeology_Porosity Hydrogeology!$D:$D) -> 2.2168 | E123: =1 + 0.001 * (Attenuation_Partition_Coefficient_Kd_Species_4) * (Attenuation_Dry_bulk_density) / (Hydrogeology_Porosity Hydrogeology!$E:$E) -> 2.2168 | F123: =1 + 0.001 * (Attenuation_Partition_Coefficient_Kd_Species_4) * (Attenuation_Dry_bulk_density) / (Hydrogeology_Porosity Hydrogeology!$F:$F) -> 2.2168 | G123: =1 + 0.001 * (Attenuation_Partition_Coefficient_Kd_Species_4) * (Attenuation_Dry_bulk_density) / (Hydrogeology_Porosity Hydrogeology!$G:$G) ->  | H123: =1 + 0.001 * (Attenuation_Partition_Coefficient_Kd_Species_4) * (Attenuation_Dry_bulk_density) / (Hydrogeology_Porosity Hydrogeology!$H:$H) ->  | I123: =1 + 0.001 * (Attenuation_Partition_Coefficient_Kd_Species_4) * (Attenuation_Dry_bulk_density) / (Hydrogeology_Porosity Hydrogeology!$I:$I) ->  | J123: =1 + 0.001 * (Attenuation_Partition_Coefficient_Kd_Species_4) * (Attenuation_Dry_bulk_density) / (Hydrogeology_Porosity Hydrogeology!$J:$J) ->  | K123: =1 + 0.001 * (Attenuation_Partition_Coefficient_Kd_Species_4) * (Attenuation_Dry_bulk_density) / (Hydrogeology_Porosity Hydrogeology!$K:$K) ->  | L123: =1 + 0.001 * (Attenuation_Partition_Coefficient_Kd_Species_4) * (Attenuation_Dry_bulk_density) / (Hydrogeology_Porosity Hydrogeology!$L:$L) ->  | M123: =1 + 0.001 * (Attenuation_Partition_Coefficient_Kd_Species_4) * (Attenuation_Dry_bulk_density) / (Hydrogeology_Porosity Hydrogeology!$M:$M) ->  | N123: =1 + 0.001 * (Attenuation_Partition_Coefficient_Kd_Species_4) * (Attenuation_Dry_bulk_density) / (Hydrogeology_Porosity Hydrogeology!$N:$N) ->  | O123: =1 + 0.001 * (Attenuation_Partition_Coefficient_Kd_Species_4) * (Attenuation_Dry_bulk_density) / (Hydrogeology_Porosity Hydrogeology!$O:$O) ->  | P123: =1 + 0.001 * (Attenuation_Partition_Coefficient_Kd_Species_4) * (Attenuation_Dry_bulk_density) / (Hydrogeology_Porosity Hydrogeology!$P:$P) ->  | Q123: =1 + 0.001 * (Attenuation_Partition_Coefficient_Kd_Species_4) * (Attenuation_Dry_bulk_density) / (Hydrogeology_Porosity Hydrogeology!$Q:$Q) ->  | R123: =1 + 0.001 * (Attenuation_Partition_Coefficient_Kd_Species_4) * (Attenuation_Dry_bulk_density) / (Hydrogeology_Porosity Hydrogeology!$R:$R) -> 
A124: Distribution | C124: constant | D124: constant | E124: constant | F124: constant | G124: constant | H124: constant | I124: constant | J124: constant | K124: constant | L124: constant | M124: constant | N124: constant | O124: constant | P124: constant | Q124: constant | R124: constant
A125: Attenuation_Retardation_Species_4_param1
A126: Attenuation_Retardation_Species_4_param2
A127: Attenuation_Retardation_Species_4_param3
A130: Attenuation_Half_Life_Species_4 | B130: days | C130: 300 | D130: 300 | E130: 300 | F130: 300 | G130: No Decay | H130: No Decay | I130: No Decay | J130: No Decay | K130: No Decay | L130: No Decay | M130: No Decay | N130: No Decay | O130: No Decay | P130: No Decay | Q130: No Decay | R130: No Decay
A131: Distribution | C131: constant | D131: constant | E131: constant | F131: constant | G131: constant | H131: constant | I131: constant | J131: constant | K131: constant | L131: constant | M131: constant | N131: constant | O131: constant | P131: constant | Q131: constant | R131: constant
A132: Attenuation_Half_Life_Species_4_param1
A133: Attenuation_Half_Life_Species_4_param2
A134: Attenuation_Half_Life_Species_4_param3
A137: Attenuation_Decay_Coefficient_Species_4 | B137: 1/s | C137: =IF((_xlfn.SINGLE(Attenuation_Half_Life_Species_4))<>"No Decay", LN(2) / ((_xlfn.SINGLE(Attenuation_Half_Life_Species_4)) *_xlfn.SINGLE( s_per_day)),0) -> 2.674178937e-08 | D137: 2.674178937e-08 | E137: 2.674178937e-08 | F137: 2.674178937e-08 | G137: 0 | H137: 0 | I137: 0 | J137: 0 | K137: 0 | L137: 0 | M137: 0 | N137: 0 | O137: 0 | P137: 0 | Q137: 0 | R137: 0
A138: Distribution | C138: constant | D138: constant | E138: constant | F138: constant | G138: constant | H138: constant | I138: constant | J138: constant | K138: constant | L138: constant | M138: constant | N138: constant | O138: constant | P138: constant | Q138: constant | R138: constant
A139: Attenuation_Decay_Coefficient_Species_4_param1
A140: Attenuation_Decay_Coefficient_Species_4_param2
A141: Attenuation_Decay_Coefficient_Species_4_param3
A144: =IF((Contaminants_Source_determinand_names Contaminants_Species5)=0,"Undefined",(Contaminants_Source_determinand_names Contaminants_Species5)) -> BaP
A146: Attenuation_Partition_Coefficient_Kd_Species_5 | B146: L/kg | C146: =(Attenuation_Fraction_organic_carbon) * (Contaminants_Organic_Carbon_Water_Partition_Coefficient_Koc Contaminants_Species5) -> 58500 | D146: =(Attenuation_Fraction_organic_carbon) * (Contaminants_Organic_Carbon_Water_Partition_Coefficient_Koc Contaminants_Species5) -> 2340 | E146: =(Attenuation_Fraction_organic_carbon) * (Contaminants_Organic_Carbon_Water_Partition_Coefficient_Koc Contaminants_Species5) -> 2340 | F146: =(Attenuation_Fraction_organic_carbon) * (Contaminants_Organic_Carbon_Water_Partition_Coefficient_Koc Contaminants_Species5) -> 2340 | G146: =(Attenuation_Fraction_organic_carbon) * (Contaminants_Organic_Carbon_Water_Partition_Coefficient_Koc Contaminants_Species5) -> 0 | H146: =(Attenuation_Fraction_organic_carbon) * (Contaminants_Organic_Carbon_Water_Partition_Coefficient_Koc Contaminants_Species5) -> 0 | I146: =(Attenuation_Fraction_organic_carbon) * (Contaminants_Organic_Carbon_Water_Partition_Coefficient_Koc Contaminants_Species5) -> 0 | J146: =(Attenuation_Fraction_organic_carbon) * (Contaminants_Organic_Carbon_Water_Partition_Coefficient_Koc Contaminants_Species5) -> 0 | K146: =(Attenuation_Fraction_organic_carbon) * (Contaminants_Organic_Carbon_Water_Partition_Coefficient_Koc Contaminants_Species5) -> 0 | L146: =(Attenuation_Fraction_organic_carbon) * (Contaminants_Organic_Carbon_Water_Partition_Coefficient_Koc Contaminants_Species5) -> 0 | M146: =(Attenuation_Fraction_organic_carbon) * (Contaminants_Organic_Carbon_Water_Partition_Coefficient_Koc Contaminants_Species5) -> 0 | N146: =(Attenuation_Fraction_organic_carbon) * (Contaminants_Organic_Carbon_Water_Partition_Coefficient_Koc Contaminants_Species5) -> 0 | O146: =(Attenuation_Fraction_organic_carbon) * (Contaminants_Organic_Carbon_Water_Partition_Coefficient_Koc Contaminants_Species5) -> 0 | P146: =(Attenuation_Fraction_organic_carbon) * (Contaminants_Organic_Carbon_Water_Partition_Coefficient_Koc Contaminants_Species5) -> 0 | Q146: =(Attenuation_Fraction_organic_carbon) * (Contaminants_Organic_Carbon_Water_Partition_Coefficient_Koc Contaminants_Species5) -> 0 | R146: =(Attenuation_Fraction_organic_carbon) * (Contaminants_Organic_Carbon_Water_Partition_Coefficient_Koc Contaminants_Species5) -> 0
A147: Distribution | C147: constant | D147: constant | E147: constant | F147: constant | G147: constant | H147: constant | I147: constant | J147: constant | K147: constant | L147: constant | M147: constant | N147: constant | O147: constant | P147: constant | Q147: constant | R147: constant
A148: Attenuation_Partition_Coefficient_Kd_Species_5_param1
A149: Attenuation_Partition_Coefficient_Kd_Species_5_param2
A150: Attenuation_Partition_Coefficient_Kd_Species_5_param3
A153: Attenuation_Retardation_Species_5 | B153: [-] | C153: =1 + 0.001 * (Attenuation_Partition_Coefficient_Kd_Species_5) * (Attenuation_Dry_bulk_density) / (Hydrogeology_Porosity Hydrogeology!$C:$C) -> 234001 | D153: =1 + 0.001 * (Attenuation_Partition_Coefficient_Kd_Species_5) * (Attenuation_Dry_bulk_density) / (Hydrogeology_Porosity Hydrogeology!$D:$D) -> 21061 | E153: =1 + 0.001 * (Attenuation_Partition_Coefficient_Kd_Species_5) * (Attenuation_Dry_bulk_density) / (Hydrogeology_Porosity Hydrogeology!$E:$E) -> 21061 | F153: =1 + 0.001 * (Attenuation_Partition_Coefficient_Kd_Species_5) * (Attenuation_Dry_bulk_density) / (Hydrogeology_Porosity Hydrogeology!$F:$F) -> 21061 | G153: =1 + 0.001 * (Attenuation_Partition_Coefficient_Kd_Species_5) * (Attenuation_Dry_bulk_density) / (Hydrogeology_Porosity Hydrogeology!$G:$G) ->  | H153: =1 + 0.001 * (Attenuation_Partition_Coefficient_Kd_Species_5) * (Attenuation_Dry_bulk_density) / (Hydrogeology_Porosity Hydrogeology!$H:$H) ->  | I153: =1 + 0.001 * (Attenuation_Partition_Coefficient_Kd_Species_5) * (Attenuation_Dry_bulk_density) / (Hydrogeology_Porosity Hydrogeology!$I:$I) ->  | J153: =1 + 0.001 * (Attenuation_Partition_Coefficient_Kd_Species_5) * (Attenuation_Dry_bulk_density) / (Hydrogeology_Porosity Hydrogeology!$J:$J) ->  | K153: =1 + 0.001 * (Attenuation_Partition_Coefficient_Kd_Species_5) * (Attenuation_Dry_bulk_density) / (Hydrogeology_Porosity Hydrogeology!$K:$K) ->  | L153: =1 + 0.001 * (Attenuation_Partition_Coefficient_Kd_Species_5) * (Attenuation_Dry_bulk_density) / (Hydrogeology_Porosity Hydrogeology!$L:$L) ->  | M153: =1 + 0.001 * (Attenuation_Partition_Coefficient_Kd_Species_5) * (Attenuation_Dry_bulk_density) / (Hydrogeology_Porosity Hydrogeology!$M:$M) ->  | N153: =1 + 0.001 * (Attenuation_Partition_Coefficient_Kd_Species_5) * (Attenuation_Dry_bulk_density) / (Hydrogeology_Porosity Hydrogeology!$N:$N) ->  | O153: =1 + 0.001 * (Attenuation_Partition_Coefficient_Kd_Species_5) * (Attenuation_Dry_bulk_density) / (Hydrogeology_Porosity Hydrogeology!$O:$O) ->  | P153: =1 + 0.001 * (Attenuation_Partition_Coefficient_Kd_Species_5) * (Attenuation_Dry_bulk_density) / (Hydrogeology_Porosity Hydrogeology!$P:$P) ->  | Q153: =1 + 0.001 * (Attenuation_Partition_Coefficient_Kd_Species_5) * (Attenuation_Dry_bulk_density) / (Hydrogeology_Porosity Hydrogeology!$Q:$Q) ->  | R153: =1 + 0.001 * (Attenuation_Partition_Coefficient_Kd_Species_5) * (Attenuation_Dry_bulk_density) / (Hydrogeology_Porosity Hydrogeology!$R:$R) -> 
A154: Distribution | C154: constant | D154: constant | E154: constant | F154: constant | G154: constant | H154: constant | I154: constant | J154: constant | K154: constant | L154: constant | M154: constant | N154: constant | O154: constant | P154: constant | Q154: constant | R154: constant
A155: Attenuation_Retardation_Species_5_param1
A156: Attenuation_Retardation_Species_5_param2
A157: Attenuation_Retardation_Species_5_param3
A160: Attenuation_Half_Life_Species_5 | B160: days | C160: 830 | D160: 830 | E160: 830 | F160: 830 | G160: No Decay | H160: No Decay | I160: No Decay | J160: No Decay | K160: No Decay | L160: No Decay | M160: No Decay | N160: No Decay | O160: No Decay | P160: No Decay | Q160: No Decay | R160: No Decay
A161: Distribution | C161: constant | D161: constant | E161: constant | F161: constant | G161: constant | H161: constant | I161: constant | J161: constant | K161: constant | L161: constant | M161: constant | N161: constant | O161: constant | P161: constant | Q161: constant | R161: constant
A162: Attenuation_Half_Life_Species_5_param1
A163: Attenuation_Half_Life_Species_5_param2
A164: Attenuation_Half_Life_Species_5_param3
A167: Attenuation_Decay_Coefficient_Species_5 | B167: 1/s | C167: =IF((_xlfn.SINGLE(Attenuation_Half_Life_Species_5))<>"No Decay", LN(2) / ((_xlfn.SINGLE(Attenuation_Half_Life_Species_5)) *_xlfn.SINGLE( s_per_day)),0) -> 9.665707002e-09 | D167: 9.665707002e-09 | E167: 9.665707002e-09 | F167: 9.665707002e-09 | G167: 0 | H167: 0 | I167: 0 | J167: 0 | K167: 0 | L167: 0 | M167: 0 | N167: 0 | O167: 0 | P167: 0 | Q167: 0 | R167: 0
A168: Distribution | C168: constant | D168: constant | E168: constant | F168: constant | G168: constant | H168: constant | I168: constant | J168: constant | K168: constant | L168: constant | M168: constant | N168: constant | O168: constant | P168: constant | Q168: constant | R168: constant
A169: Attenuation_Decay_Coefficient_Species_5_param1
A170: Attenuation_Decay_Coefficient_Species_5_param2
A171: Attenuation_Decay_Coefficient_Species_5_param3
A174: =IF((Contaminants_Source_determinand_names Contaminants_Species6)=0,"Undefined",(Contaminants_Source_determinand_names Contaminants_Species6)) -> Undefined
A176: Attenuation_Partition_Coefficient_Kd_Species_6 | B176: L/kg | C176: =(Attenuation_Fraction_organic_carbon) * (Contaminants_Organic_Carbon_Water_Partition_Coefficient_Koc Contaminants_Species6) -> 0 | D176: =(Attenuation_Fraction_organic_carbon) * (Contaminants_Organic_Carbon_Water_Partition_Coefficient_Koc Contaminants_Species6) -> 0 | E176: =(Attenuation_Fraction_organic_carbon) * (Contaminants_Organic_Carbon_Water_Partition_Coefficient_Koc Contaminants_Species6) -> 0 | F176: =(Attenuation_Fraction_organic_carbon) * (Contaminants_Organic_Carbon_Water_Partition_Coefficient_Koc Contaminants_Species6) -> 0 | G176: =(Attenuation_Fraction_organic_carbon) * (Contaminants_Organic_Carbon_Water_Partition_Coefficient_Koc Contaminants_Species6) -> 0 | H176: =(Attenuation_Fraction_organic_carbon) * (Contaminants_Organic_Carbon_Water_Partition_Coefficient_Koc Contaminants_Species6) -> 0 | I176: =(Attenuation_Fraction_organic_carbon) * (Contaminants_Organic_Carbon_Water_Partition_Coefficient_Koc Contaminants_Species6) -> 0 | J176: =(Attenuation_Fraction_organic_carbon) * (Contaminants_Organic_Carbon_Water_Partition_Coefficient_Koc Contaminants_Species6) -> 0 | K176: =(Attenuation_Fraction_organic_carbon) * (Contaminants_Organic_Carbon_Water_Partition_Coefficient_Koc Contaminants_Species6) -> 0 | L176: =(Attenuation_Fraction_organic_carbon) * (Contaminants_Organic_Carbon_Water_Partition_Coefficient_Koc Contaminants_Species6) -> 0 | M176: =(Attenuation_Fraction_organic_carbon) * (Contaminants_Organic_Carbon_Water_Partition_Coefficient_Koc Contaminants_Species6) -> 0 | N176: =(Attenuation_Fraction_organic_carbon) * (Contaminants_Organic_Carbon_Water_Partition_Coefficient_Koc Contaminants_Species6) -> 0 | O176: =(Attenuation_Fraction_organic_carbon) * (Contaminants_Organic_Carbon_Water_Partition_Coefficient_Koc Contaminants_Species6) -> 0 | P176: =(Attenuation_Fraction_organic_carbon) * (Contaminants_Organic_Carbon_Water_Partition_Coefficient_Koc Contaminants_Species6) -> 0 | Q176: =(Attenuation_Fraction_organic_carbon) * (Contaminants_Organic_Carbon_Water_Partition_Coefficient_Koc Contaminants_Species6) -> 0 | R176: =(Attenuation_Fraction_organic_carbon) * (Contaminants_Organic_Carbon_Water_Partition_Coefficient_Koc Contaminants_Species6) -> 0
A177: Distribution | C177: constant | D177: constant | E177: constant | F177: constant | G177: constant | H177: constant | I177: constant | J177: constant | K177: constant | L177: constant | M177: constant | N177: constant | O177: constant | P177: constant | Q177: constant | R177: constant
A178: Attenuation_Partition_Coefficient_Kd_Species_6_param1
A179: Attenuation_Partition_Coefficient_Kd_Species_6_param2
A180: Attenuation_Partition_Coefficient_Kd_Species_6_param3
A183: Attenuation_Retardation_Species_6 | B183: [-] | C183: =1 + 0.001 * (Attenuation_Partition_Coefficient_Kd_Species_6) * (Attenuation_Dry_bulk_density) / (Hydrogeology_Porosity Hydrogeology!$C:$C) -> 1 | D183: =1 + 0.001 * (Attenuation_Partition_Coefficient_Kd_Species_6) * (Attenuation_Dry_bulk_density) / (Hydrogeology_Porosity Hydrogeology!$D:$D) -> 1 | E183: =1 + 0.001 * (Attenuation_Partition_Coefficient_Kd_Species_6) * (Attenuation_Dry_bulk_density) / (Hydrogeology_Porosity Hydrogeology!$E:$E) -> 1 | F183: =1 + 0.001 * (Attenuation_Partition_Coefficient_Kd_Species_6) * (Attenuation_Dry_bulk_density) / (Hydrogeology_Porosity Hydrogeology!$F:$F) -> 1 | G183: =1 + 0.001 * (Attenuation_Partition_Coefficient_Kd_Species_6) * (Attenuation_Dry_bulk_density) / (Hydrogeology_Porosity Hydrogeology!$G:$G) ->  | H183: =1 + 0.001 * (Attenuation_Partition_Coefficient_Kd_Species_6) * (Attenuation_Dry_bulk_density) / (Hydrogeology_Porosity Hydrogeology!$H:$H) ->  | I183: =1 + 0.001 * (Attenuation_Partition_Coefficient_Kd_Species_6) * (Attenuation_Dry_bulk_density) / (Hydrogeology_Porosity Hydrogeology!$I:$I) ->  | J183: =1 + 0.001 * (Attenuation_Partition_Coefficient_Kd_Species_6) * (Attenuation_Dry_bulk_density) / (Hydrogeology_Porosity Hydrogeology!$J:$J) ->  | K183: =1 + 0.001 * (Attenuation_Partition_Coefficient_Kd_Species_6) * (Attenuation_Dry_bulk_density) / (Hydrogeology_Porosity Hydrogeology!$K:$K) ->  | L183: =1 + 0.001 * (Attenuation_Partition_Coefficient_Kd_Species_6) * (Attenuation_Dry_bulk_density) / (Hydrogeology_Porosity Hydrogeology!$L:$L) ->  | M183: =1 + 0.001 * (Attenuation_Partition_Coefficient_Kd_Species_6) * (Attenuation_Dry_bulk_density) / (Hydrogeology_Porosity Hydrogeology!$M:$M) ->  | N183: =1 + 0.001 * (Attenuation_Partition_Coefficient_Kd_Species_6) * (Attenuation_Dry_bulk_density) / (Hydrogeology_Porosity Hydrogeology!$N:$N) ->  | O183: =1 + 0.001 * (Attenuation_Partition_Coefficient_Kd_Species_6) * (Attenuation_Dry_bulk_density) / (Hydrogeology_Porosity Hydrogeology!$O:$O) ->  | P183: =1 + 0.001 * (Attenuation_Partition_Coefficient_Kd_Species_6) * (Attenuation_Dry_bulk_density) / (Hydrogeology_Porosity Hydrogeology!$P:$P) ->  | Q183: =1 + 0.001 * (Attenuation_Partition_Coefficient_Kd_Species_6) * (Attenuation_Dry_bulk_density) / (Hydrogeology_Porosity Hydrogeology!$Q:$Q) ->  | R183: =1 + 0.001 * (Attenuation_Partition_Coefficient_Kd_Species_6) * (Attenuation_Dry_bulk_density) / (Hydrogeology_Porosity Hydrogeology!$R:$R) -> 
A184: Distribution | C184: constant | D184: constant | E184: constant | F184: constant | G184: constant | H184: constant | I184: constant | J184: constant | K184: constant | L184: constant | M184: constant | N184: constant | O184: constant | P184: constant | Q184: constant | R184: constant
A185: Attenuation_Retardation_Species_6_param1
A186: Attenuation_Retardation_Species_6_param2
A187: Attenuation_Retardation_Species_6_param3
A190: Attenuation_Half_Life_Species_6 | B190: days | C190: No Decay | D190: No Decay | E190: No Decay | F190: No Decay | G190: No Decay | H190: No Decay | I190: No Decay | J190: No Decay | K190: No Decay | L190: No Decay | M190: No Decay | N190: No Decay | O190: No Decay | P190: No Decay | Q190: No Decay | R190: No Decay
A191: Distribution | C191: constant | D191: constant | E191: constant | F191: constant | G191: constant | H191: constant | I191: constant | J191: constant | K191: constant | L191: constant | M191: constant | N191: constant | O191: constant | P191: constant | Q191: constant | R191: constant
A192: Attenuation_Half_Life_Species_6_param1
A193: Attenuation_Half_Life_Species_6_param2
A194: Attenuation_Half_Life_Species_6_param3
A197: Attenuation_Decay_Coefficient_Species_6 | B197: 1/s | C197: =IF((_xlfn.SINGLE(Attenuation_Half_Life_Species_6))<>"No Decay", LN(2) / ((_xlfn.SINGLE(Attenuation_Half_Life_Species_6)) *_xlfn.SINGLE( s_per_day)),0) -> 0 | D197: 0 | E197: 0 | F197: 0 | G197: 0 | H197: 0 | I197: 0 | J197: 0 | K197: 0 | L197: 0 | M197: 0 | N197: 0 | O197: 0 | P197: 0 | Q197: 0 | R197: 0
A198: Distribution | C198: constant | D198: constant | E198: constant | F198: constant | G198: constant | H198: constant | I198: constant | J198: constant | K198: constant | L198: constant | M198: constant | N198: constant | O198: constant | P198: constant | Q198: constant | R198: constant
A199: Attenuation_Decay_Coefficient_Species_6_param1
A200: Attenuation_Decay_Coefficient_Species_6_param2
A201: Attenuation_Decay_Coefficient_Species_6_param3
A204: =IF((Contaminants_Source_determinand_names Contaminants_Species7)=0,"Undefined",(Contaminants_Source_determinand_names Contaminants_Species7)) -> Undefined
A206: Attenuation_Partition_Coefficient_Kd_Species_7 | B206: L/kg | C206: =(Attenuation_Fraction_organic_carbon) * (Contaminants_Organic_Carbon_Water_Partition_Coefficient_Koc Contaminants_Species7) -> 0 | D206: =(Attenuation_Fraction_organic_carbon) * (Contaminants_Organic_Carbon_Water_Partition_Coefficient_Koc Contaminants_Species7) -> 0 | E206: =(Attenuation_Fraction_organic_carbon) * (Contaminants_Organic_Carbon_Water_Partition_Coefficient_Koc Contaminants_Species7) -> 0 | F206: =(Attenuation_Fraction_organic_carbon) * (Contaminants_Organic_Carbon_Water_Partition_Coefficient_Koc Contaminants_Species7) -> 0 | G206: =(Attenuation_Fraction_organic_carbon) * (Contaminants_Organic_Carbon_Water_Partition_Coefficient_Koc Contaminants_Species7) -> 0 | H206: =(Attenuation_Fraction_organic_carbon) * (Contaminants_Organic_Carbon_Water_Partition_Coefficient_Koc Contaminants_Species7) -> 0 | I206: =(Attenuation_Fraction_organic_carbon) * (Contaminants_Organic_Carbon_Water_Partition_Coefficient_Koc Contaminants_Species7) -> 0 | J206: =(Attenuation_Fraction_organic_carbon) * (Contaminants_Organic_Carbon_Water_Partition_Coefficient_Koc Contaminants_Species7) -> 0 | K206: =(Attenuation_Fraction_organic_carbon) * (Contaminants_Organic_Carbon_Water_Partition_Coefficient_Koc Contaminants_Species7) -> 0 | L206: =(Attenuation_Fraction_organic_carbon) * (Contaminants_Organic_Carbon_Water_Partition_Coefficient_Koc Contaminants_Species7) -> 0 | M206: =(Attenuation_Fraction_organic_carbon) * (Contaminants_Organic_Carbon_Water_Partition_Coefficient_Koc Contaminants_Species7) -> 0 | N206: =(Attenuation_Fraction_organic_carbon) * (Contaminants_Organic_Carbon_Water_Partition_Coefficient_Koc Contaminants_Species7) -> 0 | O206: =(Attenuation_Fraction_organic_carbon) * (Contaminants_Organic_Carbon_Water_Partition_Coefficient_Koc Contaminants_Species7) -> 0 | P206: =(Attenuation_Fraction_organic_carbon) * (Contaminants_Organic_Carbon_Water_Partition_Coefficient_Koc Contaminants_Species7) -> 0 | Q206: =(Attenuation_Fraction_organic_carbon) * (Contaminants_Organic_Carbon_Water_Partition_Coefficient_Koc Contaminants_Species7) -> 0 | R206: =(Attenuation_Fraction_organic_carbon) * (Contaminants_Organic_Carbon_Water_Partition_Coefficient_Koc Contaminants_Species7) -> 0
A207: Distribution | C207: constant | D207: constant | E207: constant | F207: constant | G207: constant | H207: constant | I207: constant | J207: constant | K207: constant | L207: constant | M207: constant | N207: constant | O207: constant | P207: constant | Q207: constant | R207: constant
A208: Attenuation_Partition_Coefficient_Kd_Species_7_param1
A209: Attenuation_Partition_Coefficient_Kd_Species_7_param2
A210: Attenuation_Partition_Coefficient_Kd_Species_7_param3
A213: Attenuation_Retardation_Species_7 | B213: [-] | C213: =1 + 0.001 * (Attenuation_Partition_Coefficient_Kd_Species_7) * (Attenuation_Dry_bulk_density) / (Hydrogeology_Porosity Hydrogeology!$C:$C) -> 1 | D213: =1 + 0.001 * (Attenuation_Partition_Coefficient_Kd_Species_7) * (Attenuation_Dry_bulk_density) / (Hydrogeology_Porosity Hydrogeology!$D:$D) -> 1 | E213: =1 + 0.001 * (Attenuation_Partition_Coefficient_Kd_Species_7) * (Attenuation_Dry_bulk_density) / (Hydrogeology_Porosity Hydrogeology!$E:$E) -> 1 | F213: =1 + 0.001 * (Attenuation_Partition_Coefficient_Kd_Species_7) * (Attenuation_Dry_bulk_density) / (Hydrogeology_Porosity Hydrogeology!$F:$F) -> 1 | G213: =1 + 0.001 * (Attenuation_Partition_Coefficient_Kd_Species_7) * (Attenuation_Dry_bulk_density) / (Hydrogeology_Porosity Hydrogeology!$G:$G) ->  | H213: =1 + 0.001 * (Attenuation_Partition_Coefficient_Kd_Species_7) * (Attenuation_Dry_bulk_density) / (Hydrogeology_Porosity Hydrogeology!$H:$H) ->  | I213: =1 + 0.001 * (Attenuation_Partition_Coefficient_Kd_Species_7) * (Attenuation_Dry_bulk_density) / (Hydrogeology_Porosity Hydrogeology!$I:$I) ->  | J213: =1 + 0.001 * (Attenuation_Partition_Coefficient_Kd_Species_7) * (Attenuation_Dry_bulk_density) / (Hydrogeology_Porosity Hydrogeology!$J:$J) ->  | K213: =1 + 0.001 * (Attenuation_Partition_Coefficient_Kd_Species_7) * (Attenuation_Dry_bulk_density) / (Hydrogeology_Porosity Hydrogeology!$K:$K) ->  | L213: =1 + 0.001 * (Attenuation_Partition_Coefficient_Kd_Species_7) * (Attenuation_Dry_bulk_density) / (Hydrogeology_Porosity Hydrogeology!$L:$L) ->  | M213: =1 + 0.001 * (Attenuation_Partition_Coefficient_Kd_Species_7) * (Attenuation_Dry_bulk_density) / (Hydrogeology_Porosity Hydrogeology!$M:$M) ->  | N213: =1 + 0.001 * (Attenuation_Partition_Coefficient_Kd_Species_7) * (Attenuation_Dry_bulk_density) / (Hydrogeology_Porosity Hydrogeology!$N:$N) ->  | O213: =1 + 0.001 * (Attenuation_Partition_Coefficient_Kd_Species_7) * (Attenuation_Dry_bulk_density) / (Hydrogeology_Porosity Hydrogeology!$O:$O) ->  | P213: =1 + 0.001 * (Attenuation_Partition_Coefficient_Kd_Species_7) * (Attenuation_Dry_bulk_density) / (Hydrogeology_Porosity Hydrogeology!$P:$P) ->  | Q213: =1 + 0.001 * (Attenuation_Partition_Coefficient_Kd_Species_7) * (Attenuation_Dry_bulk_density) / (Hydrogeology_Porosity Hydrogeology!$Q:$Q) ->  | R213: =1 + 0.001 * (Attenuation_Partition_Coefficient_Kd_Species_7) * (Attenuation_Dry_bulk_density) / (Hydrogeology_Porosity Hydrogeology!$R:$R) -> 
A214: Distribution | C214: constant | D214: constant | E214: constant | F214: constant | G214: constant | H214: constant | I214: constant | J214: constant | K214: constant | L214: constant | M214: constant | N214: constant | O214: constant | P214: constant | Q214: constant | R214: constant
A215: Attenuation_Retardation_Species_7_param1
A216: Attenuation_Retardation_Species_7_param2
A217: Attenuation_Retardation_Species_7_param3
A220: Attenuation_Half_Life_Species_7 | B220: days | C220: No Decay | D220: No Decay | E220: No Decay | F220: No Decay | G220: No Decay | H220: No Decay | I220: No Decay | J220: No Decay | K220: No Decay | L220: No Decay | M220: No Decay | N220: No Decay | O220: No Decay | P220: No Decay | Q220: No Decay | R220: No Decay
A221: Distribution | C221: constant | D221: constant | E221: constant | F221: constant | G221: constant | H221: constant | I221: constant | J221: constant | K221: constant | L221: constant | M221: constant | N221: constant | O221: constant | P221: constant | Q221: constant | R221: constant
A222: Attenuation_Half_Life_Species_7_param1
A223: Attenuation_Half_Life_Species_7_param2
A224: Attenuation_Half_Life_Species_7_param3
A227: Attenuation_Decay_Coefficient_Species_7 | B227: 1/s | C227: =IF((_xlfn.SINGLE(Attenuation_Half_Life_Species_7))<>"No Decay", LN(2) / ((_xlfn.SINGLE(Attenuation_Half_Life_Species_7)) *_xlfn.SINGLE( s_per_day)),0) -> 0 | D227: 0 | E227: 0 | F227: 0 | G227: 0 | H227: 0 | I227: 0 | J227: 0 | K227: 0 | L227: 0 | M227: 0 | N227: 0 | O227: 0 | P227: 0 | Q227: 0 | R227: 0
A228: Distribution | C228: constant | D228: constant | E228: constant | F228: constant | G228: constant | H228: constant | I228: constant | J228: constant | K228: constant | L228: constant | M228: constant | N228: constant | O228: constant | P228: constant | Q228: constant | R228: constant
A229: Attenuation_Decay_Coefficient_Species_7_param1
A230: Attenuation_Decay_Coefficient_Species_7_param2
A231: Attenuation_Decay_Coefficient_Species_7_param3
A234: =IF((Contaminants_Source_determinand_names Contaminants_Species8)=0,"Undefined",(Contaminants_Source_determinand_names Contaminants_Species8)) -> Undefined
A236: Attenuation_Partition_Coefficient_Kd_Species_8 | B236: L/kg | C236: =(Attenuation_Fraction_organic_carbon) * (Contaminants_Organic_Carbon_Water_Partition_Coefficient_Koc Contaminants_Species8) -> 0 | D236: =(Attenuation_Fraction_organic_carbon) * (Contaminants_Organic_Carbon_Water_Partition_Coefficient_Koc Contaminants_Species8) -> 0 | E236: =(Attenuation_Fraction_organic_carbon) * (Contaminants_Organic_Carbon_Water_Partition_Coefficient_Koc Contaminants_Species8) -> 0 | F236: =(Attenuation_Fraction_organic_carbon) * (Contaminants_Organic_Carbon_Water_Partition_Coefficient_Koc Contaminants_Species8) -> 0 | G236: =(Attenuation_Fraction_organic_carbon) * (Contaminants_Organic_Carbon_Water_Partition_Coefficient_Koc Contaminants_Species8) -> 0 | H236: =(Attenuation_Fraction_organic_carbon) * (Contaminants_Organic_Carbon_Water_Partition_Coefficient_Koc Contaminants_Species8) -> 0 | I236: =(Attenuation_Fraction_organic_carbon) * (Contaminants_Organic_Carbon_Water_Partition_Coefficient_Koc Contaminants_Species8) -> 0 | J236: =(Attenuation_Fraction_organic_carbon) * (Contaminants_Organic_Carbon_Water_Partition_Coefficient_Koc Contaminants_Species8) -> 0 | K236: =(Attenuation_Fraction_organic_carbon) * (Contaminants_Organic_Carbon_Water_Partition_Coefficient_Koc Contaminants_Species8) -> 0 | L236: =(Attenuation_Fraction_organic_carbon) * (Contaminants_Organic_Carbon_Water_Partition_Coefficient_Koc Contaminants_Species8) -> 0 | M236: =(Attenuation_Fraction_organic_carbon) * (Contaminants_Organic_Carbon_Water_Partition_Coefficient_Koc Contaminants_Species8) -> 0 | N236: =(Attenuation_Fraction_organic_carbon) * (Contaminants_Organic_Carbon_Water_Partition_Coefficient_Koc Contaminants_Species8) -> 0 | O236: =(Attenuation_Fraction_organic_carbon) * (Contaminants_Organic_Carbon_Water_Partition_Coefficient_Koc Contaminants_Species8) -> 0 | P236: =(Attenuation_Fraction_organic_carbon) * (Contaminants_Organic_Carbon_Water_Partition_Coefficient_Koc Contaminants_Species8) -> 0 | Q236: =(Attenuation_Fraction_organic_carbon) * (Contaminants_Organic_Carbon_Water_Partition_Coefficient_Koc Contaminants_Species8) -> 0 | R236: =(Attenuation_Fraction_organic_carbon) * (Contaminants_Organic_Carbon_Water_Partition_Coefficient_Koc Contaminants_Species8) -> 0
A237: Distribution | C237: constant | D237: constant | E237: constant | F237: constant | G237: constant | H237: constant | I237: constant | J237: constant | K237: constant | L237: constant | M237: constant | N237: constant | O237: constant | P237: constant | Q237: constant | R237: constant
A238: Attenuation_Partition_Coefficient_Kd_Species_8_param1
A239: Attenuation_Partition_Coefficient_Kd_Species_8_param2
A240: Attenuation_Partition_Coefficient_Kd_Species_8_param3
A243: Attenuation_Retardation_Species_8 | B243: [-] | C243: =1 + 0.001 * (Attenuation_Partition_Coefficient_Kd_Species_8) * (Attenuation_Dry_bulk_density) / (Hydrogeology_Porosity Hydrogeology!$C:$C) -> 1 | D243: =1 + 0.001 * (Attenuation_Partition_Coefficient_Kd_Species_8) * (Attenuation_Dry_bulk_density) / (Hydrogeology_Porosity Hydrogeology!$D:$D) -> 1 | E243: =1 + 0.001 * (Attenuation_Partition_Coefficient_Kd_Species_8) * (Attenuation_Dry_bulk_density) / (Hydrogeology_Porosity Hydrogeology!$E:$E) -> 1 | F243: =1 + 0.001 * (Attenuation_Partition_Coefficient_Kd_Species_8) * (Attenuation_Dry_bulk_density) / (Hydrogeology_Porosity Hydrogeology!$F:$F) -> 1 | G243: =1 + 0.001 * (Attenuation_Partition_Coefficient_Kd_Species_8) * (Attenuation_Dry_bulk_density) / (Hydrogeology_Porosity Hydrogeology!$G:$G) ->  | H243: =1 + 0.001 * (Attenuation_Partition_Coefficient_Kd_Species_8) * (Attenuation_Dry_bulk_density) / (Hydrogeology_Porosity Hydrogeology!$H:$H) ->  | I243: =1 + 0.001 * (Attenuation_Partition_Coefficient_Kd_Species_8) * (Attenuation_Dry_bulk_density) / (Hydrogeology_Porosity Hydrogeology!$I:$I) ->  | J243: =1 + 0.001 * (Attenuation_Partition_Coefficient_Kd_Species_8) * (Attenuation_Dry_bulk_density) / (Hydrogeology_Porosity Hydrogeology!$J:$J) ->  | K243: =1 + 0.001 * (Attenuation_Partition_Coefficient_Kd_Species_8) * (Attenuation_Dry_bulk_density) / (Hydrogeology_Porosity Hydrogeology!$K:$K) ->  | L243: =1 + 0.001 * (Attenuation_Partition_Coefficient_Kd_Species_8) * (Attenuation_Dry_bulk_density) / (Hydrogeology_Porosity Hydrogeology!$L:$L) ->  | M243: =1 + 0.001 * (Attenuation_Partition_Coefficient_Kd_Species_8) * (Attenuation_Dry_bulk_density) / (Hydrogeology_Porosity Hydrogeology!$M:$M) ->  | N243: =1 + 0.001 * (Attenuation_Partition_Coefficient_Kd_Species_8) * (Attenuation_Dry_bulk_density) / (Hydrogeology_Porosity Hydrogeology!$N:$N) ->  | O243: =1 + 0.001 * (Attenuation_Partition_Coefficient_Kd_Species_8) * (Attenuation_Dry_bulk_density) / (Hydrogeology_Porosity Hydrogeology!$O:$O) ->  | P243: =1 + 0.001 * (Attenuation_Partition_Coefficient_Kd_Species_8) * (Attenuation_Dry_bulk_density) / (Hydrogeology_Porosity Hydrogeology!$P:$P) ->  | Q243: =1 + 0.001 * (Attenuation_Partition_Coefficient_Kd_Species_8) * (Attenuation_Dry_bulk_density) / (Hydrogeology_Porosity Hydrogeology!$Q:$Q) ->  | R243: =1 + 0.001 * (Attenuation_Partition_Coefficient_Kd_Species_8) * (Attenuation_Dry_bulk_density) / (Hydrogeology_Porosity Hydrogeology!$R:$R) -> 
A244: Distribution | C244: constant | D244: constant | E244: constant | F244: constant | G244: constant | H244: constant | I244: constant | J244: constant | K244: constant | L244: constant | M244: constant | N244: constant | O244: constant | P244: constant | Q244: constant | R244: constant
A245: Attenuation_Retardation_Species_8_param1
A246: Attenuation_Retardation_Species_8_param2
A247: Attenuation_Retardation_Species_8_param3
A250: Attenuation_Half_Life_Species_8 | B250: days | C250: No Decay | D250: No Decay | E250: No Decay | F250: No Decay | G250: No Decay | H250: No Decay | I250: No Decay | J250: No Decay | K250: No Decay | L250: No Decay | M250: No Decay | N250: No Decay | O250: No Decay | P250: No Decay | Q250: No Decay | R250: No Decay
A251: Distribution | C251: constant | D251: constant | E251: constant | F251: constant | G251: constant | H251: constant | I251: constant | J251: constant | K251: constant | L251: constant | M251: constant | N251: constant | O251: constant | P251: constant | Q251: constant | R251: constant
A252: Attenuation_Half_Life_Species_8_param1
A253: Attenuation_Half_Life_Species_8_param2
A254: Attenuation_Half_Life_Species_8_param3
A257: Attenuation_Decay_Coefficient_Species_8 | B257: 1/s | C257: =IF((_xlfn.SINGLE(Attenuation_Half_Life_Species_8))<>"No Decay", LN(2) / ((_xlfn.SINGLE(Attenuation_Half_Life_Species_8)) *_xlfn.SINGLE( s_per_day)),0) -> 0 | D257: 0 | E257: 0 | F257: 0 | G257: 0 | H257: 0 | I257: 0 | J257: 0 | K257: 0 | L257: 0 | M257: 0 | N257: 0 | O257: 0 | P257: 0 | Q257: 0 | R257: 0
A258: Distribution | C258: constant | D258: constant | E258: constant | F258: constant | G258: constant | H258: constant | I258: constant | J258: constant | K258: constant | L258: constant | M258: constant | N258: constant | O258: constant | P258: constant | Q258: constant | R258: constant
A259: Attenuation_Decay_Coefficient_Species_8_param1
A260: Attenuation_Decay_Coefficient_Species_8_param2
A261: Attenuation_Decay_Coefficient_Species_8_param3

Sheet WaterBalance
A1: WATER BALANCE
A3: User defined
A5: Enter your own calculations for the water balance
A6: Carry fluxes and velocities over onto the Pathway sheet
A8: Average yearly rainfall (2010 - 2022) (mm/yr) | B8: 555 | C8: Chantry Rain Gauge
B9: =B8*0.4 -> 222 | C9: Estimated infiltration (60% runoff)
A11: Q_Path P4 | B11: =((B9/s_per_year)*P4_Source_area)/1000 -> 0.0005086902046 | C11: m3/s
A12: Q_Path P123 | B12: =((B9/s_per_year)*P1_2_3_Source_area)/1000 -> 0.002057265001 | C12: m3/s
A13: Q_Path AGB | B13: =B11+B12 -> 0.002565955206 | C13: m3/s

Sheet Pathways
A1: PATHWAY SUMMARY
A3: Path 1 | C3: Section 1 | E3: Section 2 | G3: Section 3 | I3: Section 4 | K3: Section 5
A4: Path 1 Type | C4: Source | E4: Unit | G4: Unit | I4: Unit | K4: Receptor
A5: Path 1 Name | C5: P1 2 3 | E5: AGB: Node 1 | G5: Unsat S&G: Node 1 | I5: Sat S&G: Node 2 | K5: Non-Haz Compliance
A6: Path 1 Process | C6: Declining source | E6: ADRD (1D) + Dilution | G6: ADRD (1D) + Dilution | I6: ADRD (1D) + Dilution | K6: Monitoring Borehole
A7: Path 1 Standards | J7: Target Standard | K7: P1 2 3
A8: Path 1 Parameter1 | B8: Q_managed [m3/s] | C8: 0 | D8: Velocity [m/s] | E8: =(AGB Hydrogeology_Velocity) -> 2.5e-08 | F8: Velocity [m/s] | G8: =(Unsat_SG Hydrogeology_Velocity) -> 0.0006 | H8: Velocity [m/s] | I8: =(Sat_SG Hydrogeology_Velocity) -> 6.075e-06
A9: Path 1 Parameter2 | B9: Managed time [years] | C9: 0 | D9: Dispersivity [m] | E9: =E10/10 -> 0.1 | F9: Dispersivity [m] | G9: =G10/10 -> 0.05 | H9: Dispersivity [m] | I9: =I10/10 -> 27
A10: Path 1 Parameter3 | B10: Q_path [m3/s] | C10: =WaterBalance!B12 -> 0.002057265001 | D10: Travel Distance [m] | E10: =Hydrogeology!C5 -> 1 | F10: Travel Distance [m] | G10: =Hydrogeology!D5 -> 0.5 | H10: Travel Distance [m] | I10: 270
A11: Path 1 Parameter4 | B11: Q_decline [m3/s] | C11: =WaterBalance!B12 -> 0.002057265001 | D11: Mixing Depth [m] | F11: Mixing Depth [m] | H11: Mixing Depth [m] | I11: =Hydrogeology!E5 -> 11
A12: Path 1 Parameter5 | D12: Mixing Width [m] | F12: Mixing Width [m] | H12: Mixing Width [m] | I12: =P1_2_3_Source_width -> 619
A13: Path 1 Parameter6 | D13: Q_Dilute [m3/s] | E13: =Path1_Param5*Path1_Param4*(AGB Hydrogeology_Hydraulic_Conductivity)*(AGB Hydrogeology_Hydraulic_Gradient) -> 0 | F13: Q_Dilute [m3/s] | G13: =Path1_Param5*Path1_Param4*(Unsat_SG Hydrogeology_Hydraulic_Conductivity)*(Unsat_SG Hydrogeology_Hydraulic_Gradient) -> 0 | H13: Q_Dilute [m3/s] | I13: =Path1_Param5*Path1_Param4*(Sat_SG Hydrogeology_Hydraulic_Conductivity)*(Sat_SG Hydrogeology_Hydraulic_Gradient) -> 0.008272935 | J13: Q_dilute [m3/s] | K13: 0
A16: Path 2 | C16: Section 1 | E16: Section 2 | G16: Section 3 | I16: Section 4
A17: Path 2 Type | C17: Source | E17: Unit | G17: Unit | I17: Receptor
A18: Path 2 Name | C18: P1 2 3 | E18: AGB: Node 2 | G18: Unsat S&G: Node 2 | I18: Haz Compliance
A19: Path 2 Process | C19: Declining source | E19: ADRD (1D) + Dilution | G19: ADRD (1D) + Dilution | I19: Monitoring Borehole
A20: Path 2 Standards | H20: Target Standard | I20: P1 2 3
A21: Path 2 Parameter1 | B21: Q_managed [m3/s] | C21: 0 | D21: Velocity [m/s] | E21: =(AGB Hydrogeology_Velocity) -> 2.5e-08 | F21: Velocity [m/s] | G21: =(Unsat_SG Hydrogeology_Velocity) -> 0.0006
A22: Path 2 Parameter2 | B22: Managed time [years] | C22: 0 | D22: Dispersivity [m] | E22: =E23/10 -> 0.1 | F22: Dispersivity [m] | G22: =G23/10 -> 0.05
A23: Path 2 Parameter3 | B23: Q_path [m3/s] | C23: =WaterBalance!B12 -> 0.002057265001 | D23: Travel Distance [m] | E23: =Hydrogeology!C5 -> 1 | F23: Travel Distance [m] | G23: =Hydrogeology!D5 -> 0.5
A24: Path 2 Parameter4 | B24: Q_decline [m3/s] | C24: =WaterBalance!B12 -> 0.002057265001 | D24: Mixing Depth [m] | F24: Mixing Depth [m]
A25: Path 2 Parameter5 | D25: Mixing Width [m] | F25: Mixing Width [m]
A26: Path 2 Parameter6 | D26: Q_Dilute [m3/s] | E26: =Path2_Param5*Path2_Param4*(AGB Hydrogeology_Hydraulic_Conductivity)*(AGB Hydrogeology_Hydraulic_Gradient) -> 0 | F26: Q_Dilute [m3/s] | G26: =Path2_Param5*Path2_Param4*(Unsat_SG Hydrogeology_Hydraulic_Conductivity)*(Unsat_SG Hydrogeology_Hydraulic_Gradient) -> 0 | H26: Q_dilute [m3/s] | I26: 0
A29: Path 3 | C29: Section 1 | E29: Section 2 | G29: Section 3 | I29: Section 4 | K29: Section 5
A30: Path 3 Type | C30: Source | E30: Unit | G30: Unit | I30: Unit | K30: Receptor
A31: Path 3 Name | C31: P4 | E31: AGB: Node 3 | G31: Unsat S&G: Node 3 | I31: Sat S&G: Node 3 | K31: Non-Haz Compliance
A32: Path 3 Process | C32: Declining source | E32: ADRD (1D) + Dilution | G32: ADRD (1D) + Dilution | I32: ADRD (1D) + Dilution | K32: Monitoring Borehole
A33: Path 3 Standards | J33: Target Standard | K33: P4
A34: Path 3 Parameter1 | B34: Q_managed [m3/s] | C34: 0 | D34: Velocity [m/s] | E34: =(AGB Hydrogeology_Velocity) -> 2.5e-08 | F34: Velocity [m/s] | G34: =(Unsat_SG Hydrogeology_Velocity) -> 0.0006 | H34: Velocity [m/s] | I34: =(Sat_SG Hydrogeology_Velocity) -> 6.075e-06
A35: Path 3 Parameter2 | B35: Managed time [years] | C35: 0 | D35: Dispersivity [m] | E35: =E36/10 -> 0.1 | F35: Dispersivity [m] | G35: =G36/10 -> 0.05 | H35: Dispersivity [m] | I35: =I36/10 -> 13.3
A36: Path 3 Parameter3 | B36: Q_path [m3/s] | C36: =WaterBalance!B11 -> 0.0005086902046 | D36: Travel Distance [m] | E36: =Hydrogeology!C5 -> 1 | F36: Travel Distance [m] | G36: =Hydrogeology!D5 -> 0.5 | H36: Travel Distance [m] | I36: 133
A37: Path 3 Parameter4 | B37: Q_decline [m3/s] | C37: =WaterBalance!B11 -> 0.0005086902046 | D37: Mixing Depth [m] | F37: Mixing Depth [m] | H37: Mixing Depth [m] | I37: =Hydrogeology!E5 -> 11
A38: Path 3 Parameter5 | D38: Mixing Width [m] | F38: Mixing Width [m] | H38: Mixing Width [m] | I38: =P4_Source_width -> 295
A39: Path 3 Parameter6 | D39: Q_Dilute [m3/s] | E39: =Path3_Param5*Path3_Param4*(AGB Hydrogeology_Hydraulic_Conductivity)*(AGB Hydrogeology_Hydraulic_Gradient) -> 0 | F39: Q_Dilute [m3/s] | G39: =Path3_Param5*Path3_Param4*(Unsat_SG Hydrogeology_Hydraulic_Conductivity)*(Unsat_SG Hydrogeology_Hydraulic_Gradient) -> 0 | H39: Q_Dilute [m3/s] | I39: =Path3_Param5*Path3_Param4*(Sat_SG Hydrogeology_Hydraulic_Conductivity)*(Sat_SG Hydrogeology_Hydraulic_Gradient) -> 0.003942675 | J39: Q_dilute [m3/s] | K39: 0
A42: Path 4 | C42: Section 1 | E42: Section 2 | G42: Section 3 | I42: Section 4
A43: Path 4 Type | C43: Source | E43: Unit | G43: Unit | I43: Receptor
A44: Path 4 Name | C44: P4 | E44: AGB: Node 4 | G44: Unsat S&G: Node 4 | I44: Haz Compliance
A45: Path 4 Process | C45: Declining source | E45: ADRD (1D) + Dilution | G45: ADRD (1D) + Dilution | I45: Monitoring Borehole
A46: Path 4 Standards | H46: Target Standard | I46: P4
A47: Path 4 Parameter1 | B47: Q_managed [m3/s] | C47: 0 | D47: Velocity [m/s] | E47: =(AGB Hydrogeology_Velocity) -> 2.5e-08 | F47: Velocity [m/s] | G47: =(Unsat_SG Hydrogeology_Velocity) -> 0.0006
A48: Path 4 Parameter2 | B48: Managed time [years] | C48: 0 | D48: Dispersivity [m] | E48: =E49/10 -> 0.1 | F48: Dispersivity [m] | G48: =G49/10 -> 0.05
A49: Path 4 Parameter3 | B49: Q_path [m3/s] | C49: =WaterBalance!B11 -> 0.0005086902046 | D49: Travel Distance [m] | E49: =Hydrogeology!C5 -> 1 | F49: Travel Distance [m] | G49: =Hydrogeology!D5 -> 0.5
A50: Path 4 Parameter4 | B50: Q_decline [m3/s] | C50: =WaterBalance!B11 -> 0.0005086902046 | D50: Mixing Depth [m] | F50: Mixing Depth [m]
A51: Path 4 Parameter5 | D51: Mixing Width [m] | F51: Mixing Width [m]
A52: Path 4 Parameter6 | D52: Q_Dilute [m3/s] | E52: =Path4_Param5*Path4_Param4*(AGB Hydrogeology_Hydraulic_Conductivity)*(AGB Hydrogeology_Hydraulic_Gradient) -> 0 | F52: Q_Dilute [m3/s] | G52: =Path4_Param5*Path4_Param4*(Unsat_SG Hydrogeology_Hydraulic_Conductivity)*(Unsat_SG Hydrogeology_Hydraulic_Gradient) -> 0 | H52: Q_dilute [m3/s] | I52: 0
A55: Path 5 | C55: Section 1 | E55: Section 2 | G55: Section 3 | I55: Section 4
A56: Path 5 Type | C56: Source | E56: Unit | G56: Unit | I56: Receptor
A57: Path 5 Name | C57: AGB | E57: Un Sat S&G 2: Node 4 | G57: Sat S&G: Node 1 | I57: Non-Haz Compliance
A58: Path 5 Process | C58: Declining source | E58: ADRD (1D) + Dilution | G58: ADRD (1D) + Dilution | I58: Monitoring Borehole
A59: Path 5 Standards | H59: Target Standard | I59: P1 2 3
A60: Path 5 Parameter1 | B60: Q_managed [m3/s] | C60: 0 | D60: Velocity [m/s] | E60: =(Un_Sat_SG_2 Hydrogeology_Velocity) -> 6.075e-06 | F60: Velocity [m/s] | G60: =(Sat_SG Hydrogeology_Velocity) -> 6.075e-06
A61: Path 5 Parameter2 | B61: Managed time [years] | C61: 0 | D61: Dispersivity [m] | E61: =E62/10 -> 0.05 | F61: Dispersivity [m] | G61: =G62/10 -> 13.3
A62: Path 5 Parameter3 | B62: Q_path [m3/s] | C62: =WaterBalance!B13 -> 0.002565955206 | D62: Travel Distance [m] | E62: =Hydrogeology!D5 -> 0.5 | F62: Travel Distance [m] | G62: 133
A63: Path 5 Parameter4 | B63: Q_decline [m3/s] | C63: =WaterBalance!B13 -> 0.002565955206 | D63: Mixing Depth [m] | F63: Mixing Depth [m] | G63: =Hydrogeology!E5 -> 11
A64: Path 5 Parameter5 | D64: Mixing Width [m] | F64: Mixing Width [m] | G64: 845
A65: Path 5 Parameter6 | D65: Q_Dilute [m3/s] | E65: =Path5_Param5*Path5_Param4*(Un_Sat_SG_2 Hydrogeology_Hydraulic_Conductivity)*(Un_Sat_SG_2 Hydrogeology_Hydraulic_Gradient) -> 0 | F65: Q_Dilute [m3/s] | G65: =Path5_Param5*Path5_Param4*(Sat_SG Hydrogeology_Hydraulic_Conductivity)*(Sat_SG Hydrogeology_Hydraulic_Gradient) -> 0.011293425 | H65: Q_dilute [m3/s] | I65: 0

Sheet Simulation
A1: SIMULATION PARAMETERS
B3: Monte Carlo Analysis with Crystal Ball | J3: Named Constants
C5: Reported Percentile | F5: 95 | K5: s_per_year | L5: =365.25*60*60*24 -> 31557600
C6: Number of simulations | F6: 10000 | K6: s_per_day | L6: =60*60*24 -> 86400
J9: Laplace Transform Solution Parameters
C11: Minimise while running: | K11: sigma | L11: 0
K12: nu | L12: 1
K13: nsum | L13: 16
K14: omega | L14: 11
B17: Reporting Options
C22: Number of timeslices for breakthrough curves | G22: 15
B24: The timeslices specified on the results sheets are saved below.
C25: Path1 timeslices in years
C26: TS_Path1_Spec1 | E26: TS_Path1_Spec2 | G26: TS_Path1_Spec3 | I26: TS_Path1_Spec4 | K26: TS_Path1_Spec5
C27: 0.1 | E27: 0.1 | G27: 0.1 | I27: 0.1 | K27: 0.1
C28: 0.2 | E28: 0.2 | G28: 0.2 | I28: 0.2 | K28: 0.2
C29: 0.5 | E29: 0.5 | G29: 0.5 | I29: 0.5 | K29: 0.5
C30: 0.75 | E30: 0.75 | G30: 0.75 | I30: 0.75 | K30: 0.75
C31: 1 | E31: 1 | G31: 1 | I31: 1 | K31: 1
C32: 2 | E32: 2 | G32: 2 | I32: 2 | K32: 2
C33: 5 | E33: 5 | G33: 5 | I33: 5 | K33: 5
C34: 10 | E34: 10 | G34: 10 | I34: 10 | K34: 10
C35: 50 | E35: 50 | G35: 50 | I35: 50 | K35: 50
C36: 100 | E36: 100 | G36: 100 | I36: 100 | K36: 100
C37: 250 | E37: 250 | G37: 250 | I37: 250 | K37: 250
C38: 500 | E38: 500 | G38: 500 | I38: 500 | K38: 500
C39: 1000 | E39: 1000 | G39: 1000 | I39: 1000 | K39: 1000
C40: 2000 | E40: 2000 | G40: 2000 | I40: 2000 | K40: 2000
C41: 3000 | E41: 3000 | G41: 3000 | I41: 3000 | K41: 3000
C42: Path2 timeslices in years
C43: TS_Path2_Spec1 | E43: TS_Path2_Spec2 | G43: TS_Path2_Spec3 | I43: TS_Path2_Spec4 | K43: TS_Path2_Spec5
C44: 0.1 | E44: 0.1 | G44: 0.1 | I44: 0.1 | K44: 0.1
C45: 0.2 | E45: 0.2 | G45: 0.2 | I45: 0.2 | K45: 0.2
C46: 0.5 | E46: 0.5 | G46: 0.5 | I46: 0.5 | K46: 0.5
C47: 0.75 | E47: 0.75 | G47: 0.75 | I47: 0.75 | K47: 0.75
C48: 1 | E48: 1 | G48: 1 | I48: 1 | K48: 1
C49: 2 | E49: 2 | G49: 2 | I49: 2 | K49: 2
C50: 5 | E50: 5 | G50: 5 | I50: 5 | K50: 5
C51: 10 | E51: 10 | G51: 10 | I51: 10 | K51: 10
C52: 50 | E52: 50 | G52: 50 | I52: 50 | K52: 50
C53: 100 | E53: 100 | G53: 100 | I53: 100 | K53: 100
C54: 250 | E54: 250 | G54: 250 | I54: 250 | K54: 250
C55: 500 | E55: 500 | G55: 500 | I55: 500 | K55: 500
C56: 1000 | E56: 1000 | G56: 1000 | I56: 1000 | K56: 1000
C57: 2000 | E57: 2000 | G57: 2000 | I57: 2000 | K57: 2000
C58: 3000 | E58: 3000 | G58: 3000 | I58: 3000 | K58: 3000
C59: Path3 timeslices in years
C60: TS_Path3_Spec1 | E60: TS_Path3_Spec2 | G60: TS_Path3_Spec3 | I60: TS_Path3_Spec4 | K60: TS_Path3_Spec5
C61: 0.1 | E61: 0.1 | G61: 0.1 | I61: 0.1 | K61: 0.1
C62: 0.2 | E62: 0.2 | G62: 0.2 | I62: 0.2 | K62: 0.2
C63: 0.5 | E63: 0.5 | G63: 0.5 | I63: 0.5 | K63: 0.5
C64: 0.75 | E64: 0.75 | G64: 0.75 | I64: 0.75 | K64: 0.75
C65: 1 | E65: 1 | G65: 1 | I65: 1 | K65: 1
C66: 2 | E66: 2 | G66: 2 | I66: 2 | K66: 2
C67: 5 | E67: 5 | G67: 5 | I67: 5 | K67: 5
C68: 10 | E68: 10 | G68: 10 | I68: 10 | K68: 10
C69: 50 | E69: 50 | G69: 50 | I69: 50 | K69: 50
C70: 100 | E70: 100 | G70: 100 | I70: 100 | K70: 100
C71: 250 | E71: 250 | G71: 250 | I71: 250 | K71: 250
C72: 500 | E72: 500 | G72: 500 | I72: 500 | K72: 500
C73: 1000 | E73: 1000 | G73: 1000 | I73: 1000 | K73: 1000
C74: 2000 | E74: 2000 | G74: 2000 | I74: 2000 | K74: 2000
C75: 3000 | E75: 3000 | G75: 3000 | I75: 3000 | K75: 3000
C76: Path4 timeslices in years
C77: TS_Path4_Spec1 | E77: TS_Path4_Spec2 | G77: TS_Path4_Spec3 | I77: TS_Path4_Spec4 | K77: TS_Path4_Spec5
C78: 0.1 | E78: 0.1 | G78: 0.1 | I78: 0.1 | K78: 0.1
C79: 0.2 | E79: 0.2 | G79: 0.2 | I79: 0.2 | K79: 0.2
C80: 0.5 | E80: 0.5 | G80: 0.5 | I80: 0.5 | K80: 0.5
C81: 0.75 | E81: 0.75 | G81: 0.75 | I81: 0.75 | K81: 0.75
C82: 1 | E82: 1 | G82: 1 | I82: 1 | K82: 1
C83: 2 | E83: 2 | G83: 2 | I83: 2 | K83: 2
C84: 5 | E84: 5 | G84: 5 | I84: 5 | K84: 5
C85: 10 | E85: 10 | G85: 10 | I85: 10 | K85: 10
C86: 50 | E86: 50 | G86: 50 | I86: 50 | K86: 50
C87: 100 | E87: 100 | G87: 100 | I87: 100 | K87: 100
C88: 250 | E88: 250 | G88: 250 | I88: 250 | K88: 250
C89: 500 | E89: 500 | G89: 500 | I89: 500 | K89: 500
C90: 1000 | E90: 1000 | G90: 1000 | I90: 1000 | K90: 1000
C91: 2000 | E91: 2000 | G91: 2000 | I91: 2000 | K91: 2000
C92: 3000 | E92: 3000 | G92: 3000 | I92: 3000 | K92: 3000
C93: Path5 timeslices in years
C94: TS_Path5_Spec1 | E94: TS_Path5_Spec2 | G94: TS_Path5_Spec3 | I94: TS_Path5_Spec4 | K94: TS_Path5_Spec5
C95: 0.1 | E95: 0.1 | G95: 0.1 | I95: 0.1 | K95: 0.1
C96: 0.2 | E96: 0.2 | G96: 0.2 | I96: 0.2 | K96: 0.2
C97: 0.5 | E97: 0.5 | G97: 0.5 | I97: 0.5 | K97: 0.5
C98: 0.75 | E98: 0.75 | G98: 0.75 | I98: 0.75 | K98: 0.75
C99: 1 | E99: 1 | G99: 1 | I99: 1 | K99: 1
C100: 2 | E100: 2 | G100: 2 | I100: 2 | K100: 2
C101: 5 | E101: 5 | G101: 5 | I101: 5 | K101: 5
C102: 10 | E102: 10 | G102: 10 | I102: 10 | K102: 10
C103: 50 | E103: 50 | G103: 50 | I103: 50 | K103: 50
C104: 100 | E104: 100 | G104: 100 | I104: 100 | K104: 100
C105: 250 | E105: 250 | G105: 250 | I105: 250 | K105: 250
C106: 500 | E106: 500 | G106: 500 | I106: 500 | K106: 500
C107: 1000 | E107: 1000 | G107: 1000 | I107: 1000 | K107: 1000
C108: 2000 | E108: 2000 | G108: 2000 | I108: 2000 | K108: 2000
C109: 3000 | E109: 3000 | G109: 3000 | I109: 3000 | K109: 3000

Sheet Audit
A1: AUDIT TRAIL SHEET
A3: Author | B3: Date | C3: Time | E3: Cell Address | G3: New Value | H3: Old Value | I3: Cell Name
A6: Saved 22/01/2026: 20:18:42 Level Number: 5
A8: BREAKTHROUGH RESULTS
A10: Advanced
A11: Pollutant Linkage: P1 2 3, AGB, Unsat S&G, Sat S&G, Non-Haz Compliance | M11: Pollutant Linkage: P1 2 3, AGB, Unsat S&G, Haz Compliance | Y11: Pollutant Linkage: P4, AGB, Unsat S&G, Sat S&G, Non-Haz Compliance | AK11: Pollutant Linkage: P4, AGB, Unsat S&G, Haz Compliance | AW11: Pollutant Linkage: AGB, Un Sat S&G 2, Sat S&G, Non-Haz Compliance
A12: Concentrations in mg/L in Non-Haz Compliance | M12: Concentrations in mg/L in Haz Compliance | Y12: Concentrations in mg/L in Non-Haz Compliance | AK12: Concentrations in mg/L in Haz Compliance | AW12: Concentrations in mg/L in Non-Haz Compliance
A14: Compared with P1 2 3 target concentration in mg/L | M14: Compared with P1 2 3 target concentration in mg/L | Y14: Compared with P4 target concentration in mg/L | AK14: Compared with P4 target concentration in mg/L | AW14: Compared with P1 2 3 target concentration in mg/L
B15: 0.005 | D15: 0.004 | F15: 74 | H15: 0.001 | J15: 5e-08 | N15: 0.005 | P15: 0.004 | R15: 74 | T15: 0.001 | V15: 5e-08 | Z15: 0.005 | AB15: 0.0185 | AD15: 74 | AF15: 0.001 | AH15: 5e-08 | AL15: 0.005 | AN15: 0.0185 | AP15: 74 | AR15: 0.001 | AT15: 5e-08 | AX15: 0.005 | AZ15: 0.004 | BB15: 74 | BD15: 0.001 | BF15: 5e-08
B17: Species1 | D17: Species2 | F17: Species3 | H17: Species4 | J17: Species5 | N17: Species1 | P17: Species2 | R17: Species3 | T17: Species4 | V17: Species5 | Z17: Species1 | AB17: Species2 | AD17: Species3 | AF17: Species4 | AH17: Species5 | AL17: Species1 | AN17: Species2 | AP17: Species3 | AR17: Species4 | AT17: Species5 | AX17: Species1 | AZ17: Species2 | BB17: Species3 | BD17: Species4 | BF17: Species5
A18: Time(years) | B18: Arsenic | C18: Time(years) | D18: Nickel | E18: Time(years) | F18: Sulphate | G18: Time(years) | H18: Benzene | I18: Time(years) | J18: BaP | M18: Time(years) | N18: Arsenic | O18: Time(years) | P18: Nickel | Q18: Time(years) | R18: Sulphate | S18: Time(years) | T18: Benzene | U18: Time(years) | V18: BaP | Y18: Time(years) | Z18: Arsenic | AA18: Time(years) | AB18: Nickel | AC18: Time(years) | AD18: Sulphate | AE18: Time(years) | AF18: Benzene | AG18: Time(years) | AH18: BaP | AK18: Time(years) | AL18: Arsenic | AM18: Time(years) | AN18: Nickel | AO18: Time(years) | AP18: Sulphate | AQ18: Time(years) | AR18: Benzene | AS18: Time(years) | AT18: BaP | AW18: Time(years) | AX18: Arsenic | AY18: Time(years) | AZ18: Nickel | BA18: Time(years) | BB18: Sulphate | BC18: Time(years) | BD18: Benzene | BE18: Time(years) | BF18: BaP
A19: 0.1 | B19: 0 | C19: 0.1 | D19: 0 | E19: 0.1 | F19: 0 | G19: 0.1 | H19: 0 | I19: 0.1 | J19: 0 | M19: 0.1 | N19: 0 | O19: 0.1 | P19: 0 | Q19: 0.1 | R19: 2.205803645e-11 | S19: 0.1 | T19: 0 | U19: 0.1 | V19: 0 | Y19: 0.1 | Z19: 0 | AA19: 0.1 | AB19: 0 | AC19: 0.1 | AD19: 0 | AE19: 0.1 | AF19: 0 | AG19: 0.1 | AH19: 0 | AK19: 0.1 | AL19: 0 | AM19: 0.1 | AN19: 0 | AO19: 0.1 | AP19: 2.205803645e-11 | AQ19: 0.1 | AR19: 0 | AS19: 0.1 | AT19: 0 | AW19: 0.1 | AX19: 0 | AY19: 0.1 | AZ19: 0 | BA19: 0.1 | BB19: 4.798231093e-08 | BC19: 0.1 | BD19: 0 | BE19: 0.1 | BF19: 0
A20: 0.2 | B20: 0 | C20: 0.2 | D20: 0 | E20: 0.2 | F20: 5.794241682e-18 | G20: 0.2 | H20: 0 | I20: 0.2 | J20: 0 | M20: 0.2 | N20: 0 | O20: 0.2 | P20: 0 | Q20: 0.2 | R20: 0.0001893986988 | S20: 0.2 | T20: 4.034068973e-38 | U20: 0.2 | V20: 0 | Y20: 0.2 | Z20: 0 | AA20: 0.2 | AB20: 0 | AC20: 0.2 | AD20: 2.417202123e-15 | AE20: 0.2 | AF20: 0 | AG20: 0.2 | AH20: 0 | AK20: 0.2 | AL20: 0 | AM20: 0.2 | AN20: 0 | AO20: 0.2 | AP20: 0.0001893986988 | AQ20: 0.2 | AR20: 4.034068973e-38 | AS20: 0.2 | AT20: 0 | AW20: 0.2 | AX20: 0 | AY20: 0.2 | AZ20: 0 | BA20: 0.2 | BB20: 0.0003917018009 | BC20: 0.2 | BD20: 5.525510272e-09 | BE20: 0.2 | BF20: 0
A21: 0.5 | B21: 0 | C21: 0.5 | D21: 0 | E21: 0.5 | F21: 4.720744048e-08 | G21: 0.5 | H21: 6.638947155e-33 | I21: 0.5 | J21: 0 | M21: 0.5 | N21: 0 | O21: 0.5 | P21: 0 | Q21: 0.5 | R21: 2.311873943 | S21: 0.5 | T21: 1.006105096e-23 | U21: 0.5 | V21: 0 | Y21: 0.5 | Z21: 0 | AA21: 0.5 | AB21: 0 | AC21: 0.5 | AD21: 4.201053103e-05 | AE21: 0.5 | AF21: 9.167932633e-30 | AG21: 0.5 | AH21: 0 | AK21: 0.5 | AL21: 0 | AM21: 0.5 | AN21: 0 | AO21: 0.5 | AP21: 2.311873943 | AQ21: 0.5 | AR21: 1.006105096e-23 | AS21: 0.5 | AT21: 0 | AW21: 0.5 | AX21: 0 | AY21: 0.5 | AZ21: 0 | BA21: 0.5 | BB21: 0.0486806998 | BC21: 0.5 | BD21: 0.000696532465 | BE21: 0.5 | BF21: 0
A22: 0.75 | B22: 0 | C22: 0.75 | D22: 0 | E22: 0.75 | F22: 0.000274593506 | G22: 0.75 | H22: 4.073065403e-26 | I22: 0.75 | J22: 0 | M22: 0.75 | N22: 0 | O22: 0.75 | P22: 0 | Q22: 0.75 | R22: 15.67405788 | S22: 0.75 | T22: 0 | U22: 0.75 | V22: 0 | Y22: 0.75 | Z22: 0 | AA22: 0.75 | AB22: 0 | AC22: 0.75 | AD22: 0.01676238779 | AE22: 0.75 | AF22: 0 | AG22: 0.75 | AH22: 0 | AK22: 0.75 | AL22: 0 | AM22: 0.75 | AN22: 0 | AO22: 0.75 | AP22: 15.67405788 | AQ22: 0.75 | AR22: 0 | AS22: 0.75 | AT22: 0 | AW22: 0.75 | AX22: 0 | AY22: 0.75 | AZ22: 0 | BA22: 0.75 | BB22: 0.09678263992 | BC22: 0.75 | BD22: 0.006674648564 | BE22: 0.75 | BF22: 0
A23: 1 | B23: 0 | C23: 1 | D23: 0 | E23: 1 | F23: 0.01779204777 | G23: 1 | H23: 1.00759036e-22 | I23: 1 | J23: 0 | M23: 1 | N23: 0 | O23: 1 | P23: 0 | Q23: 1 | R23: 36.29782931 | S23: 1 | T23: 0 | U23: 1 | V23: 0 | Y23: 1 | Z23: 0 | AA23: 1 | AB23: 0 | AC23: 1 | AD23: 0.2668098448 | AE23: 1 | AF23: 0 | AG23: 1 | AH23: 0 | AK23: 1 | AL23: 0 | AM23: 1 | AN23: 0 | AO23: 1 | AP23: 36.29782931 | AQ23: 1 | AR23: 0 | AS23: 1 | AT23: 0 | AW23: 1 | AX23: 0 | AY23: 1 | AZ23: 0 | BA23: 1 | BB23: 0.1087405237 | BC23: 1 | BD23: 0.01663812729 | BE23: 1 | BF23: 0
A24: 2 | B24: 0 | C24: 2 | D24: 0 | E24: 2 | F24: 4.215776893 | G24: 2 | H24: 0 | I24: 2 | J24: 0 | M24: 2 | N24: 0 | O24: 2 | P24: 0 | Q24: 2 | R24: 82.37660826 | S24: 2 | T24: 4.241594856e-10 | U24: 2 | V24: 0 | Y24: 2 | Z24: 0 | AA24: 2 | AB24: 0 | AC24: 2 | AD24: 6.450915376 | AE24: 2 | AF24: 9.591709695e-16 | AG24: 2 | AH24: 0 | AK24: 2 | AL24: 0 | AM24: 2 | AN24: 0 | AO24: 2 | AP24: 82.37660826 | AQ24: 2 | AR24: 4.241594856e-10 | AS24: 2 | AT24: 0 | AW24: 2 | AX24: 0 | AY24: 2 | AZ24: 0 | BA24: 2 | BB24: 0.05420798451 | BC24: 2 | BD24: 0.024691746 | BE24: 2 | BF24: 0
A25: 5 | B25: 0 | C25: 5 | D25: 0 | E25: 5 | F25: 15.58306399 | G25: 5 | H25: 2.234001066e-08 | I25: 5 | J25: 0 | M25: 5 | N25: 0 | O25: 5 | P25: 0 | Q25: 5 | R25: 69.28620079 | S25: 5 | T25: 2.497032083e-05 | U25: 5 | V25: 0 | Y25: 5 | Z25: 0 | AA25: 5 | AB25: 0 | AC25: 5 | AD25: 8.47227203 | AE25: 5 | AF25: 1.671070405e-07 | AG25: 5 | AH25: 0 | AK25: 5 | AL25: 0 | AM25: 5 | AN25: 0 | AO25: 5 | AP25: 69.28620079 | AQ25: 5 | AR25: 2.497032083e-05 | AS25: 5 | AT25: 0 | AW25: 5 | AX25: 0 | AY25: 5 | AZ25: 0 | BA25: 5 | BB25: 0.002977456497 | BC25: 5 | BD25: 0.00175268661 | BE25: 5 | BF25: 0
A26: 10 | B26: 0 | C26: 10 | D26: 0 | E26: 10 | F26: 9.70288632 | G26: 10 | H26: 2.099184375e-06 | I26: 10 | J26: 0 | M26: 10 | N26: 0 | O26: 10 | P26: 0 | Q26: 10 | R26: 42.3164783 | S26: 10 | T26: 0.0001017249999 | U26: 10 | V26: 0 | Y26: 10 | Z26: 0 | AA26: 10 | AB26: 0 | AC26: 10 | AD26: 5.180877312 | AE26: 10 | AF26: 3.624159295e-06 | AG26: 10 | AH26: 0 | AK26: 10 | AL26: 0 | AM26: 10 | AN26: 0 | AO26: 10 | AP26: 42.3164783 | AQ26: 10 | AR26: 0.0001017249999 | AS26: 10 | AT26: 0 | AW26: 10 | AX26: 0 | AY26: 10 | AZ26: 0 | BA26: 10 | BB26: 2.30825459e-05 | BC26: 10 | BD26: 1.361362026e-05 | BE26: 10 | BF26: 0
A27: 50 | B27: 0 | C27: 50 | D27: 0 | E27: 50 | F27: 0.1874506656 | G27: 50 | H27: 6.094180763e-08 | I27: 50 | J27: 0 | M27: 50 | N27: 0 | O27: 50 | P27: 1.111850041e-21 | Q27: 50 | R27: 0.8175114796 | S27: 50 | T27: 2.145317487e-06 | U27: 50 | V27: 0 | Y27: 50 | Z27: 0 | AA27: 50 | AB27: 0 | AC27: 50 | AD27: 0.1000893235 | AE27: 50 | AF27: 8.680100385e-08 | AG27: 50 | AH27: 0 | AK27: 50 | AL27: 0 | AM27: 50 | AN27: 1.111850041e-21 | AO27: 50 | AP27: 0.8175114796 | AQ27: 50 | AR27: 2.145317487e-06 | AS27: 50 | AT27: 0 | AW27: 50 | AX27: 0 | AY27: 50 | AZ27: 2.379080743e-24 | BA27: 50 | BB27: 0 | BC27: 50 | BD27: 0 | BE27: 50 | BF27: 0
A28: 100 | B28: 0 | C28: 100 | D28: 2.077250466e-39 | E28: 100 | F28: 0.001350067678 | G28: 100 | H28: 4.389322473e-10 | I28: 100 | J28: 0 | M28: 100 | N28: 0 | O28: 100 | P28: 4.36501046e-15 | Q28: 100 | R28: 0.005887773364 | S28: 100 | T28: 1.545165641e-08 | U28: 100 | V28: 0 | Y28: 100 | Z28: 0 | AA28: 100 | AB28: 2.484774978e-30 | AC28: 100 | AD28: 0.0007208587423 | AE28: 100 | AF28: 6.251838824e-10 | AG28: 100 | AH28: 0 | AK28: 100 | AL28: 0 | AM28: 100 | AN28: 4.36501046e-15 | AO28: 100 | AP28: 0.005887773372 | AQ28: 100 | AR28: 1.54516564e-08 | AS28: 100 | AT28: 0 | AW28: 100 | AX28: 0 | AY28: 100 | AZ28: 0 | BA28: 100 | BB28: 0 | BC28: 100 | BD28: 0 | BE28: 100 | BF28: 0
A29: 250 | B29: 0 | C29: 250 | D29: 1.153410395e-23 | E29: 250 | F29: 0 | G29: 250 | H29: 0 | I29: 250 | J29: 0 | M29: 250 | N29: 3.74044951e-27 | O29: 250 | P29: 4.605104041e-07 | Q29: 250 | R29: 0 | S29: 250 | T29: 0 | U29: 250 | V29: 0 | Y29: 250 | Z29: 0 | AA29: 250 | AB29: 0 | AC29: 250 | AD29: 0 | AE29: 250 | AF29: 0 | AG29: 250 | AH29: 0 | AK29: 250 | AL29: 3.74044951e-27 | AM29: 250 | AN29: 4.605104041e-07 | AO29: 250 | AP29: 0 | AQ29: 250 | AR29: 0 | AS29: 250 | AT29: 0 | AW29: 250 | AX29: 2.285800298e-31 | AY29: 250 | AZ29: 5.512726121e-09 | BA29: 250 | BB29: 0 | BC29: 250 | BD29: 0 | BE29: 250 | BF29: 0
A30: 500 | B30: 0 | C30: 500 | D30: 0 | E30: 500 | F30: 0 | G30: 500 | H30: 0 | I30: 500 | J30: 0 | M30: 500 | N30: 3.419439634e-21 | O30: 500 | P30: 8.2122088e-05 | Q30: 500 | R30: 0 | S30: 500 | T30: 0 | U30: 500 | V30: 0 | Y30: 500 | Z30: 0 | AA30: 500 | AB30: 2.118296932e-13 | AC30: 500 | AD30: 0 | AE30: 500 | AF30: 0 | AG30: 500 | AH30: 0 | AK30: 500 | AL30: 3.419439634e-21 | AM30: 500 | AN30: 8.2122088e-05 | AO30: 500 | AP30: 0 | AQ30: 500 | AR30: 0 | AS30: 500 | AT30: 0 | AW30: 500 | AX30: 0 | AY30: 500 | AZ30: 8.760446541e-06 | BA30: 500 | BB30: 2.636408733e-12 | BC30: 500 | BD30: 0 | BE30: 500 | BF30: 0
A31: 1000 | B31: 4.578105437e-35 | C31: 1000 | D31: 2.181068014e-10 | E31: 1000 | F31: 0 | G31: 1000 | H31: 0 | I31: 1000 | J31: 0 | M31: 1000 | N31: 3.891028236e-13 | O31: 1000 | P31: 0.0003230491628 | Q31: 1000 | R31: 0 | S31: 1000 | T31: 0 | U31: 1000 | V31: 0 | Y31: 1000 | Z31: 1.41075372e-28 | AA31: 1000 | AB31: 1.156021274e-07 | AC31: 1000 | AD31: 0 | AE31: 1000 | AF31: 0 | AG31: 1000 | AH31: 0 | AK31: 1000 | AL31: 3.891028236e-13 | AM31: 1000 | AN31: 0.0003230491628 | AO31: 1000 | AP31: 0 | AQ31: 1000 | AR31: 0 | AS31: 1000 | AT31: 0 | AW31: 1000 | AX31: 1.375217626e-17 | AY31: 1000 | AZ31: 0.0001087189072 | BA31: 1000 | BB31: 5.570828369e-12 | BC31: 1000 | BD31: 1.279443516e-12 | BE31: 1000 | BF31: 0
A32: 2000 | B32: 7.263484557e-25 | C32: 2000 | D32: 1.963656873e-06 | E32: 2000 | F32: 0 | G32: 2000 | H32: 0 | I32: 2000 | J32: 0 | M32: 2000 | N32: 6.767043418e-08 | O32: 2000 | P32: 0.0001047705669 | Q32: 2000 | R32: 0 | S32: 2000 | T32: 0 | U32: 2000 | V32: 0 | Y32: 2000 | Z32: 0 | AA32: 2000 | AB32: 1.453509131e-05 | AC32: 2000 | AD32: 0 | AE32: 2000 | AF32: 0 | AG32: 2000 | AH32: 0 | AK32: 2000 | AL32: 6.767043418e-08 | AM32: 2000 | AN32: 0.0001047705669 | AO32: 2000 | AP32: 0 | AQ32: 2000 | AR32: 0 | AS32: 2000 | AT32: 0 | AW32: 2000 | AX32: 4.52189799e-10 | AY32: 2000 | AZ32: 7.316983073e-05 | BA32: 2000 | BB32: 3.919664927e-12 | BC32: 2000 | BD32: 1.101580633e-12 | BE32: 2000 | BF32: 0
A33: 3000 | B33: 0 | C33: 3000 | D33: 1.533768685e-05 | E33: 3000 | F33: 0 | G33: 3000 | H33: 0 | I33: 3000 | J33: 0 | M33: 3000 | N33: 2.471401627e-06 | O33: 3000 | P33: 1.790011385e-05 | Q33: 3000 | R33: 1.431323095e-09 | S33: 3000 | T33: 0 | U33: 3000 | V33: 0 | Y33: 3000 | Z33: 1.690481786e-18 | AA33: 3000 | AB33: 1.932070327e-05 | AC33: 3000 | AD33: 5.141711036e-11 | AE33: 3000 | AF33: 0 | AG33: 3000 | AH33: 0 | AK33: 3000 | AL33: 2.471401627e-06 | AM33: 3000 | AN33: 1.790011385e-05 | AO33: 3000 | AP33: 1.431812362e-09 | AQ33: 3000 | AR33: 0 | AS33: 3000 | AT33: 0 | AW33: 3000 | AX33: 8.458483223e-08 | AY33: 3000 | AZ33: 1.830968341e-05 | BA33: 3000 | BB33: 2.874175108e-12 | BC33: 3000 | BD33: 8.406780466e-13 | BE33: 3000 | BF33: 0
A36: Pollutant Linkage: P1 2 3, AGB, Unsat S&G, Sat S&G, Non-Haz Compliance | M36: Pollutant Linkage: P1 2 3, AGB, Unsat S&G, Haz Compliance | Y36: Pollutant Linkage: P4, AGB, Unsat S&G, Sat S&G, Non-Haz Compliance | AK36: Pollutant Linkage: P4, AGB, Unsat S&G, Haz Compliance | AW36: Pollutant Linkage: AGB, Un Sat S&G 2, Sat S&G, Non-Haz Compliance
A37: Remedial Target Concentrations in mg/L in P1 2 3 | M37: Remedial Target Concentrations in mg/L in P1 2 3 | Y37: Remedial Target Concentrations in mg/L in P4 | AK37: Remedial Target Concentrations in mg/L in P4 | AW37: Remedial Target Concentrations in mg/L in AGB
B39: Species1 | D39: Species2 | F39: Species3 | H39: Species4 | J39: Species5 | N39: Species1 | P39: Species2 | R39: Species3 | T39: Species4 | V39: Species5 | Z39: Species1 | AB39: Species2 | AD39: Species3 | AF39: Species4 | AH39: Species5 | AL39: Species1 | AN39: Species2 | AP39: Species3 | AR39: Species4 | AT39: Species5 | AX39: Species1 | AZ39: Species2 | BB39: Species3 | BD39: Species4 | BF39: Species5
A40: Time(years) | B40: Arsenic | C40: Time(years) | D40: Nickel | E40: Time(years) | F40: Sulphate | G40: Time(years) | H40: Benzene | I40: Time(years) | J40: BaP | M40: Time(years) | N40: Arsenic | O40: Time(years) | P40: Nickel | Q40: Time(years) | R40: Sulphate | S40: Time(years) | T40: Benzene | U40: Time(years) | V40: BaP | Y40: Time(years) | Z40: Arsenic | AA40: Time(years) | AB40: Nickel | AC40: Time(years) | AD40: Sulphate | AE40: Time(years) | AF40: Benzene | AG40: Time(years) | AH40: BaP | AK40: Time(years) | AL40: Arsenic | AM40: Time(years) | AN40: Nickel | AO40: Time(years) | AP40: Sulphate | AQ40: Time(years) | AR40: Benzene | AS40: Time(years) | AT40: BaP | AW40: Time(years) | AX40: Arsenic | AY40: Time(years) | AZ40: Nickel | BA40: Time(years) | BB40: Sulphate | BC40: Time(years) | BD40: Benzene | BE40: Time(years) | BF40: BaP
A41: 0.1 | B41: 1e+40 | C41: 0.1 | D41: 1e+40 | E41: 0.1 | F41: 1e+40 | G41: 0.1 | H41: 1e+40 | I41: 0.1 | J41: 1e+40 | M41: 0.1 | N41: 1e+40 | O41: 0.1 | P41: 1e+40 | Q41: 0.1 | R41: 3.354786368e+14 | S41: 0.1 | T41: 1e+40 | U41: 0.1 | V41: 1e+40 | Y41: 0.1 | Z41: 1e+40 | AA41: 0.1 | AB41: 1e+40 | AC41: 0.1 | AD41: 1e+40 | AE41: 0.1 | AF41: 1e+40 | AG41: 0.1 | AH41: 1e+40 | AK41: 0.1 | AL41: 1e+40 | AM41: 0.1 | AN41: 1e+40 | AO41: 0.1 | AP41: 3.354786368e+14 | AQ41: 0.1 | AR41: 1e+40 | AS41: 0.1 | AT41: 1e+40 | AW41: 0.1 | AX41: 1e+40 | AY41: 0.1 | AZ41: 1e+40 | BA41: 0.1 | BB41: 1542235015 | BC41: 0.1 | BD41: 1e+40 | BE41: 0.1 | BF41: 1e+40
A42: 0.2 | B42: 1e+40 | C42: 0.2 | D42: 1e+40 | E42: 0.2 | F42: 1.277130021e+21 | G42: 0.2 | H42: 1e+40 | I42: 0.2 | J42: 1e+40 | M42: 0.2 | N42: 1e+40 | O42: 0.2 | P42: 1e+40 | Q42: 0.2 | R42: 39071018.15 | S42: 0.2 | T42: 1.487332031e+34 | U42: 0.2 | V42: 1e+40 | Y42: 0.2 | Z42: 1e+40 | AA42: 0.2 | AB42: 1e+40 | AC42: 0.2 | AD42: 3.061390659e+18 | AE42: 0.2 | AF42: 1e+40 | AG42: 0.2 | AH42: 1e+40 | AK42: 0.2 | AL42: 1e+40 | AM42: 0.2 | AN42: 1e+40 | AO42: 0.2 | AP42: 39071018.15 | AQ42: 0.2 | AR42: 1.487332031e+34 | AS42: 0.2 | AT42: 1e+40 | AW42: 0.2 | AX42: 1e+40 | AY42: 0.2 | AZ42: 1e+40 | BA42: 0.2 | BB42: 188919.2233 | BC42: 0.2 | BD42: 180978.7605 | BE42: 0.2 | BF42: 1e+40
A43: 0.5 | B43: 1e+40 | C43: 0.5 | D43: 1e+40 | E43: 0.5 | F43: 1.567549506e+11 | G43: 0.5 | H43: 9.037577586e+28 | I43: 0.5 | J43: 1e+40 | M43: 0.5 | N43: 1e+40 | O43: 0.5 | P43: 1e+40 | Q43: 0.5 | R43: 3200.866562 | S43: 0.5 | T43: 5.963591702e+19 | U43: 0.5 | V43: 1e+40 | Y43: 0.5 | Z43: 1e+40 | AA43: 0.5 | AB43: 1e+40 | AC43: 0.5 | AD43: 176146309.5 | AE43: 0.5 | AF43: 6.544550707e+25 | AG43: 0.5 | AH43: 1e+40 | AK43: 0.5 | AL43: 1e+40 | AM43: 0.5 | AN43: 1e+40 | AO43: 0.5 | AP43: 3200.866562 | AQ43: 0.5 | AR43: 5.963591702e+19 | AS43: 0.5 | AT43: 1e+40 | AW43: 0.5 | AX43: 1e+40 | AY43: 0.5 | AZ43: 1e+40 | BA43: 0.5 | BB43: 1520.109618 | BC43: 0.5 | BD43: 1.43568326 | BE43: 0.5 | BF43: 1e+40
A44: 0.75 | B44: 1e+40 | C44: 0.75 | D44: 1e+40 | E44: 0.75 | F44: 26948925.73 | G44: 0.75 | H44: 1.473091985e+22 | I44: 0.75 | J44: 1e+40 | M44: 0.75 | N44: 1e+40 | O44: 0.75 | P44: 1e+40 | Q44: 0.75 | R44: 472.1176902 | S44: 0.75 | T44: 1e+40 | U44: 0.75 | V44: 1e+40 | Y44: 0.75 | Z44: 1e+40 | AA44: 0.75 | AB44: 1e+40 | AC44: 0.75 | AD44: 441464.5509 | AE44: 0.75 | AF44: 1e+40 | AG44: 0.75 | AH44: 1e+40 | AK44: 0.75 | AL44: 1e+40 | AM44: 0.75 | AN44: 1e+40 | AO44: 0.75 | AP44: 472.1176902 | AQ44: 0.75 | AR44: 1e+40 | AS44: 0.75 | AT44: 1e+40 | AW44: 0.75 | AX44: 1e+40 | AY44: 0.75 | AZ44: 1e+40 | BA44: 0.75 | BB44: 764.599933 | BC44: 0.75 | BD44: 0.1498206221 | BE44: 0.75 | BF44: 1e+40
A45: 1 | B45: 1e+40 | C45: 1 | D45: 1e+40 | E45: 1 | F45: 415916.1494 | G45: 1 | H45: 5.95480092e+18 | I45: 1 | J45: 1e+40 | M45: 1 | N45: 1e+40 | O45: 1 | P45: 1e+40 | Q45: 1 | R45: 203.8689404 | S45: 1 | T45: 1e+40 | U45: 1 | V45: 1e+40 | Y45: 1 | Z45: 1e+40 | AA45: 1 | AB45: 1e+40 | AC45: 1 | AD45: 27735.10852 | AE45: 1 | AF45: 1e+40 | AG45: 1 | AH45: 1e+40 | AK45: 1 | AL45: 1e+40 | AM45: 1 | AN45: 1e+40 | AO45: 1 | AP45: 203.8689404 | AQ45: 1 | AR45: 1e+40 | AS45: 1 | AT45: 1e+40 | AW45: 1 | AX45: 1e+40 | AY45: 1 | AZ45: 1e+40 | BA45: 1 | BB45: 680.5190693 | BC45: 1 | BD45: 0.06010291799 | BE45: 1 | BF45: 1e+40
A46: 2 | B46: 1e+40 | C46: 2 | D46: 1e+40 | E46: 2 | F46: 1755.311106 | G46: 2 | H46: 1e+40 | I46: 2 | J46: 1e+40 | M46: 2 | N46: 1e+40 | O46: 2 | P46: 1e+40 | Q46: 2 | R46: 89.8313266 | S46: 2 | T46: 1414562.259 | U46: 2 | V46: 1e+40 | Y46: 2 | Z46: 1e+40 | AA46: 2 | AB46: 1e+40 | AC46: 2 | AD46: 1147.124023 | AE46: 2 | AF46: 6.255401999e+11 | AG46: 2 | AH46: 1e+40 | AK46: 2 | AL46: 1e+40 | AM46: 2 | AN46: 1e+40 | AO46: 2 | AP46: 89.8313266 | AQ46: 2 | AR46: 1414562.259 | AS46: 2 | AT46: 1e+40 | AW46: 2 | AX46: 1e+40 | AY46: 2 | AZ46: 1e+40 | BA46: 2 | BB46: 1365.112551 | BC46: 2 | BD46: 0.04049936363 | BE46: 2 | BF46: 1e+40
A47: 5 | B47: 1e+40 | C47: 5 | D47: 1e+40 | E47: 5 | F47: 474.8745179 | G47: 5 | H47: 26857.64161 | I47: 5 | J47: 1e+40 | M47: 5 | N47: 1e+40 | O47: 5 | P47: 1e+40 | Q47: 5 | R47: 106.8033738 | S47: 5 | T47: 24.02852587 | U47: 5 | V47: 1e+40 | Y47: 5 | Z47: 1e+40 | AA47: 5 | AB47: 1e+40 | AC47: 5 | AD47: 873.4374881 | AE47: 5 | AF47: 3590.512992 | AG47: 5 | AH47: 1e+40 | AK47: 5 | AL47: 1e+40 | AM47: 5 | AN47: 1e+40 | AO47: 5 | AP47: 106.8033738 | AQ47: 5 | AR47: 24.02852587 | AS47: 5 | AT47: 1e+40 | AW47: 5 | AX47: 1e+40 | AY47: 5 | AZ47: 1e+40 | BA47: 5 | BB47: 24853.42778 | BC47: 5 | BD47: 0.5705526558 | BE47: 5 | BF47: 1e+40
A48: 10 | B48: 1e+40 | C48: 10 | D48: 1e+40 | E48: 10 | F48: 762.6596619 | G48: 10 | H48: 285.8252983 | I48: 10 | J48: 1e+40 | M48: 10 | N48: 1e+40 | O48: 10 | P48: 1e+40 | Q48: 10 | R48: 174.8727753 | S48: 10 | T48: 5.898255105 | U48: 10 | V48: 1e+40 | Y48: 10 | Z48: 1e+40 | AA48: 10 | AB48: 1e+40 | AC48: 10 | AD48: 1428.329519 | AE48: 10 | AF48: 165.5556368 | AG48: 10 | AH48: 1e+40 | AK48: 10 | AL48: 1e+40 | AM48: 10 | AN48: 1e+40 | AO48: 10 | AP48: 174.8727753 | AQ48: 10 | AR48: 5.898255105 | AS48: 10 | AT48: 1e+40 | AW48: 10 | AX48: 1e+40 | AY48: 10 | AZ48: 1e+40 | BA48: 10 | BB48: 3205885.535 | BC48: 10 | BD48: 73.45584651 | BE48: 10 | BF48: 1e+40
A49: 50 | B49: 1e+40 | C49: 50 | D49: 1e+40 | E49: 50 | F49: 39477.05375 | G49: 50 | H49: 9845.457878 | I49: 50 | J49: 1e+40 | M49: 50 | N49: 1e+40 | O49: 50 | P49: 1.439042983e+17 | Q49: 50 | R49: 9051.860659 | S49: 50 | T49: 279.6788837 | U49: 50 | V49: 1e+40 | Y49: 50 | Z49: 1e+40 | AA49: 50 | AB49: 1e+40 | AC49: 50 | AD49: 73933.95961 | AE49: 50 | AF49: 6912.362454 | AG49: 50 | AH49: 1e+40 | AK49: 50 | AL49: 1e+40 | AM49: 50 | AN49: 6.655573797e+17 | AO49: 50 | AP49: 9051.860659 | AQ49: 50 | AR49: 279.6788837 | AS49: 50 | AT49: 1e+40 | AW49: 50 | AX49: 1e+40 | AY49: 50 | AZ49: 1.681321667e+21 | BA49: 50 | BB49: 1e+40 | BC49: 50 | BD49: 1e+40 | BE49: 50 | BF49: 1e+40
A50: 100 | B50: 1e+40 | C50: 100 | D50: 7.702489546e+34 | E50: 100 | F50: 5481206.698 | G50: 100 | H50: 1366953.564 | I50: 100 | J50: 1e+40 | M50: 100 | N50: 1e+40 | O50: 100 | P50: 3.665512408e+10 | Q50: 100 | R50: 1256841.856 | S50: 100 | T50: 38830.78837 | U50: 100 | V50: 1e+40 | Y50: 100 | Z50: 1e+40 | AA50: 100 | AB50: 2.978136879e+26 | AC50: 100 | AD50: 10265534.1 | AE50: 100 | AF50: 959717.6397 | AG50: 100 | AH50: 1e+40 | AK50: 100 | AL50: 1e+40 | AM50: 100 | AN50: 1.695299489e+11 | AO50: 100 | AP50: 1256841.854 | AQ50: 100 | AR50: 38830.78838 | AS50: 100 | AT50: 1e+40 | AW50: 100 | AX50: 1e+40 | AY50: 100 | AZ50: 1e+40 | BA50: 100 | BB50: 1e+40 | BC50: 100 | BD50: 1e+40 | BE50: 100 | BF50: 1e+40
A51: 250 | B51: 1e+40 | C51: 250 | D51: 1.387190549e+19 | E51: 250 | F51: 1e+40 | G51: 250 | H51: 1e+40 | I51: 250 | J51: 1e+40 | M51: 250 | N51: 6.683688667e+22 | O51: 250 | P51: 347.4405758 | Q51: 250 | R51: 1e+40 | S51: 250 | T51: 1e+40 | U51: 250 | V51: 1e+40 | Y51: 250 | Z51: 1e+40 | AA51: 250 | AB51: 1e+40 | AC51: 250 | AD51: 1e+40 | AE51: 250 | AF51: 1e+40 | AG51: 250 | AH51: 1e+40 | AK51: 250 | AL51: 6.683688667e+22 | AM51: 250 | AN51: 1606.912663 | AO51: 250 | AP51: 1e+40 | AQ51: 250 | AR51: 1e+40 | AS51: 250 | AT51: 1e+40 | AW51: 250 | AX51: 2.187417687e+28 | AY51: 250 | AZ51: 725593.8191 | BA51: 250 | BB51: 1e+40 | BC51: 250 | BD51: 1e+40 | BE51: 250 | BF51: 1e+40
A52: 500 | B52: 1e+40 | C52: 500 | D52: 1e+40 | E52: 500 | F52: 1e+40 | G52: 500 | H52: 1e+40 | I52: 500 | J52: 1e+40 | M52: 500 | N52: 7.311139448e+16 | O52: 500 | P52: 1.948318703 | Q52: 500 | R52: 1e+40 | S52: 500 | T52: 1e+40 | U52: 500 | V52: 1e+40 | Y52: 500 | Z52: 1e+40 | AA52: 500 | AB52: 3493372382 | AC52: 500 | AD52: 1e+40 | AE52: 500 | AF52: 1e+40 | AG52: 500 | AH52: 1e+40 | AK52: 500 | AL52: 7.311139448e+16 | AM52: 500 | AN52: 9.010974002 | AO52: 500 | AP52: 1e+40 | AQ52: 500 | AR52: 1e+40 | AS52: 500 | AT52: 1e+40 | AW52: 500 | AX52: 1e+40 | AY52: 500 | AZ52: 456.5977295 | BA52: 500 | BB52: 2.806848539e+13 | BC52: 500 | BD52: 1e+40 | BE52: 500 | BF52: 1e+40
A53: 1000 | B53: 5.460774187e+30 | C53: 1000 | D53: 733585.5597 | E53: 1000 | F53: 1e+40 | G53: 1000 | H53: 1e+40 | I53: 1000 | J53: 1e+40 | M53: 1000 | N53: 642503690.2 | O53: 1000 | P53: 0.4952806521 | Q53: 1000 | R53: 1e+40 | S53: 1000 | T53: 1e+40 | U53: 1000 | V53: 1e+40 | Y53: 1000 | Z53: 1.772102362e+24 | AA53: 1000 | AB53: 6401.266277 | AC53: 1000 | AD53: 1e+40 | AE53: 1000 | AF53: 1e+40 | AG53: 1000 | AH53: 1e+40 | AK53: 1000 | AL53: 642503690.2 | AM53: 1000 | AN53: 2.290673016 | AO53: 1000 | AP53: 1e+40 | AQ53: 1000 | AR53: 1e+40 | AS53: 1000 | AT53: 1e+40 | AW53: 1000 | AX53: 3.635788187e+14 | AY53: 1000 | AZ53: 36.79212846 | BA53: 1000 | BB53: 1.328348229e+13 | BC53: 1000 | BD53: 781589798.3 | BE53: 1000 | BF53: 1e+40
A54: 2000 | B54: 3.441874186e+20 | C54: 2000 | D54: 81.48063046 | E54: 2000 | F54: 1e+40 | G54: 2000 | H54: 1e+40 | I54: 2000 | J54: 1e+40 | M54: 2000 | N54: 3694.375587 | O54: 2000 | P54: 1.527146457 | Q54: 2000 | R54: 1e+40 | S54: 2000 | T54: 1e+40 | U54: 2000 | V54: 1e+40 | Y54: 2000 | Z54: 1e+40 | AA54: 2000 | AB54: 50.91127288 | AC54: 2000 | AD54: 1e+40 | AE54: 2000 | AF54: 1e+40 | AG54: 2000 | AH54: 1e+40 | AK54: 2000 | AL54: 3694.375587 | AM54: 2000 | AN54: 7.063052363 | AO54: 2000 | AP54: 1e+40 | AQ54: 2000 | AR54: 1e+40 | AS54: 2000 | AT54: 1e+40 | AW54: 2000 | AX54: 11057303.84 | AY54: 2000 | AZ54: 54.6673398 | BA54: 2000 | BB54: 1.887916477e+13 | BC54: 2000 | BD54: 907786475.2 | BE54: 2000 | BF54: 1e+40
A55: 3000 | B55: 1e+40 | C55: 3000 | D55: 10.43182076 | E55: 3000 | F55: 1e+40 | G55: 3000 | H55: 1e+40 | I55: 3000 | J55: 1e+40 | M55: 3000 | N55: 101.1571722 | O55: 3000 | P55: 8.938490634 | Q55: 3000 | R55: 5.170041638e+12 | S55: 3000 | T55: 1e+40 | U55: 3000 | V55: 1e+40 | Y55: 3000 | Z55: 1.478868345e+14 | AA55: 3000 | AB55: 38.30088324 | AC55: 3000 | AD55: 1.439209623e+14 | AE55: 3000 | AF55: 1e+40 | AG55: 3000 | AH55: 1e+40 | AK55: 3000 | AL55: 101.1571722 | AM55: 3000 | AN55: 41.34051918 | AO55: 3000 | AP55: 5.168274974e+12 | AQ55: 3000 | AR55: 1e+40 | AS55: 3000 | AT55: 1e+40 | AW55: 3000 | AX55: 59112.25297 | AY55: 3000 | AZ55: 218.4636353 | BA55: 3000 | BB55: 2.574651759e+13 | BC55: 3000 | BD55: 1189516015 | BE55: 3000 | BF55: 1e+40
A57: Compared with source concentrations in mg/L | M57: Compared with source concentrations in mg/L | Y57: Compared with source concentrations in mg/L | AK57: Compared with source concentrations in mg/L | AW57: Compared with source concentrations in mg/L
B58: 0.05 | D58: 0.04 | F58: 100 | H58: 0.6 | J58: 10 | N58: 0.05 | P58: 0.04 | R58: 100 | T58: 0.6 | V58: 10 | Z58: 0.05 | AB58: 0.04 | AD58: 100 | AF58: 0.6 | AH58: 10 | AL58: 0.05 | AN58: 0.04 | AP58: 100 | AR58: 0.6 | AT58: 10 | AX58: 1 | AZ58: 1 | BB58: 1 | BD58: 1 | BF58: 1
A61: Pollutant Linkage: P1 2 3, AGB, Unsat S&G, Sat S&G, Non-Haz Compliance | M61: Pollutant Linkage: P1 2 3, AGB, Unsat S&G, Haz Compliance | Y61: Pollutant Linkage: P4, AGB, Unsat S&G, Sat S&G, Non-Haz Compliance | AK61: Pollutant Linkage: P4, AGB, Unsat S&G, Haz Compliance | AW61: Pollutant Linkage: AGB, Un Sat S&G 2, Sat S&G, Non-Haz Compliance
A62: Dilution Factor | M62: Dilution Factor | Y62: Dilution Factor | AK62: Dilution Factor | AW62: Dilution Factor
B64: 5.021326856 | C64: for all species and timeslices | N64: 1 | O64: for all species and timeslices | Z64: 8.750640694 | AA64: for all species and timeslices | AL64: 1 | AM64: for all species and timeslices | AX64: 5.40125571 | AY64: for all species and timeslices
A67: Pollutant Linkage: P1 2 3, AGB, Unsat S&G, Sat S&G, Non-Haz Compliance | M67: Pollutant Linkage: P1 2 3, AGB, Unsat S&G, Haz Compliance | Y67: Pollutant Linkage: P4, AGB, Unsat S&G, Sat S&G, Non-Haz Compliance | AK67: Pollutant Linkage: P4, AGB, Unsat S&G, Haz Compliance | AW67: Pollutant Linkage: AGB, Un Sat S&G 2, Sat S&G, Non-Haz Compliance
A68: Attenuation Factor | M68: Attenuation Factor | Y68: Attenuation Factor | AK68: Attenuation Factor | AW68: Attenuation Factor
B70: Species1 | D70: Species2 | F70: Species3 | H70: Species4 | J70: Species5 | N70: Species1 | P70: Species2 | R70: Species3 | T70: Species4 | V70: Species5 | Z70: Species1 | AB70: Species2 | AD70: Species3 | AF70: Species4 | AH70: Species5 | AL70: Species1 | AN70: Species2 | AP70: Species3 | AR70: Species4 | AT70: Species5 | AX70: Species1 | AZ70: Species2 | BB70: Species3 | BD70: Species4 | BF70: Species5
A71: Time(years) | B71: Arsenic | C71: Time(years) | D71: Nickel | E71: Time(years) | F71: Sulphate | G71: Time(years) | H71: Benzene | I71: Time(years) | J71: BaP | M71: Time(years) | N71: Arsenic | O71: Time(years) | P71: Nickel | Q71: Time(years) | R71: Sulphate | S71: Time(years) | T71: Benzene | U71: Time(years) | V71: BaP | Y71: Time(years) | Z71: Arsenic | AA71: Time(years) | AB71: Nickel | AC71: Time(years) | AD71: Sulphate | AE71: Time(years) | AF71: Benzene | AG71: Time(years) | AH71: BaP | AK71: Time(years) | AL71: Arsenic | AM71: Time(years) | AN71: Nickel | AO71: Time(years) | AP71: Sulphate | AQ71: Time(years) | AR71: Benzene | AS71: Time(years) | AT71: BaP | AW71: Time(years) | AX71: Arsenic | AY71: Time(years) | AZ71: Nickel | BA71: Time(years) | BB71: Sulphate | BC71: Time(years) | BD71: Benzene | BE71: Time(years) | BF71: BaP
A72: 0.1 | B72: 1e+40 | C72: 0.1 | D72: 0.07966021959 | E72: 0.1 | F72: 1e+40 | G72: 0.1 | H72: 1.194903294 | I72: 0.1 | J72: 1e+40 | M72: 0.1 | N72: 1e+40 | O72: 0.1 | P72: 0.4 | Q72: 0.1 | R72: 1e+40 | S72: 0.1 | T72: 6 | U72: 0.1 | V72: 4.533495092e+11 | Y72: 0.1 | Z72: 1e+40 | AA72: 0.1 | AB72: 0.04571093866 | AC72: 0.1 | AD72: 1e+40 | AE72: 0.1 | AF72: 0.6856640799 | AG72: 0.1 | AH72: 1e+40 | AK72: 0.1 | AL72: 1e+40 | AM72: 0.1 | AN72: 0.4 | AO72: 0.1 | AP72: 1e+40 | AQ72: 0.1 | AR72: 6 | AS72: 0.1 | AT72: 4.533495092e+11 | AW72: 0.1 | AX72: 1e+40 | AY72: 0.1 | AZ72: 1.851421324 | BA72: 0.1 | BB72: 1e+40 | BC72: 0.1 | BD72: 1.851421324 | BE72: 0.1 | BF72: 3858549.721
A73: 0.2 | B73: 1e+40 | C73: 0.2 | D73: 0.03983010979 | E73: 0.2 | F73: 1e+40 | G73: 0.2 | H73: 0.5974516469 | I73: 0.2 | J73: 3.437042496e+17 | M73: 0.2 | N73: 1e+40 | O73: 0.2 | P73: 0.2 | Q73: 0.2 | R73: 1e+40 | S73: 0.2 | T73: 3 | U73: 0.2 | V73: 52798.67318 | Y73: 0.2 | Z73: 1e+40 | AA73: 0.2 | AB73: 0.02285546933 | AC73: 0.2 | AD73: 1e+40 | AE73: 0.2 | AF73: 0.34283204 | AG73: 0.2 | AH73: 4.727670292e+14 | AK73: 0.2 | AL73: 1e+40 | AM73: 0.2 | AN73: 0.2 | AO73: 0.2 | AP73: 1e+40 | AQ73: 0.2 | AR73: 3 | AS73: 0.2 | AT73: 52798.67318 | AW73: 0.2 | AX73: 1e+40 | AY73: 0.2 | AZ73: 0.9257106622 | BA73: 0.2 | BB73: 1e+40 | BC73: 0.2 | BD73: 0.9257106622 | BE73: 0.2 | BF73: 472.6609171
A74: 0.5 | B74: 1e+40 | C74: 0.5 | D74: 0.01593204392 | E74: 0.5 | F74: 1e+40 | G74: 0.5 | H74: 0.2389806588 | I74: 0.5 | J74: 42186262.79 | M74: 0.5 | N74: 1e+40 | O74: 0.5 | P74: 0.08 | Q74: 0.5 | R74: 1e+40 | S74: 0.5 | T74: 1.2 | U74: 0.5 | V74: 4.325495355 | Y74: 0.5 | Z74: 1e+40 | AA74: 0.5 | AB74: 0.009142187733 | AC74: 0.5 | AD74: 1e+40 | AE74: 0.5 | AF74: 0.137132816 | AG74: 0.5 | AH74: 27202.07145 | AK74: 0.5 | AL74: 1e+40 | AM74: 0.5 | AN74: 0.08 | AO74: 0.5 | AP74: 1e+40 | AQ74: 0.5 | AR74: 1.2 | AS74: 0.5 | AT74: 4.325495355 | AW74: 0.5 | AX74: 1e+40 | AY74: 0.5 | AZ74: 0.3702842649 | BA74: 0.5 | BB74: 1e+40 | BC74: 0.5 | BD74: 0.3702842649 | BE74: 0.5 | BF74: 3.803193734
A75: 0.75 | B75: 1e+40 | C75: 0.75 | D75: 0.01062136261 | E75: 0.75 | F75: 1e+40 | G75: 0.75 | H75: 0.1593204392 | I75: 0.75 | J75: 7252.558586 | M75: 0.75 | N75: 1e+40 | O75: 0.75 | P75: 0.05333333333 | Q75: 0.75 | R75: 1e+40 | S75: 0.75 | T75: 0.8 | U75: 0.75 | V75: 0.6379968786 | Y75: 0.75 | Z75: 1e+40 | AA75: 0.75 | AB75: 0.006094791822 | AC75: 0.75 | AD75: 1e+40 | AE75: 0.75 | AF75: 0.09142187733 | AG75: 0.75 | AH75: 68.17486152 | AK75: 0.75 | AL75: 1e+40 | AM75: 0.75 | AN75: 0.05333333333 | AO75: 0.75 | AP75: 1e+40 | AQ75: 0.75 | AR75: 0.8 | AS75: 0.75 | AT75: 0.6379968786 | AW75: 0.75 | AX75: 1e+40 | AY75: 0.75 | AZ75: 0.2468561766 | BA75: 0.75 | BB75: 1e+40 | BC75: 0.75 | BD75: 0.2468561766 | BE75: 0.75 | BF75: 1.912968406
A76: 1 | B76: 1e+40 | C76: 1 | D76: 0.007966021959 | E76: 1 | F76: 1e+40 | G76: 1 | H76: 0.1194903294 | I76: 1 | J76: 111.9323371 | M76: 1 | N76: 1e+40 | O76: 1 | P76: 0.04 | Q76: 1 | R76: 1e+40 | S76: 1 | T76: 0.6 | U76: 1 | V76: 0.2754985681 | Y76: 1 | Z76: 1e+40 | AA76: 1 | AB76: 0.004571093866 | AC76: 1 | AD76: 1e+40 | AE76: 1 | AF76: 0.06856640799 | AG76: 1 | AH76: 4.283100825 | AK76: 1 | AL76: 1e+40 | AM76: 1 | AN76: 0.04 | AO76: 1 | AP76: 1e+40 | AQ76: 1 | AR76: 0.6 | AS76: 1 | AT76: 0.2754985681 | AW76: 1 | AX76: 1e+40 | AY76: 1 | AZ76: 0.1851421324 | BA76: 1 | BB76: 1e+40 | BC76: 1 | BD76: 0.1851421324 | BE76: 1 | BF76: 1.702604752
A77: 2 | B77: 1e+40 | C77: 2 | D77: 0.003983010979 | E77: 2 | F77: 1e+40 | G77: 2 | H77: 0.05974516469 | I77: 2 | J77: 0.4723934734 | M77: 2 | N77: 1e+40 | O77: 2 | P77: 0.02 | Q77: 2 | R77: 1e+40 | S77: 2 | T77: 0.3 | U77: 2 | V77: 0.1213936846 | Y77: 2 | Z77: 1e+40 | AA77: 2 | AB77: 0.002285546933 | AC77: 2 | AD77: 1e+40 | AE77: 2 | AF77: 0.034283204 | AG77: 2 | AH77: 0.1771490401 | AK77: 2 | AL77: 1e+40 | AM77: 2 | AN77: 0.02 | AO77: 2 | AP77: 1e+40 | AQ77: 2 | AR77: 0.3 | AS77: 2 | AT77: 0.1213936846 | AW77: 2 | AX77: 1e+40 | AY77: 2 | AZ77: 0.09257106622 | BA77: 2 | BB77: 1e+40 | BC77: 2 | BD77: 0.09257106622 | BE77: 2 | BF77: 3.41540336
A78: 5 | B78: 1e+40 | C78: 5 | D78: 0.001593204392 | E78: 5 | F78: 1e+40 | G78: 5 | H78: 0.02389806588 | I78: 5 | J78: 0.1277993526 | M78: 5 | N78: 1e+40 | O78: 5 | P78: 0.008 | Q78: 5 | R78: 1e+40 | S78: 5 | T78: 0.12 | U78: 5 | V78: 0.1443288835 | Y78: 5 | Z78: 1e+40 | AA78: 5 | AB78: 0.0009142187733 | AC78: 5 | AD78: 1e+40 | AE78: 5 | AF78: 0.0137132816 | AG78: 5 | AH78: 0.1348839441 | AK78: 5 | AL78: 1e+40 | AM78: 5 | AN78: 0.008 | AO78: 5 | AP78: 1e+40 | AQ78: 5 | AR78: 0.12 | AS78: 5 | AT78: 0.1443288835 | AW78: 5 | AX78: 1e+40 | AY78: 5 | AZ78: 0.03702842649 | BA78: 5 | BB78: 1e+40 | BC78: 5 | BD78: 0.03702842649 | BE78: 5 | BF78: 62.18130563
A79: 10 | B79: 1e+40 | C79: 10 | D79: 0.0007966021959 | E79: 10 | F79: 1e+40 | G79: 10 | H79: 0.01194903294 | I79: 10 | J79: 0.2052487707 | M79: 10 | N79: 1e+40 | O79: 10 | P79: 0.004 | Q79: 10 | R79: 1e+40 | S79: 10 | T79: 0.06 | U79: 10 | V79: 0.2363145612 | Y79: 10 | Z79: 1e+40 | AA79: 10 | AB79: 0.0004571093866 | AC79: 10 | AD79: 1e+40 | AE79: 10 | AF79: 0.006856640799 | AG79: 10 | AH79: 0.2205752805 | AK79: 10 | AL79: 1e+40 | AM79: 10 | AN79: 0.004 | AO79: 10 | AP79: 1e+40 | AQ79: 10 | AR79: 0.06 | AS79: 10 | AT79: 0.2363145612 | AW79: 10 | AX79: 1e+40 | AY79: 10 | AZ79: 0.01851421324 | BA79: 10 | BB79: 1e+40 | BC79: 10 | BD79: 0.01851421324 | BE79: 10 | BF79: 8020.871409
A80: 50 | B80: 1e+40 | C80: 50 | D80: 0.0001593204392 | E80: 50 | F80: 1e+40 | G80: 50 | H80: 0.002389806588 | I80: 50 | J80: 10.62415801 | M80: 50 | N80: 1e+40 | O80: 50 | P80: 0.0008 | Q80: 50 | R80: 8.994018644e+22 | S80: 50 | T80: 0.012 | U80: 50 | V80: 12.23224413 | Y80: 50 | Z80: 1e+40 | AA80: 50 | AB80: 9.142187733e-05 | AC80: 50 | AD80: 1e+40 | AE80: 50 | AF80: 0.00137132816 | AG80: 50 | AH80: 11.41753612 | AK80: 50 | AL80: 1e+40 | AM80: 50 | AN80: 0.0008 | AO80: 50 | AP80: 8.994018644e+22 | AQ80: 50 | AR80: 0.012 | AS80: 50 | AT80: 12.23224413 | AW80: 50 | AX80: 1e+40 | AY80: 50 | AZ80: 0.003702842649 | BA80: 50 | BB80: 7.782086968e+22 | BC80: 50 | BD80: 0.003702842649 | BE80: 50 | BF80: 1e+40
A81: 100 | B81: 1e+40 | C81: 100 | D81: 7.966021959e-05 | E81: 100 | F81: 9.587218884e+39 | G81: 100 | H81: 0.001194903294 | I81: 100 | J81: 1475.115301 | M81: 100 | N81: 1e+40 | O81: 100 | P81: 0.0004 | Q81: 100 | R81: 2.290945255e+16 | S81: 100 | T81: 0.006 | U81: 100 | V81: 1698.43494 | Y81: 100 | Z81: 1e+40 | AA81: 100 | AB81: 4.571093866e-05 | AC81: 100 | AD81: 4.59910244e+30 | AE81: 100 | AF81: 0.0006856640799 | AG81: 100 | AH81: 1585.294593 | AK81: 100 | AL81: 1e+40 | AM81: 100 | AN81: 0.0004 | AO81: 100 | AP81: 2.290945255e+16 | AQ81: 100 | AR81: 0.006 | AS81: 100 | AT81: 1698.434938 | AW81: 100 | AX81: 1e+40 | AY81: 100 | AZ81: 0.001851421324 | BA81: 100 | BB81: 1e+40 | BC81: 100 | BD81: 0.001851421324 | BE81: 100 | BF81: 1e+40
A82: 250 | B82: 1e+40 | C82: 250 | D82: 3.186408783e-05 | E82: 250 | F82: 1.726623496e+24 | G82: 250 | H82: 0.0004779613175 | I82: 250 | J82: 1e+40 | M82: 250 | N82: 1.336737733e+25 | O82: 250 | P82: 0.00016 | Q82: 250 | R82: 217150359.9 | S82: 250 | T82: 0.0024 | U82: 250 | V82: 1e+40 | Y82: 250 | Z82: 1e+40 | AA82: 250 | AB82: 1.828437547e-05 | AC82: 250 | AD82: 1e+40 | AE82: 250 | AF82: 0.000274265632 | AG82: 250 | AH82: 1e+40 | AK82: 250 | AL82: 1.336737733e+25 | AM82: 250 | AN82: 0.00016 | AO82: 250 | AP82: 217150359.9 | AQ82: 250 | AR82: 0.0024 | AS82: 250 | AT82: 1e+40 | AW82: 250 | AX82: 8.099663502e+29 | AY82: 250 | AZ82: 0.0007405685298 | BA82: 250 | BB82: 33584496.74 | BC82: 250 | BD82: 0.0007405685298 | BE82: 250 | BF82: 1e+40
A83: 500 | B83: 1e+40 | C83: 500 | D83: 1.593204392e-05 | E83: 500 | F83: 1e+40 | G83: 500 | H83: 0.0002389806588 | I83: 500 | J83: 1e+40 | M83: 500 | N83: 1.46222789e+19 | O83: 500 | P83: 8e-05 | Q83: 500 | R83: 1217699.19 | S83: 500 | T83: 0.0012 | U83: 500 | V83: 1e+40 | Y83: 500 | Z83: 1e+40 | AA83: 500 | AB83: 9.142187733e-06 | AC83: 500 | AD83: 5.394774685e+13 | AE83: 500 | AF83: 0.000137132816 | AG83: 500 | AH83: 1e+40 | AK83: 500 | AL83: 1.46222789e+19 | AM83: 500 | AN83: 8e-05 | AO83: 500 | AP83: 1217699.19 | AQ83: 500 | AR83: 0.0012 | AS83: 500 | AT83: 1e+40 | AW83: 500 | AX83: 1e+40 | AY83: 500 | AZ83: 0.0003702842649 | BA83: 500 | BB83: 21133.86933 | BC83: 500 | BD83: 0.0003702842649 | BE83: 500 | BF83: 7.022512486e+10
A84: 1000 | B84: 2.175032354e+32 | C84: 1000 | D84: 7.966021959e-06 | E84: 1000 | F84: 9.130872932e+10 | G84: 1000 | H84: 0.0001194903294 | I84: 1000 | J84: 1e+40 | M84: 1000 | N84: 1.28500738e+11 | O84: 1000 | P84: 4e-05 | Q84: 1000 | R84: 309550.4075 | S84: 1000 | T84: 0.0006 | U84: 1000 | V84: 1e+40 | Y84: 1000 | Z84: 4.050223118e+25 | AA84: 1000 | AB84: 4.571093866e-06 | AC84: 1000 | AD84: 98854016.95 | AE84: 1000 | AF84: 6.856640799e-05 | AG84: 1000 | AH84: 1e+40 | AK84: 1000 | AL84: 1.28500738e+11 | AM84: 1000 | AN84: 4e-05 | AO84: 1000 | AP84: 309550.4075 | AQ84: 1000 | AR84: 0.0006 | AS84: 1000 | AT84: 1e+40 | AW84: 1000 | AX84: 1.346275156e+16 | AY84: 1000 | AZ84: 0.0001851421324 | BA84: 1000 | BB84: 1702.94328 | BC84: 1000 | BD84: 0.0001851421324 | BE84: 1000 | BF84: 3.323421944e+10
A85: 2000 | B85: 1.370902267e+22 | C85: 2000 | D85: 3.983010979e-06 | E85: 2000 | F85: 10141820.18 | G85: 2000 | H85: 5.974516469e-05 | I85: 2000 | J85: 1e+40 | M85: 2000 | N85: 738875.1174 | O85: 2000 | P85: 2e-05 | Q85: 2000 | R85: 954466.5356 | S85: 2000 | T85: 0.0003 | U85: 2000 | V85: 1e+40 | Y85: 2000 | Z85: 1e+40 | AA85: 2000 | AB85: 2.285546933e-06 | AC85: 2000 | AD85: 786216.9162 | AE85: 2000 | AF85: 3.4283204e-05 | AG85: 2000 | AH85: 1e+40 | AK85: 2000 | AL85: 738875.1174 | AM85: 2000 | AN85: 2e-05 | AO85: 2000 | AP85: 954466.5356 | AQ85: 2000 | AR85: 0.0003 | AS85: 2000 | AT85: 1e+40 | AW85: 2000 | AX85: 409434562.3 | AY85: 2000 | AZ85: 9.257106622e-05 | BA85: 2000 | BB85: 2530.306967 | BC85: 2000 | BD85: 9.257106622e-05 | BE85: 2000 | BF85: 4.72341733e+10
A86: 3000 | B86: 1e+40 | C86: 3000 | D86: 2.655340653e-06 | E86: 3000 | F86: 1298439.269 | G86: 3000 | H86: 3.983010979e-05 | I86: 3000 | J86: 1e+40 | M86: 3000 | N86: 20231.43444 | O86: 3000 | P86: 1.333333333e-05 | Q86: 3000 | R86: 5586556.646 | S86: 3000 | T86: 0.0002 | U86: 3000 | V86: 6986542753 | Y86: 3000 | Z86: 3.380023009e+15 | AA86: 3000 | AB86: 1.523697955e-06 | AC86: 3000 | AD86: 591476.1232 | AE86: 3000 | AF86: 2.285546933e-05 | AG86: 3000 | AH86: 2.222554824e+10 | AK86: 3000 | AL86: 20231.43444 | AM86: 3000 | AN86: 1.333333333e-05 | AO86: 3000 | AP86: 5586556.646 | AQ86: 3000 | AR86: 0.0002 | AS86: 3000 | AT86: 6984155370 | AW86: 3000 | AX86: 2188833.714 | AY86: 3000 | AZ86: 6.171404415e-05 | BA86: 3000 | BB86: 10111.70583 | BC86: 3000 | BD86: 6.171404415e-05 | BE86: 3000 | BF86: 6.441574555e+10
A89: Saved 02/02/2026: 14:24:41 Level Number: 5
A91: BREAKTHROUGH RESULTS
A93: Advanced
A94: Pollutant Linkage: P1 2 3, AGB, Unsat S&G, Sat S&G, Non-Haz Compliance | M94: Pollutant Linkage: P1 2 3, AGB, Unsat S&G, Haz Compliance | Y94: Pollutant Linkage: P4, AGB, Unsat S&G, Sat S&G, Non-Haz Compliance | AK94: Pollutant Linkage: P4, AGB, Unsat S&G, Haz Compliance | AW94: Pollutant Linkage: AGB, Un Sat S&G 2, Sat S&G, Non-Haz Compliance
A95: Concentrations in mg/L in Non-Haz Compliance | M95: Concentrations in mg/L in Haz Compliance | Y95: Concentrations in mg/L in Non-Haz Compliance | AK95: Concentrations in mg/L in Haz Compliance | AW95: Concentrations in mg/L in Non-Haz Compliance
A97: Compared with P1 2 3 target concentration in mg/L | M97: Compared with P1 2 3 target concentration in mg/L | Y97: Compared with P4 target concentration in mg/L | AK97: Compared with P4 target concentration in mg/L | AW97: Compared with P1 2 3 target concentration in mg/L
B98: 0.005 | D98: 0.004 | F98: 74 | H98: 0.001 | J98: 5e-08 | N98: 0.005 | P98: 0.004 | R98: 74 | T98: 0.001 | V98: 5e-08 | Z98: 0.005 | AB98: 0.0185 | AD98: 74 | AF98: 0.001 | AH98: 5e-08 | AL98: 0.005 | AN98: 0.0185 | AP98: 74 | AR98: 0.001 | AT98: 5e-08 | AX98: 0.005 | AZ98: 0.004 | BB98: 74 | BD98: 0.001 | BF98: 5e-08
B100: Species1 | D100: Species2 | F100: Species3 | H100: Species4 | J100: Species5 | N100: Species1 | P100: Species2 | R100: Species3 | T100: Species4 | V100: Species5 | Z100: Species1 | AB100: Species2 | AD100: Species3 | AF100: Species4 | AH100: Species5 | AL100: Species1 | AN100: Species2 | AP100: Species3 | AR100: Species4 | AT100: Species5 | AX100: Species1 | AZ100: Species2 | BB100: Species3 | BD100: Species4 | BF100: Species5
A101: Time(years) | B101: Arsenic | C101: Time(years) | D101: Nickel | E101: Time(years) | F101: Sulphate | G101: Time(years) | H101: Benzene | I101: Time(years) | J101: BaP | M101: Time(years) | N101: Arsenic | O101: Time(years) | P101: Nickel | Q101: Time(years) | R101: Sulphate | S101: Time(years) | T101: Benzene | U101: Time(years) | V101: BaP | Y101: Time(years) | Z101: Arsenic | AA101: Time(years) | AB101: Nickel | AC101: Time(years) | AD101: Sulphate | AE101: Time(years) | AF101: Benzene | AG101: Time(years) | AH101: BaP | AK101: Time(years) | AL101: Arsenic | AM101: Time(years) | AN101: Nickel | AO101: Time(years) | AP101: Sulphate | AQ101: Time(years) | AR101: Benzene | AS101: Time(years) | AT101: BaP | AW101: Time(years) | AX101: Arsenic | AY101: Time(years) | AZ101: Nickel | BA101: Time(years) | BB101: Sulphate | BC101: Time(years) | BD101: Benzene | BE101: Time(years) | BF101: BaP
A102: 0.1 | B102: 0 | C102: 0.1 | D102: 0 | E102: 0.1 | F102: 0 | G102: 0.1 | H102: 0 | I102: 0.1 | J102: 0 | M102: 0.1 | N102: 0 | O102: 0.1 | P102: 0 | Q102: 0.1 | R102: 2.205803645e-11 | S102: 0.1 | T102: 0 | U102: 0.1 | V102: 0 | Y102: 0.1 | Z102: 0 | AA102: 0.1 | AB102: 0 | AC102: 0.1 | AD102: 0 | AE102: 0.1 | AF102: 0 | AG102: 0.1 | AH102: 0 | AK102: 0.1 | AL102: 0 | AM102: 0.1 | AN102: 0 | AO102: 0.1 | AP102: 2.205803645e-11 | AQ102: 0.1 | AR102: 0 | AS102: 0.1 | AT102: 0 | AW102: 0.1 | AX102: 0 | AY102: 0.1 | AZ102: 0 | BA102: 0.1 | BB102: 4.798231093e-06 | BC102: 0.1 | BD102: 0 | BE102: 0.1 | BF102: 0
A103: 0.2 | B103: 0 | C103: 0.2 | D103: 0 | E103: 0.2 | F103: 5.794241682e-18 | G103: 0.2 | H103: 0 | I103: 0.2 | J103: 0 | M103: 0.2 | N103: 0 | O103: 0.2 | P103: 0 | Q103: 0.2 | R103: 0.0001893986988 | S103: 0.2 | T103: 4.034068973e-38 | U103: 0.2 | V103: 0 | Y103: 0.2 | Z103: 0 | AA103: 0.2 | AB103: 0 | AC103: 0.2 | AD103: 2.417202123e-15 | AE103: 0.2 | AF103: 0 | AG103: 0.2 | AH103: 0 | AK103: 0.2 | AL103: 0 | AM103: 0.2 | AN103: 0 | AO103: 0.2 | AP103: 0.0001893986988 | AQ103: 0.2 | AR103: 4.034068973e-38 | AS103: 0.2 | AT103: 0 | AW103: 0.2 | AX103: 0 | AY103: 0.2 | AZ103: 0 | BA103: 0.2 | BB103: 0.03917018009 | BC103: 0.2 | BD103: 3.315306163e-09 | BE103: 0.2 | BF103: 0
A104: 0.5 | B104: 0 | C104: 0.5 | D104: 0 | E104: 0.5 | F104: 4.720744048e-08 | G104: 0.5 | H104: 6.638947155e-33 | I104: 0.5 | J104: 0 | M104: 0.5 | N104: 0 | O104: 0.5 | P104: 0 | Q104: 0.5 | R104: 2.311873943 | S104: 0.5 | T104: 1.006105096e-23 | U104: 0.5 | V104: 0 | Y104: 0.5 | Z104: 0 | AA104: 0.5 | AB104: 0 | AC104: 0.5 | AD104: 4.201053103e-05 | AE104: 0.5 | AF104: 9.167932633e-30 | AG104: 0.5 | AH104: 0 | AK104: 0.5 | AL104: 0 | AM104: 0.5 | AN104: 0 | AO104: 0.5 | AP104: 2.311873943 | AQ104: 0.5 | AR104: 1.006105096e-23 | AS104: 0.5 | AT104: 0 | AW104: 0.5 | AX104: 0 | AY104: 0.5 | AZ104: 0 | BA104: 0.5 | BB104: 4.86806998 | BC104: 0.5 | BD104: 0.000417919479 | BE104: 0.5 | BF104: 0
A105: 0.75 | B105: 0 | C105: 0.75 | D105: 0 | E105: 0.75 | F105: 0.000274593506 | G105: 0.75 | H105: 4.073065403e-26 | I105: 0.75 | J105: 0 | M105: 0.75 | N105: 0 | O105: 0.75 | P105: 0 | Q105: 0.75 | R105: 15.67405788 | S105: 0.75 | T105: 0 | U105: 0.75 | V105: 0 | Y105: 0.75 | Z105: 0 | AA105: 0.75 | AB105: 0 | AC105: 0.75 | AD105: 0.01676238779 | AE105: 0.75 | AF105: 0 | AG105: 0.75 | AH105: 0 | AK105: 0.75 | AL105: 0 | AM105: 0.75 | AN105: 0 | AO105: 0.75 | AP105: 15.67405788 | AQ105: 0.75 | AR105: 0 | AS105: 0.75 | AT105: 0 | AW105: 0.75 | AX105: 0 | AY105: 0.75 | AZ105: 0 | BA105: 0.75 | BB105: 9.678263992 | BC105: 0.75 | BD105: 0.004004789139 | BE105: 0.75 | BF105: 0
A106: 1 | B106: 0 | C106: 1 | D106: 0 | E106: 1 | F106: 0.01779204777 | G106: 1 | H106: 1.00759036e-22 | I106: 1 | J106: 0 | M106: 1 | N106: 0 | O106: 1 | P106: 0 | Q106: 1 | R106: 36.29782931 | S106: 1 | T106: 0 | U106: 1 | V106: 0 | Y106: 1 | Z106: 0 | AA106: 1 | AB106: 0 | AC106: 1 | AD106: 0.2668098448 | AE106: 1 | AF106: 0 | AG106: 1 | AH106: 0 | AK106: 1 | AL106: 0 | AM106: 1 | AN106: 0 | AO106: 1 | AP106: 36.29782931 | AQ106: 1 | AR106: 0 | AS106: 1 | AT106: 0 | AW106: 1 | AX106: 0 | AY106: 1 | AZ106: 0 | BA106: 1 | BB106: 10.87405237 | BC106: 1 | BD106: 0.009982876374 | BE106: 1 | BF106: 0
A107: 2 | B107: 0 | C107: 2 | D107: 0 | E107: 2 | F107: 4.215776893 | G107: 2 | H107: 0 | I107: 2 | J107: 0 | M107: 2 | N107: 0 | O107: 2 | P107: 0 | Q107: 2 | R107: 82.37660826 | S107: 2 | T107: 4.241594856e-10 | U107: 2 | V107: 0 | Y107: 2 | Z107: 0 | AA107: 2 | AB107: 0 | AC107: 2 | AD107: 6.450915376 | AE107: 2 | AF107: 9.591709695e-16 | AG107: 2 | AH107: 0 | AK107: 2 | AL107: 0 | AM107: 2 | AN107: 0 | AO107: 2 | AP107: 82.37660826 | AQ107: 2 | AR107: 4.241594856e-10 | AS107: 2 | AT107: 0 | AW107: 2 | AX107: 0 | AY107: 2 | AZ107: 0 | BA107: 2 | BB107: 5.420798451 | BC107: 2 | BD107: 0.0148150476 | BE107: 2 | BF107: 0
A108: 5 | B108: 0 | C108: 5 | D108: 0 | E108: 5 | F108: 15.58306399 | G108: 5 | H108: 2.234001066e-08 | I108: 5 | J108: 0 | M108: 5 | N108: 0 | O108: 5 | P108: 0 | Q108: 5 | R108: 69.28620079 | S108: 5 | T108: 2.497032083e-05 | U108: 5 | V108: 0 | Y108: 5 | Z108: 0 | AA108: 5 | AB108: 0 | AC108: 5 | AD108: 8.47227203 | AE108: 5 | AF108: 1.671070405e-07 | AG108: 5 | AH108: 0 | AK108: 5 | AL108: 0 | AM108: 5 | AN108: 0 | AO108: 5 | AP108: 69.28620079 | AQ108: 5 | AR108: 2.497032083e-05 | AS108: 5 | AT108: 0 | AW108: 5 | AX108: 0 | AY108: 5 | AZ108: 0 | BA108: 5 | BB108: 0.2977456497 | BC108: 5 | BD108: 0.001051611966 | BE108: 5 | BF108: 0
A109: 10 | B109: 0 | C109: 10 | D109: 0 | E109: 10 | F109: 9.70288632 | G109: 10 | H109: 2.099184375e-06 | I109: 10 | J109: 0 | M109: 10 | N109: 0 | O109: 10 | P109: 0 | Q109: 10 | R109: 42.3164783 | S109: 10 | T109: 0.0001017249999 | U109: 10 | V109: 0 | Y109: 10 | Z109: 0 | AA109: 10 | AB109: 0 | AC109: 10 | AD109: 5.180877312 | AE109: 10 | AF109: 3.624159295e-06 | AG109: 10 | AH109: 0 | AK109: 10 | AL109: 0 | AM109: 10 | AN109: 0 | AO109: 10 | AP109: 42.3164783 | AQ109: 10 | AR109: 0.0001017249999 | AS109: 10 | AT109: 0 | AW109: 10 | AX109: 0 | AY109: 10 | AZ109: 0 | BA109: 10 | BB109: 0.002308254592 | BC109: 10 | BD109: 8.168172148e-06 | BE109: 10 | BF109: 0
A110: 50 | B110: 0 | C110: 50 | D110: 0 | E110: 50 | F110: 0.1874506656 | G110: 50 | H110: 6.094180763e-08 | I110: 50 | J110: 0 | M110: 50 | N110: 0 | O110: 50 | P110: 1.111850041e-21 | Q110: 50 | R110: 0.8175114796 | S110: 50 | T110: 2.145317487e-06 | U110: 50 | V110: 0 | Y110: 50 | Z110: 0 | AA110: 50 | AB110: 0 | AC110: 50 | AD110: 0.1000893235 | AE110: 50 | AF110: 8.680100385e-08 | AG110: 50 | AH110: 0 | AK110: 50 | AL110: 0 | AM110: 50 | AN110: 1.111850041e-21 | AO110: 50 | AP110: 0.8175114796 | AQ110: 50 | AR110: 2.145317487e-06 | AS110: 50 | AT110: 0 | AW110: 50 | AX110: 0 | AY110: 50 | AZ110: 9.516322972e-26 | BA110: 50 | BB110: 0 | BC110: 50 | BD110: 0 | BE110: 50 | BF110: 0
A111: 100 | B111: 0 | C111: 100 | D111: 2.077250466e-39 | E111: 100 | F111: 0.001350067678 | G111: 100 | H111: 4.389322473e-10 | I111: 100 | J111: 0 | M111: 100 | N111: 0 | O111: 100 | P111: 4.36501046e-15 | Q111: 100 | R111: 0.005887773364 | S111: 100 | T111: 1.545165641e-08 | U111: 100 | V111: 0 | Y111: 100 | Z111: 0 | AA111: 100 | AB111: 2.484774978e-30 | AC111: 100 | AD111: 0.0007208587423 | AE111: 100 | AF111: 6.251838824e-10 | AG111: 100 | AH111: 0 | AK111: 100 | AL111: 0 | AM111: 100 | AN111: 4.36501046e-15 | AO111: 100 | AP111: 0.005887773372 | AQ111: 100 | AR111: 1.54516564e-08 | AS111: 100 | AT111: 0 | AW111: 100 | AX111: 0 | AY111: 100 | AZ111: 0 | BA111: 100 | BB111: 0 | BC111: 100 | BD111: 0 | BE111: 100 | BF111: 0
A112: 250 | B112: 0 | C112: 250 | D112: 1.153410395e-23 | E112: 250 | F112: 0 | G112: 250 | H112: 0 | I112: 250 | J112: 0 | M112: 250 | N112: 3.74044951e-27 | O112: 250 | P112: 4.605104041e-07 | Q112: 250 | R112: 0 | S112: 250 | T112: 0 | U112: 250 | V112: 0 | Y112: 250 | Z112: 0 | AA112: 250 | AB112: 0 | AC112: 250 | AD112: 0 | AE112: 250 | AF112: 0 | AG112: 250 | AH112: 0 | AK112: 250 | AL112: 3.74044951e-27 | AM112: 250 | AN112: 4.605104041e-07 | AO112: 250 | AP112: 0 | AQ112: 250 | AR112: 0 | AS112: 250 | AT112: 0 | AW112: 250 | AX112: 1.142900149e-32 | AY112: 250 | AZ112: 2.205090448e-10 | BA112: 250 | BB112: 0 | BC112: 250 | BD112: 0 | BE112: 250 | BF112: 0
A113: 500 | B113: 0 | C113: 500 | D113: 0 | E113: 500 | F113: 0 | G113: 500 | H113: 0 | I113: 500 | J113: 0 | M113: 500 | N113: 3.419439634e-21 | O113: 500 | P113: 8.2122088e-05 | Q113: 500 | R113: 0 | S113: 500 | T113: 0 | U113: 500 | V113: 0 | Y113: 500 | Z113: 0 | AA113: 500 | AB113: 2.118296932e-13 | AC113: 500 | AD113: 0 | AE113: 500 | AF113: 0 | AG113: 500 | AH113: 0 | AK113: 500 | AL113: 3.419439634e-21 | AM113: 500 | AN113: 8.2122088e-05 | AO113: 500 | AP113: 0 | AQ113: 500 | AR113: 0 | AS113: 500 | AT113: 0 | AW113: 500 | AX113: 0 | AY113: 500 | AZ113: 3.504178617e-07 | BA113: 500 | BB113: 2.635064508e-10 | BC113: 500 | BD113: 0 | BE113: 500 | BF113: 0
A114: 1000 | B114: 4.578105437e-35 | C114: 1000 | D114: 2.181068014e-10 | E114: 1000 | F114: 0 | G114: 1000 | H114: 0 | I114: 1000 | J114: 0 | M114: 1000 | N114: 3.891028236e-13 | O114: 1000 | P114: 0.0003230491628 | Q114: 1000 | R114: 0 | S114: 1000 | T114: 0 | U114: 1000 | V114: 0 | Y114: 1000 | Z114: 1.41075372e-28 | AA114: 1000 | AB114: 1.156021274e-07 | AC114: 1000 | AD114: 0 | AE114: 1000 | AF114: 0 | AG114: 1000 | AH114: 0 | AK114: 1000 | AL114: 3.891028236e-13 | AM114: 1000 | AN114: 0.0003230491628 | AO114: 1000 | AP114: 0 | AQ114: 1000 | AR114: 0 | AS114: 1000 | AT114: 0 | AW114: 1000 | AX114: 6.87608813e-19 | AY114: 1000 | AZ114: 4.348756288e-06 | BA114: 1000 | BB114: 5.570679683e-10 | BC114: 1000 | BD114: 7.676452381e-13 | BE114: 1000 | BF114: 0
A115: 2000 | B115: 7.263484557e-25 | C115: 2000 | D115: 1.963656873e-06 | E115: 2000 | F115: 0 | G115: 2000 | H115: 0 | I115: 2000 | J115: 0 | M115: 2000 | N115: 6.767043418e-08 | O115: 2000 | P115: 0.0001047705669 | Q115: 2000 | R115: 0 | S115: 2000 | T115: 0 | U115: 2000 | V115: 0 | Y115: 2000 | Z115: 0 | AA115: 2000 | AB115: 1.453509131e-05 | AC115: 2000 | AD115: 0 | AE115: 2000 | AF115: 0 | AG115: 2000 | AH115: 0 | AK115: 2000 | AL115: 6.767043418e-08 | AM115: 2000 | AN115: 0.0001047705669 | AO115: 2000 | AP115: 0 | AQ115: 2000 | AR115: 0 | AS115: 2000 | AT115: 0 | AW115: 2000 | AX115: 2.260948995e-11 | AY115: 2000 | AZ115: 2.926793229e-06 | BA115: 2000 | BB115: 3.920553405e-10 | BC115: 2000 | BD115: 6.612031942e-13 | BE115: 2000 | BF115: 0
A116: 3000 | B116: 0 | C116: 3000 | D116: 1.533768685e-05 | E116: 3000 | F116: 0 | G116: 3000 | H116: 0 | I116: 3000 | J116: 0 | M116: 3000 | N116: 2.471401627e-06 | O116: 3000 | P116: 1.790011385e-05 | Q116: 3000 | R116: 1.431323095e-09 | S116: 3000 | T116: 0 | U116: 3000 | V116: 0 | Y116: 3000 | Z116: 1.690481786e-18 | AA116: 3000 | AB116: 1.932070327e-05 | AC116: 3000 | AD116: 5.141711036e-11 | AE116: 3000 | AF116: 0 | AG116: 3000 | AH116: 0 | AK116: 3000 | AL116: 2.471401627e-06 | AM116: 3000 | AN116: 1.790011385e-05 | AO116: 3000 | AP116: 1.431812362e-09 | AQ116: 3000 | AR116: 0 | AS116: 3000 | AT116: 0 | AW116: 3000 | AX116: 4.229241611e-09 | AY116: 3000 | AZ116: 7.323873365e-07 | BA116: 3000 | BB116: 2.874314052e-10 | BC116: 3000 | BD116: 5.044966606e-13 | BE116: 3000 | BF116: 0
A119: Pollutant Linkage: P1 2 3, AGB, Unsat S&G, Sat S&G, Non-Haz Compliance | M119: Pollutant Linkage: P1 2 3, AGB, Unsat S&G, Haz Compliance | Y119: Pollutant Linkage: P4, AGB, Unsat S&G, Sat S&G, Non-Haz Compliance | AK119: Pollutant Linkage: P4, AGB, Unsat S&G, Haz Compliance | AW119: Pollutant Linkage: AGB, Un Sat S&G 2, Sat S&G, Non-Haz Compliance
A120: Remedial Target Concentrations in mg/L in P1 2 3 | M120: Remedial Target Concentrations in mg/L in P1 2 3 | Y120: Remedial Target Concentrations in mg/L in P4 | AK120: Remedial Target Concentrations in mg/L in P4 | AW120: Remedial Target Concentrations in mg/L in AGB
B122: Species1 | D122: Species2 | F122: Species3 | H122: Species4 | J122: Species5 | N122: Species1 | P122: Species2 | R122: Species3 | T122: Species4 | V122: Species5 | Z122: Species1 | AB122: Species2 | AD122: Species3 | AF122: Species4 | AH122: Species5 | AL122: Species1 | AN122: Species2 | AP122: Species3 | AR122: Species4 | AT122: Species5 | AX122: Species1 | AZ122: Species2 | BB122: Species3 | BD122: Species4 | BF122: Species5
A123: Time(years) | B123: Arsenic | C123: Time(years) | D123: Nickel | E123: Time(years) | F123: Sulphate | G123: Time(years) | H123: Benzene | I123: Time(years) | J123: BaP | M123: Time(years) | N123: Arsenic | O123: Time(years) | P123: Nickel | Q123: Time(years) | R123: Sulphate | S123: Time(years) | T123: Benzene | U123: Time(years) | V123: BaP | Y123: Time(years) | Z123: Arsenic | AA123: Time(years) | AB123: Nickel | AC123: Time(years) | AD123: Sulphate | AE123: Time(years) | AF123: Benzene | AG123: Time(years) | AH123: BaP | AK123: Time(years) | AL123: Arsenic | AM123: Time(years) | AN123: Nickel | AO123: Time(years) | AP123: Sulphate | AQ123: Time(years) | AR123: Benzene | AS123: Time(years) | AT123: BaP | AW123: Time(years) | AX123: Arsenic | AY123: Time(years) | AZ123: Nickel | BA123: Time(years) | BB123: Sulphate | BC123: Time(years) | BD123: Benzene | BE123: Time(years) | BF123: BaP
A124: 0.1 | B124: 1e+40 | C124: 0.1 | D124: 1e+40 | E124: 0.1 | F124: 1e+40 | G124: 0.1 | H124: 1e+40 | I124: 0.1 | J124: 1e+40 | M124: 0.1 | N124: 1e+40 | O124: 0.1 | P124: 1e+40 | Q124: 0.1 | R124: 3.354786368e+14 | S124: 0.1 | T124: 1e+40 | U124: 0.1 | V124: 1e+40 | Y124: 0.1 | Z124: 1e+40 | AA124: 0.1 | AB124: 1e+40 | AC124: 0.1 | AD124: 1e+40 | AE124: 0.1 | AF124: 1e+40 | AG124: 0.1 | AH124: 1e+40 | AK124: 0.1 | AL124: 1e+40 | AM124: 0.1 | AN124: 1e+40 | AO124: 0.1 | AP124: 3.354786368e+14 | AQ124: 0.1 | AR124: 1e+40 | AS124: 0.1 | AT124: 1e+40 | AW124: 0.1 | AX124: 1e+40 | AY124: 0.1 | AZ124: 1e+40 | BA124: 0.1 | BB124: 1542235015 | BC124: 0.1 | BD124: 1e+40 | BE124: 0.1 | BF124: 1e+40
A125: 0.2 | B125: 1e+40 | C125: 0.2 | D125: 1e+40 | E125: 0.2 | F125: 1.277130021e+21 | G125: 0.2 | H125: 1e+40 | I125: 0.2 | J125: 1e+40 | M125: 0.2 | N125: 1e+40 | O125: 0.2 | P125: 1e+40 | Q125: 0.2 | R125: 39071018.15 | S125: 0.2 | T125: 1.487332031e+34 | U125: 0.2 | V125: 1e+40 | Y125: 0.2 | Z125: 1e+40 | AA125: 0.2 | AB125: 1e+40 | AC125: 0.2 | AD125: 3.061390659e+18 | AE125: 0.2 | AF125: 1e+40 | AG125: 0.2 | AH125: 1e+40 | AK125: 0.2 | AL125: 1e+40 | AM125: 0.2 | AN125: 1e+40 | AO125: 0.2 | AP125: 39071018.15 | AQ125: 0.2 | AR125: 1.487332031e+34 | AS125: 0.2 | AT125: 1e+40 | AW125: 0.2 | AX125: 1e+40 | AY125: 0.2 | AZ125: 1e+40 | BA125: 0.2 | BB125: 188919.2233 | BC125: 0.2 | BD125: 180978.7605 | BE125: 0.2 | BF125: 1e+40
A126: 0.5 | B126: 1e+40 | C126: 0.5 | D126: 1e+40 | E126: 0.5 | F126: 1.567549506e+11 | G126: 0.5 | H126: 9.037577586e+28 | I126: 0.5 | J126: 1e+40 | M126: 0.5 | N126: 1e+40 | O126: 0.5 | P126: 1e+40 | Q126: 0.5 | R126: 3200.866562 | S126: 0.5 | T126: 5.963591702e+19 | U126: 0.5 | V126: 1e+40 | Y126: 0.5 | Z126: 1e+40 | AA126: 0.5 | AB126: 1e+40 | AC126: 0.5 | AD126: 176146309.5 | AE126: 0.5 | AF126: 6.544550707e+25 | AG126: 0.5 | AH126: 1e+40 | AK126: 0.5 | AL126: 1e+40 | AM126: 0.5 | AN126: 1e+40 | AO126: 0.5 | AP126: 3200.866562 | AQ126: 0.5 | AR126: 5.963591702e+19 | AS126: 0.5 | AT126: 1e+40 | AW126: 0.5 | AX126: 1e+40 | AY126: 0.5 | AZ126: 1e+40 | BA126: 0.5 | BB126: 1520.109618 | BC126: 0.5 | BD126: 1.43568326 | BE126: 0.5 | BF126: 1e+40
A127: 0.75 | B127: 1e+40 | C127: 0.75 | D127: 1e+40 | E127: 0.75 | F127: 26948925.73 | G127: 0.75 | H127: 1.473091985e+22 | I127: 0.75 | J127: 1e+40 | M127: 0.75 | N127: 1e+40 | O127: 0.75 | P127: 1e+40 | Q127: 0.75 | R127: 472.1176902 | S127: 0.75 | T127: 1e+40 | U127: 0.75 | V127: 1e+40 | Y127: 0.75 | Z127: 1e+40 | AA127: 0.75 | AB127: 1e+40 | AC127: 0.75 | AD127: 441464.5509 | AE127: 0.75 | AF127: 1e+40 | AG127: 0.75 | AH127: 1e+40 | AK127: 0.75 | AL127: 1e+40 | AM127: 0.75 | AN127: 1e+40 | AO127: 0.75 | AP127: 472.1176902 | AQ127: 0.75 | AR127: 1e+40 | AS127: 0.75 | AT127: 1e+40 | AW127: 0.75 | AX127: 1e+40 | AY127: 0.75 | AZ127: 1e+40 | BA127: 0.75 | BB127: 764.599933 | BC127: 0.75 | BD127: 0.1498206221 | BE127: 0.75 | BF127: 1e+40
A128: 1 | B128: 1e+40 | C128: 1 | D128: 1e+40 | E128: 1 | F128: 415916.1494 | G128: 1 | H128: 5.95480092e+18 | I128: 1 | J128: 1e+40 | M128: 1 | N128: 1e+40 | O128: 1 | P128: 1e+40 | Q128: 1 | R128: 203.8689404 | S128: 1 | T128: 1e+40 | U128: 1 | V128: 1e+40 | Y128: 1 | Z128: 1e+40 | AA128: 1 | AB128: 1e+40 | AC128: 1 | AD128: 27735.10852 | AE128: 1 | AF128: 1e+40 | AG128: 1 | AH128: 1e+40 | AK128: 1 | AL128: 1e+40 | AM128: 1 | AN128: 1e+40 | AO128: 1 | AP128: 203.8689404 | AQ128: 1 | AR128: 1e+40 | AS128: 1 | AT128: 1e+40 | AW128: 1 | AX128: 1e+40 | AY128: 1 | AZ128: 1e+40 | BA128: 1 | BB128: 680.5190693 | BC128: 1 | BD128: 0.06010291799 | BE128: 1 | BF128: 1e+40
A129: 2 | B129: 1e+40 | C129: 2 | D129: 1e+40 | E129: 2 | F129: 1755.311106 | G129: 2 | H129: 1e+40 | I129: 2 | J129: 1e+40 | M129: 2 | N129: 1e+40 | O129: 2 | P129: 1e+40 | Q129: 2 | R129: 89.8313266 | S129: 2 | T129: 1414562.259 | U129: 2 | V129: 1e+40 | Y129: 2 | Z129: 1e+40 | AA129: 2 | AB129: 1e+40 | AC129: 2 | AD129: 1147.124023 | AE129: 2 | AF129: 6.255401999e+11 | AG129: 2 | AH129: 1e+40 | AK129: 2 | AL129: 1e+40 | AM129: 2 | AN129: 1e+40 | AO129: 2 | AP129: 89.8313266 | AQ129: 2 | AR129: 1414562.259 | AS129: 2 | AT129: 1e+40 | AW129: 2 | AX129: 1e+40 | AY129: 2 | AZ129: 1e+40 | BA129: 2 | BB129: 1365.112551 | BC129: 2 | BD129: 0.04049936363 | BE129: 2 | BF129: 1e+40
A130: 5 | B130: 1e+40 | C130: 5 | D130: 1e+40 | E130: 5 | F130: 474.8745179 | G130: 5 | H130: 26857.64161 | I130: 5 | J130: 1e+40 | M130: 5 | N130: 1e+40 | O130: 5 | P130: 1e+40 | Q130: 5 | R130: 106.8033738 | S130: 5 | T130: 24.02852587 | U130: 5 | V130: 1e+40 | Y130: 5 | Z130: 1e+40 | AA130: 5 | AB130: 1e+40 | AC130: 5 | AD130: 873.4374881 | AE130: 5 | AF130: 3590.512992 | AG130: 5 | AH130: 1e+40 | AK130: 5 | AL130: 1e+40 | AM130: 5 | AN130: 1e+40 | AO130: 5 | AP130: 106.8033738 | AQ130: 5 | AR130: 24.02852587 | AS130: 5 | AT130: 1e+40 | AW130: 5 | AX130: 1e+40 | AY130: 5 | AZ130: 1e+40 | BA130: 5 | BB130: 24853.42778 | BC130: 5 | BD130: 0.5705526558 | BE130: 5 | BF130: 1e+40
A131: 10 | B131: 1e+40 | C131: 10 | D131: 1e+40 | E131: 10 | F131: 762.6596619 | G131: 10 | H131: 285.8252983 | I131: 10 | J131: 1e+40 | M131: 10 | N131: 1e+40 | O131: 10 | P131: 1e+40 | Q131: 10 | R131: 174.8727753 | S131: 10 | T131: 5.898255105 | U131: 10 | V131: 1e+40 | Y131: 10 | Z131: 1e+40 | AA131: 10 | AB131: 1e+40 | AC131: 10 | AD131: 1428.329519 | AE131: 10 | AF131: 165.5556368 | AG131: 10 | AH131: 1e+40 | AK131: 10 | AL131: 1e+40 | AM131: 10 | AN131: 1e+40 | AO131: 10 | AP131: 174.8727753 | AQ131: 10 | AR131: 5.898255105 | AS131: 10 | AT131: 1e+40 | AW131: 10 | AX131: 1e+40 | AY131: 10 | AZ131: 1e+40 | BA131: 10 | BB131: 3205885.532 | BC131: 10 | BD131: 73.45584656 | BE131: 10 | BF131: 1e+40
A132: 50 | B132: 1e+40 | C132: 50 | D132: 1e+40 | E132: 50 | F132: 39477.05375 | G132: 50 | H132: 9845.457878 | I132: 50 | J132: 1e+40 | M132: 50 | N132: 1e+40 | O132: 50 | P132: 1.439042983e+17 | Q132: 50 | R132: 9051.860659 | S132: 50 | T132: 279.6788837 | U132: 50 | V132: 1e+40 | Y132: 50 | Z132: 1e+40 | AA132: 50 | AB132: 1e+40 | AC132: 50 | AD132: 73933.95961 | AE132: 50 | AF132: 6912.362454 | AG132: 50 | AH132: 1e+40 | AK132: 50 | AL132: 1e+40 | AM132: 50 | AN132: 6.655573797e+17 | AO132: 50 | AP132: 9051.860659 | AQ132: 50 | AR132: 279.6788837 | AS132: 50 | AT132: 1e+40 | AW132: 50 | AX132: 1e+40 | AY132: 50 | AZ132: 1.681321667e+21 | BA132: 50 | BB132: 1e+40 | BC132: 50 | BD132: 1e+40 | BE132: 50 | BF132: 1e+40
A133: 100 | B133: 1e+40 | C133: 100 | D133: 7.702489546e+34 | E133: 100 | F133: 5481206.698 | G133: 100 | H133: 1366953.564 | I133: 100 | J133: 1e+40 | M133: 100 | N133: 1e+40 | O133: 100 | P133: 3.665512408e+10 | Q133: 100 | R133: 1256841.856 | S133: 100 | T133: 38830.78837 | U133: 100 | V133: 1e+40 | Y133: 100 | Z133: 1e+40 | AA133: 100 | AB133: 2.978136879e+26 | AC133: 100 | AD133: 10265534.1 | AE133: 100 | AF133: 959717.6397 | AG133: 100 | AH133: 1e+40 | AK133: 100 | AL133: 1e+40 | AM133: 100 | AN133: 1.695299489e+11 | AO133: 100 | AP133: 1256841.854 | AQ133: 100 | AR133: 38830.78838 | AS133: 100 | AT133: 1e+40 | AW133: 100 | AX133: 1e+40 | AY133: 100 | AZ133: 1e+40 | BA133: 100 | BB133: 1e+40 | BC133: 100 | BD133: 1e+40 | BE133: 100 | BF133: 1e+40
A134: 250 | B134: 1e+40 | C134: 250 | D134: 1.387190549e+19 | E134: 250 | F134: 1e+40 | G134: 250 | H134: 1e+40 | I134: 250 | J134: 1e+40 | M134: 250 | N134: 6.683688667e+22 | O134: 250 | P134: 347.4405758 | Q134: 250 | R134: 1e+40 | S134: 250 | T134: 1e+40 | U134: 250 | V134: 1e+40 | Y134: 250 | Z134: 1e+40 | AA134: 250 | AB134: 1e+40 | AC134: 250 | AD134: 1e+40 | AE134: 250 | AF134: 1e+40 | AG134: 250 | AH134: 1e+40 | AK134: 250 | AL134: 6.683688667e+22 | AM134: 250 | AN134: 1606.912663 | AO134: 250 | AP134: 1e+40 | AQ134: 250 | AR134: 1e+40 | AS134: 250 | AT134: 1e+40 | AW134: 250 | AX134: 2.187417687e+28 | AY134: 250 | AZ134: 725593.8191 | BA134: 250 | BB134: 1e+40 | BC134: 250 | BD134: 1e+40 | BE134: 250 | BF134: 1e+40
A135: 500 | B135: 1e+40 | C135: 500 | D135: 1e+40 | E135: 500 | F135: 1e+40 | G135: 500 | H135: 1e+40 | I135: 500 | J135: 1e+40 | M135: 500 | N135: 7.311139448e+16 | O135: 500 | P135: 1.948318703 | Q135: 500 | R135: 1e+40 | S135: 500 | T135: 1e+40 | U135: 500 | V135: 1e+40 | Y135: 500 | Z135: 1e+40 | AA135: 500 | AB135: 3493372382 | AC135: 500 | AD135: 1e+40 | AE135: 500 | AF135: 1e+40 | AG135: 500 | AH135: 1e+40 | AK135: 500 | AL135: 7.311139448e+16 | AM135: 500 | AN135: 9.010974002 | AO135: 500 | AP135: 1e+40 | AQ135: 500 | AR135: 1e+40 | AS135: 500 | AT135: 1e+40 | AW135: 500 | AX135: 1e+40 | AY135: 500 | AZ135: 456.5977295 | BA135: 500 | BB135: 2.808280396e+13 | BC135: 500 | BD135: 1e+40 | BE135: 500 | BF135: 1e+40
A136: 1000 | B136: 5.460774187e+30 | C136: 1000 | D136: 733585.5597 | E136: 1000 | F136: 1e+40 | G136: 1000 | H136: 1e+40 | I136: 1000 | J136: 1e+40 | M136: 1000 | N136: 642503690.2 | O136: 1000 | P136: 0.4952806521 | Q136: 1000 | R136: 1e+40 | S136: 1000 | T136: 1e+40 | U136: 1000 | V136: 1e+40 | Y136: 1000 | Z136: 1.772102362e+24 | AA136: 1000 | AB136: 6401.266277 | AC136: 1000 | AD136: 1e+40 | AE136: 1000 | AF136: 1e+40 | AG136: 1000 | AH136: 1e+40 | AK136: 1000 | AL136: 642503690.2 | AM136: 1000 | AN136: 2.290673016 | AO136: 1000 | AP136: 1e+40 | AQ136: 1000 | AR136: 1e+40 | AS136: 1000 | AT136: 1e+40 | AW136: 1000 | AX136: 3.635788187e+14 | AY136: 1000 | AZ136: 36.79212846 | BA136: 1000 | BB136: 1.328383684e+13 | BC136: 1000 | BD136: 781611049.2 | BE136: 1000 | BF136: 1e+40
A137: 2000 | B137: 3.441874186e+20 | C137: 2000 | D137: 81.48063046 | E137: 2000 | F137: 1e+40 | G137: 2000 | H137: 1e+40 | I137: 2000 | J137: 1e+40 | M137: 2000 | N137: 3694.375587 | O137: 2000 | P137: 1.527146457 | Q137: 2000 | R137: 1e+40 | S137: 2000 | T137: 1e+40 | U137: 2000 | V137: 1e+40 | Y137: 2000 | Z137: 1e+40 | AA137: 2000 | AB137: 50.91127288 | AC137: 2000 | AD137: 1e+40 | AE137: 2000 | AF137: 1e+40 | AG137: 2000 | AH137: 1e+40 | AK137: 2000 | AL137: 3694.375587 | AM137: 2000 | AN137: 7.063052363 | AO137: 2000 | AP137: 1e+40 | AQ137: 2000 | AR137: 1e+40 | AS137: 2000 | AT137: 1e+40 | AW137: 2000 | AX137: 11057303.84 | AY137: 2000 | AZ137: 54.6673398 | BA137: 2000 | BB137: 1.887488636e+13 | BC137: 2000 | BD137: 907436632.6 | BE137: 2000 | BF137: 1e+40
A138: 3000 | B138: 1e+40 | C138: 3000 | D138: 10.43182076 | E138: 3000 | F138: 1e+40 | G138: 3000 | H138: 1e+40 | I138: 3000 | J138: 1e+40 | M138: 3000 | N138: 101.1571722 | O138: 3000 | P138: 8.938490634 | Q138: 3000 | R138: 5.170041638e+12 | S138: 3000 | T138: 1e+40 | U138: 3000 | V138: 1e+40 | Y138: 3000 | Z138: 1.478868345e+14 | AA138: 3000 | AB138: 38.30088324 | AC138: 3000 | AD138: 1.439209623e+14 | AE138: 3000 | AF138: 1e+40 | AG138: 3000 | AH138: 1e+40 | AK138: 3000 | AL138: 101.1571722 | AM138: 3000 | AN138: 41.34051918 | AO138: 3000 | AP138: 5.168274974e+12 | AQ138: 3000 | AR138: 1e+40 | AS138: 3000 | AT138: 1e+40 | AW138: 3000 | AX138: 59112.25297 | AY138: 3000 | AZ138: 218.4636353 | BA138: 3000 | BB138: 2.574527301e+13 | BC138: 3000 | BD138: 1189304205 | BE138: 3000 | BF138: 1e+40
A140: Compared with source concentrations in mg/L | M140: Compared with source concentrations in mg/L | Y140: Compared with source concentrations in mg/L | AK140: Compared with source concentrations in mg/L | AW140: Compared with source concentrations in mg/L
B141: 0.05 | D141: 0.04 | F141: 100 | H141: 0.6 | J141: 10 | N141: 0.05 | P141: 0.04 | R141: 100 | T141: 0.6 | V141: 10 | Z141: 0.05 | AB141: 0.04 | AD141: 100 | AF141: 0.6 | AH141: 10 | AL141: 0.05 | AN141: 0.04 | AP141: 100 | AR141: 0.6 | AT141: 10 | AX141: 0.05 | AZ141: 0.04 | BB141: 100 | BD141: 0.6 | BF141: 10
A144: Pollutant Linkage: P1 2 3, AGB, Unsat S&G, Sat S&G, Non-Haz Compliance | M144: Pollutant Linkage: P1 2 3, AGB, Unsat S&G, Haz Compliance | Y144: Pollutant Linkage: P4, AGB, Unsat S&G, Sat S&G, Non-Haz Compliance | AK144: Pollutant Linkage: P4, AGB, Unsat S&G, Haz Compliance | AW144: Pollutant Linkage: AGB, Un Sat S&G 2, Sat S&G, Non-Haz Compliance
A145: Dilution Factor | M145: Dilution Factor | Y145: Dilution Factor | AK145: Dilution Factor | AW145: Dilution Factor
B147: 5.021326856 | C147: for all species and timeslices | N147: 1 | O147: for all species and timeslices | Z147: 8.750640694 | AA147: for all species and timeslices | AL147: 1 | AM147: for all species and timeslices | AX147: 5.40125571 | AY147: for all species and timeslices
A150: Pollutant Linkage: P1 2 3, AGB, Unsat S&G, Sat S&G, Non-Haz Compliance | M150: Pollutant Linkage: P1 2 3, AGB, Unsat S&G, Haz Compliance | Y150: Pollutant Linkage: P4, AGB, Unsat S&G, Sat S&G, Non-Haz Compliance | AK150: Pollutant Linkage: P4, AGB, Unsat S&G, Haz Compliance | AW150: Pollutant Linkage: AGB, Un Sat S&G 2, Sat S&G, Non-Haz Compliance
A151: Attenuation Factor | M151: Attenuation Factor | Y151: Attenuation Factor | AK151: Attenuation Factor | AW151: Attenuation Factor
B153: Species1 | D153: Species2 | F153: Species3 | H153: Species4 | J153: Species5 | N153: Species1 | P153: Species2 | R153: Species3 | T153: Species4 | V153: Species5 | Z153: Species1 | AB153: Species2 | AD153: Species3 | AF153: Species4 | AH153: Species5 | AL153: Species1 | AN153: Species2 | AP153: Species3 | AR153: Species4 | AT153: Species5 | AX153: Species1 | AZ153: Species2 | BB153: Species3 | BD153: Species4 | BF153: Species5
A154: Time(years) | B154: Arsenic | C154: Time(years) | D154: Nickel | E154: Time(years) | F154: Sulphate | G154: Time(years) | H154: Benzene | I154: Time(years) | J154: BaP | M154: Time(years) | N154: Arsenic | O154: Time(years) | P154: Nickel | Q154: Time(years) | R154: Sulphate | S154: Time(years) | T154: Benzene | U154: Time(years) | V154: BaP | Y154: Time(years) | Z154: Arsenic | AA154: Time(years) | AB154: Nickel | AC154: Time(years) | AD154: Sulphate | AE154: Time(years) | AF154: Benzene | AG154: Time(years) | AH154: BaP | AK154: Time(years) | AL154: Arsenic | AM154: Time(years) | AN154: Nickel | AO154: Time(years) | AP154: Sulphate | AQ154: Time(years) | AR154: Benzene | AS154: Time(years) | AT154: BaP | AW154: Time(years) | AX154: Arsenic | AY154: Time(years) | AZ154: Nickel | BA154: Time(years) | BB154: Sulphate | BC154: Time(years) | BD154: Benzene | BE154: Time(years) | BF154: BaP
A155: 0.1 | B155: 1e+40 | C155: 0.1 | D155: 0.07966021959 | E155: 0.1 | F155: 1e+40 | G155: 0.1 | H155: 1.194903294 | I155: 0.1 | J155: 1e+40 | M155: 0.1 | N155: 1e+40 | O155: 0.1 | P155: 0.4 | Q155: 0.1 | R155: 1e+40 | S155: 0.1 | T155: 6 | U155: 0.1 | V155: 4.533495092e+11 | Y155: 0.1 | Z155: 1e+40 | AA155: 0.1 | AB155: 0.04571093866 | AC155: 0.1 | AD155: 1e+40 | AE155: 0.1 | AF155: 0.6856640799 | AG155: 0.1 | AH155: 1e+40 | AK155: 0.1 | AL155: 1e+40 | AM155: 0.1 | AN155: 0.4 | AO155: 0.1 | AP155: 1e+40 | AQ155: 0.1 | AR155: 6 | AS155: 0.1 | AT155: 4.533495092e+11 | AW155: 0.1 | AX155: 1e+40 | AY155: 0.1 | AZ155: 0.07405685298 | BA155: 0.1 | BB155: 1e+40 | BC155: 0.1 | BD155: 1.110852795 | BE155: 0.1 | BF155: 385854.9721
A156: 0.2 | B156: 1e+40 | C156: 0.2 | D156: 0.03983010979 | E156: 0.2 | F156: 1e+40 | G156: 0.2 | H156: 0.5974516469 | I156: 0.2 | J156: 3.437042496e+17 | M156: 0.2 | N156: 1e+40 | O156: 0.2 | P156: 0.2 | Q156: 0.2 | R156: 1e+40 | S156: 0.2 | T156: 3 | U156: 0.2 | V156: 52798.67318 | Y156: 0.2 | Z156: 1e+40 | AA156: 0.2 | AB156: 0.02285546933 | AC156: 0.2 | AD156: 1e+40 | AE156: 0.2 | AF156: 0.34283204 | AG156: 0.2 | AH156: 4.727670292e+14 | AK156: 0.2 | AL156: 1e+40 | AM156: 0.2 | AN156: 0.2 | AO156: 0.2 | AP156: 1e+40 | AQ156: 0.2 | AR156: 3 | AS156: 0.2 | AT156: 52798.67318 | AW156: 0.2 | AX156: 1e+40 | AY156: 0.2 | AZ156: 0.03702842649 | BA156: 0.2 | BB156: 1e+40 | BC156: 0.2 | BD156: 0.5554263973 | BE156: 0.2 | BF156: 47.26609171
A157: 0.5 | B157: 1e+40 | C157: 0.5 | D157: 0.01593204392 | E157: 0.5 | F157: 1e+40 | G157: 0.5 | H157: 0.2389806588 | I157: 0.5 | J157: 42186262.79 | M157: 0.5 | N157: 1e+40 | O157: 0.5 | P157: 0.08 | Q157: 0.5 | R157: 1e+40 | S157: 0.5 | T157: 1.2 | U157: 0.5 | V157: 4.325495355 | Y157: 0.5 | Z157: 1e+40 | AA157: 0.5 | AB157: 0.009142187733 | AC157: 0.5 | AD157: 1e+40 | AE157: 0.5 | AF157: 0.137132816 | AG157: 0.5 | AH157: 27202.07145 | AK157: 0.5 | AL157: 1e+40 | AM157: 0.5 | AN157: 0.08 | AO157: 0.5 | AP157: 1e+40 | AQ157: 0.5 | AR157: 1.2 | AS157: 0.5 | AT157: 4.325495355 | AW157: 0.5 | AX157: 1e+40 | AY157: 0.5 | AZ157: 0.0148113706 | BA157: 0.5 | BB157: 1e+40 | BC157: 0.5 | BD157: 0.2221705589 | BE157: 0.5 | BF157: 0.3803193734
A158: 0.75 | B158: 1e+40 | C158: 0.75 | D158: 0.01062136261 | E158: 0.75 | F158: 1e+40 | G158: 0.75 | H158: 0.1593204392 | I158: 0.75 | J158: 7252.558586 | M158: 0.75 | N158: 1e+40 | O158: 0.75 | P158: 0.05333333333 | Q158: 0.75 | R158: 1e+40 | S158: 0.75 | T158: 0.8 | U158: 0.75 | V158: 0.6379968786 | Y158: 0.75 | Z158: 1e+40 | AA158: 0.75 | AB158: 0.006094791822 | AC158: 0.75 | AD158: 1e+40 | AE158: 0.75 | AF158: 0.09142187733 | AG158: 0.75 | AH158: 68.17486152 | AK158: 0.75 | AL158: 1e+40 | AM158: 0.75 | AN158: 0.05333333333 | AO158: 0.75 | AP158: 1e+40 | AQ158: 0.75 | AR158: 0.8 | AS158: 0.75 | AT158: 0.6379968786 | AW158: 0.75 | AX158: 1e+40 | AY158: 0.75 | AZ158: 0.009874247064 | BA158: 0.75 | BB158: 1e+40 | BC158: 0.75 | BD158: 0.148113706 | BE158: 0.75 | BF158: 0.1912968406
A159: 1 | B159: 1e+40 | C159: 1 | D159: 0.007966021959 | E159: 1 | F159: 1e+40 | G159: 1 | H159: 0.1194903294 | I159: 1 | J159: 111.9323371 | M159: 1 | N159: 1e+40 | O159: 1 | P159: 0.04 | Q159: 1 | R159: 1e+40 | S159: 1 | T159: 0.6 | U159: 1 | V159: 0.2754985681 | Y159: 1 | Z159: 1e+40 | AA159: 1 | AB159: 0.004571093866 | AC159: 1 | AD159: 1e+40 | AE159: 1 | AF159: 0.06856640799 | AG159: 1 | AH159: 4.283100825 | AK159: 1 | AL159: 1e+40 | AM159: 1 | AN159: 0.04 | AO159: 1 | AP159: 1e+40 | AQ159: 1 | AR159: 0.6 | AS159: 1 | AT159: 0.2754985681 | AW159: 1 | AX159: 1e+40 | AY159: 1 | AZ159: 0.007405685298 | BA159: 1 | BB159: 1e+40 | BC159: 1 | BD159: 0.1110852795 | BE159: 1 | BF159: 0.1702604752
A160: 2 | B160: 1e+40 | C160: 2 | D160: 0.003983010979 | E160: 2 | F160: 1e+40 | G160: 2 | H160: 0.05974516469 | I160: 2 | J160: 0.4723934734 | M160: 2 | N160: 1e+40 | O160: 2 | P160: 0.02 | Q160: 2 | R160: 1e+40 | S160: 2 | T160: 0.3 | U160: 2 | V160: 0.1213936846 | Y160: 2 | Z160: 1e+40 | AA160: 2 | AB160: 0.002285546933 | AC160: 2 | AD160: 1e+40 | AE160: 2 | AF160: 0.034283204 | AG160: 2 | AH160: 0.1771490401 | AK160: 2 | AL160: 1e+40 | AM160: 2 | AN160: 0.02 | AO160: 2 | AP160: 1e+40 | AQ160: 2 | AR160: 0.3 | AS160: 2 | AT160: 0.1213936846 | AW160: 2 | AX160: 1e+40 | AY160: 2 | AZ160: 0.003702842649 | BA160: 2 | BB160: 1e+40 | BC160: 2 | BD160: 0.05554263973 | BE160: 2 | BF160: 0.341540336
A161: 5 | B161: 1e+40 | C161: 5 | D161: 0.001593204392 | E161: 5 | F161: 1e+40 | G161: 5 | H161: 0.02389806588 | I161: 5 | J161: 0.1277993526 | M161: 5 | N161: 1e+40 | O161: 5 | P161: 0.008 | Q161: 5 | R161: 1e+40 | S161: 5 | T161: 0.12 | U161: 5 | V161: 0.1443288835 | Y161: 5 | Z161: 1e+40 | AA161: 5 | AB161: 0.0009142187733 | AC161: 5 | AD161: 1e+40 | AE161: 5 | AF161: 0.0137132816 | AG161: 5 | AH161: 0.1348839441 | AK161: 5 | AL161: 1e+40 | AM161: 5 | AN161: 0.008 | AO161: 5 | AP161: 1e+40 | AQ161: 5 | AR161: 0.12 | AS161: 5 | AT161: 0.1443288835 | AW161: 5 | AX161: 1e+40 | AY161: 5 | AZ161: 0.00148113706 | BA161: 5 | BB161: 1e+40 | BC161: 5 | BD161: 0.02221705589 | BE161: 5 | BF161: 6.218130563
A162: 10 | B162: 1e+40 | C162: 10 | D162: 0.0007966021959 | E162: 10 | F162: 1e+40 | G162: 10 | H162: 0.01194903294 | I162: 10 | J162: 0.2052487707 | M162: 10 | N162: 1e+40 | O162: 10 | P162: 0.004 | Q162: 10 | R162: 1e+40 | S162: 10 | T162: 0.06 | U162: 10 | V162: 0.2363145612 | Y162: 10 | Z162: 1e+40 | AA162: 10 | AB162: 0.0004571093866 | AC162: 10 | AD162: 1e+40 | AE162: 10 | AF162: 0.006856640799 | AG162: 10 | AH162: 0.2205752805 | AK162: 10 | AL162: 1e+40 | AM162: 10 | AN162: 0.004 | AO162: 10 | AP162: 1e+40 | AQ162: 10 | AR162: 0.06 | AS162: 10 | AT162: 0.2363145612 | AW162: 10 | AX162: 1e+40 | AY162: 10 | AZ162: 0.0007405685298 | BA162: 10 | BB162: 1e+40 | BC162: 10 | BD162: 0.01110852795 | BE162: 10 | BF162: 802.0871402
A163: 50 | B163: 1e+40 | C163: 50 | D163: 0.0001593204392 | E163: 50 | F163: 1e+40 | G163: 50 | H163: 0.002389806588 | I163: 50 | J163: 10.62415801 | M163: 50 | N163: 1e+40 | O163: 50 | P163: 0.0008 | Q163: 50 | R163: 8.994018644e+22 | S163: 50 | T163: 0.012 | U163: 50 | V163: 12.23224413 | Y163: 50 | Z163: 1e+40 | AA163: 50 | AB163: 9.142187733e-05 | AC163: 50 | AD163: 1e+40 | AE163: 50 | AF163: 0.00137132816 | AG163: 50 | AH163: 11.41753612 | AK163: 50 | AL163: 1e+40 | AM163: 50 | AN163: 0.0008 | AO163: 50 | AP163: 8.994018644e+22 | AQ163: 50 | AR163: 0.012 | AS163: 50 | AT163: 12.23224413 | AW163: 50 | AX163: 1e+40 | AY163: 50 | AZ163: 0.000148113706 | BA163: 50 | BB163: 1.945521742e+26 | BC163: 50 | BD163: 0.002221705589 | BE163: 50 | BF163: 1e+40
A164: 100 | B164: 1e+40 | C164: 100 | D164: 7.966021959e-05 | E164: 100 | F164: 9.587218884e+39 | G164: 100 | H164: 0.001194903294 | I164: 100 | J164: 1475.115301 | M164: 100 | N164: 1e+40 | O164: 100 | P164: 0.0004 | Q164: 100 | R164: 2.290945255e+16 | S164: 100 | T164: 0.006 | U164: 100 | V164: 1698.43494 | Y164: 100 | Z164: 1e+40 | AA164: 100 | AB164: 4.571093866e-05 | AC164: 100 | AD164: 4.59910244e+30 | AE164: 100 | AF164: 0.0006856640799 | AG164: 100 | AH164: 1585.294593 | AK164: 100 | AL164: 1e+40 | AM164: 100 | AN164: 0.0004 | AO164: 100 | AP164: 2.290945255e+16 | AQ164: 100 | AR164: 0.006 | AS164: 100 | AT164: 1698.434938 | AW164: 100 | AX164: 1e+40 | AY164: 100 | AZ164: 7.405685298e-05 | BA164: 100 | BB164: 1e+40 | BC164: 100 | BD164: 0.001110852795 | BE164: 100 | BF164: 1e+40
A165: 250 | B165: 1e+40 | C165: 250 | D165: 3.186408783e-05 | E165: 250 | F165: 1.726623496e+24 | G165: 250 | H165: 0.0004779613175 | I165: 250 | J165: 1e+40 | M165: 250 | N165: 1.336737733e+25 | O165: 250 | P165: 0.00016 | Q165: 250 | R165: 217150359.9 | S165: 250 | T165: 0.0024 | U165: 250 | V165: 1e+40 | Y165: 250 | Z165: 1e+40 | AA165: 250 | AB165: 1.828437547e-05 | AC165: 250 | AD165: 1e+40 | AE165: 250 | AF165: 0.000274265632 | AG165: 250 | AH165: 1e+40 | AK165: 250 | AL165: 1.336737733e+25 | AM165: 250 | AN165: 0.00016 | AO165: 250 | AP165: 217150359.9 | AQ165: 250 | AR165: 0.0024 | AS165: 250 | AT165: 1e+40 | AW165: 250 | AX165: 8.099663502e+29 | AY165: 250 | AZ165: 2.962274119e-05 | BA165: 250 | BB165: 8.396124185e+10 | BC165: 250 | BD165: 0.0004443411179 | BE165: 250 | BF165: 1e+40
A166: 500 | B166: 1e+40 | C166: 500 | D166: 1.593204392e-05 | E166: 500 | F166: 1e+40 | G166: 500 | H166: 0.0002389806588 | I166: 500 | J166: 1e+40 | M166: 500 | N166: 1.46222789e+19 | O166: 500 | P166: 8e-05 | Q166: 500 | R166: 1217699.19 | S166: 500 | T166: 0.0012 | U166: 500 | V166: 1e+40 | Y166: 500 | Z166: 1e+40 | AA166: 500 | AB166: 9.142187733e-06 | AC166: 500 | AD166: 5.394774685e+13 | AE166: 500 | AF166: 0.000137132816 | AG166: 500 | AH166: 1e+40 | AK166: 500 | AL166: 1.46222789e+19 | AM166: 500 | AN166: 8e-05 | AO166: 500 | AP166: 1217699.19 | AQ166: 500 | AR166: 0.0012 | AS166: 500 | AT166: 1e+40 | AW166: 500 | AX166: 1e+40 | AY166: 500 | AZ166: 1.48113706e-05 | BA166: 500 | BB166: 52834673.32 | BC166: 500 | BD166: 0.0002221705589 | BE166: 500 | BF166: 7026094880
A167: 1000 | B167: 2.175032354e+32 | C167: 1000 | D167: 7.966021959e-06 | E167: 1000 | F167: 9.130872932e+10 | G167: 1000 | H167: 0.0001194903294 | I167: 1000 | J167: 1e+40 | M167: 1000 | N167: 1.28500738e+11 | O167: 1000 | P167: 4e-05 | Q167: 1000 | R167: 309550.4075 | S167: 1000 | T167: 0.0006 | U167: 1000 | V167: 1e+40 | Y167: 1000 | Z167: 4.050223118e+25 | AA167: 1000 | AB167: 4.571093866e-06 | AC167: 1000 | AD167: 98854016.95 | AE167: 1000 | AF167: 6.856640799e-05 | AG167: 1000 | AH167: 1e+40 | AK167: 1000 | AL167: 1.28500738e+11 | AM167: 1000 | AN167: 4e-05 | AO167: 1000 | AP167: 309550.4075 | AQ167: 1000 | AR167: 0.0006 | AS167: 1000 | AT167: 1e+40 | AW167: 1000 | AX167: 1.346275156e+16 | AY167: 1000 | AZ167: 7.405685298e-06 | BA167: 1000 | BB167: 4257358.2 | BC167: 1000 | BD167: 0.0001110852795 | BE167: 1000 | BF167: 3323510648
A168: 2000 | B168: 1.370902267e+22 | C168: 2000 | D168: 3.983010979e-06 | E168: 2000 | F168: 10141820.18 | G168: 2000 | H168: 5.974516469e-05 | I168: 2000 | J168: 1e+40 | M168: 2000 | N168: 738875.1174 | O168: 2000 | P168: 2e-05 | Q168: 2000 | R168: 954466.5356 | S168: 2000 | T168: 0.0003 | U168: 2000 | V168: 1e+40 | Y168: 2000 | Z168: 1e+40 | AA168: 2000 | AB168: 2.285546933e-06 | AC168: 2000 | AD168: 786216.9162 | AE168: 2000 | AF168: 3.4283204e-05 | AG168: 2000 | AH168: 1e+40 | AK168: 2000 | AL168: 738875.1174 | AM168: 2000 | AN168: 2e-05 | AO168: 2000 | AP168: 954466.5356 | AQ168: 2000 | AR168: 0.0003 | AS168: 2000 | AT168: 1e+40 | AW168: 2000 | AX168: 409434562.3 | AY168: 2000 | AZ168: 3.702842649e-06 | BA168: 2000 | BB168: 6325767.416 | BC168: 2000 | BD168: 5.554263973e-05 | BE168: 2000 | BF168: 4722346906
A169: 3000 | B169: 1e+40 | C169: 3000 | D169: 2.655340653e-06 | E169: 3000 | F169: 1298439.269 | G169: 3000 | H169: 3.983010979e-05 | I169: 3000 | J169: 1e+40 | M169: 3000 | N169: 20231.43444 | O169: 3000 | P169: 1.333333333e-05 | Q169: 3000 | R169: 5586556.646 | S169: 3000 | T169: 0.0002 | U169: 3000 | V169: 6986542753 | Y169: 3000 | Z169: 3.380023009e+15 | AA169: 3000 | AB169: 1.523697955e-06 | AC169: 3000 | AD169: 591476.1232 | AE169: 3000 | AF169: 2.285546933e-05 | AG169: 3000 | AH169: 2.222554824e+10 | AK169: 3000 | AL169: 20231.43444 | AM169: 3000 | AN169: 1.333333333e-05 | AO169: 3000 | AP169: 5586556.646 | AQ169: 3000 | AR169: 0.0002 | AS169: 3000 | AT169: 6984155370 | AW169: 3000 | AX169: 2188833.714 | AY169: 3000 | AZ169: 2.468561766e-06 | BA169: 3000 | BB169: 25279264.57 | BC169: 3000 | BD169: 3.702842649e-05 | BE169: 3000 | BF169: 6441263170

Sheet NonHaz Complia (hidden)
A1: RECEPTOR: NonHaz Complia
A3: Receptor Options
F5: No further dilution along pathway
F7: No data requirement

Sheet Haz Compliance (hidden)
A1: RECEPTOR: Haz Compliance
A3: Receptor Options
F5: No further dilution along pathway
F7: No data requirement
